Capital or Revenue,Directorate,SERCOP High Level Category,SERCOP Detailed Category,Transaction Number,Date,Service Area,Expenses Type,Amount,Supplier Name
Revenue,Adult Services,Adult Social Care,Assistive Equipment & Technology,5105692189,07.12.2018,Community Equipment Store,General Materials,359.52,W HURST & SON (IW) LTD
Revenue,Adult Services,Adult Social Care,Assistive Equipment & Technology,5105692189,07.12.2018,Community Equipment Store,General Materials,103.75,W HURST & SON (IW) LTD
Revenue,Adult Services,Adult Social Care,Assistive Equipment & Technology,5105692189,07.12.2018,Community Equipment Store,General Materials,112.50,W HURST & SON (IW) LTD
Revenue,Adult Services,Adult Social Care,Assistive Equipment & Technology,5105692189,07.12.2018,Community Equipment Store,General Materials,124.75,W HURST & SON (IW) LTD
Revenue,Adult Services,Adult Social Care,Assistive Equipment & Technology,5105692189,07.12.2018,Community Equipment Store,General Materials,187.25,W HURST & SON (IW) LTD
Revenue,Adult Services,Adult Social Care,Assistive Equipment & Technology,5105692189,07.12.2018,Community Equipment Store,General Materials,367.50,W HURST & SON (IW) LTD
Capital,Childrens Services,Capital,Capital,5105692216,12.12.2018,Administration and Inspection Schemes,Eligible Supplies and Services - Capital,800.00,HOSE RHODES DICKSON LIMITED
Revenue,Adult Services,Adult Social Care,Learning Disab Supp (to be reallocated),5105692217,12.12.2018,Saxonbury,Agency staff,542.16,NEWCROSS HEALTHCARE SOLUTIONS LTD
Revenue,Adult Services,Adult Social Care,Social Support - Support for Carer,5105692223,12.12.2018,Westminster House,Agency staff,167.51,NEWCROSS HEALTHCARE SOLUTIONS LTD
Revenue,Regeneration,Planning services,Economic Development,5105692258,12.12.2018,Digital Conference,Professional Services,"1,000.00",REDACTED PERSONAL DATA
Revenue,Childrens Services,Children's & Education Services,Family Support Services,5105692281,19.12.2018,S17 Child Protection,Professional Services,18.90,ISLAND LITTLE HERONS
Revenue,Adult Services,Adult Social Care,Central Codes (to be reallocated),5105692291,12.12.2018,Gouldings Resource Centre,Catering Purchases,127.13,MEDINA FOODSERVICE T/A MEDINA QUAY MEATS
Revenue,Adult Services,Adult Social Care,Central Codes (to be reallocated),5105692292,12.12.2018,Gouldings Resource Centre,Catering Purchases,103.11,MEDINA FOODSERVICE T/A MEDINA QUAY MEATS
Revenue,Adult Services,Adult Social Care,Central Codes (to be reallocated),5105692292,12.12.2018,Gouldings Resource Centre,Catering Purchases,16.32,MEDINA FOODSERVICE T/A MEDINA QUAY MEATS
Revenue,Adult Services,Adult Social Care,Central Codes (to be reallocated),5105692293,12.12.2018,Gouldings Resource Centre,Catering Purchases,119.76,MEDINA FOODSERVICE T/A MEDINA QUAY MEATS
Revenue,Adult Services,Adult Social Care,Social Care Activities,5105692338,12.12.2018,First Response,Agency staff,"3,242.29",MATRIX SCM LTD
Revenue,Adult Services,Adult Social Care,Social Care Activities,5105692338,12.12.2018,First Response,Agency staff,"3,895.41",MATRIX SCM LTD
Revenue,Adult Services,Adult Social Care,Central Codes (to be reallocated),5105692347,12.12.2018,Gouldings Resource Centre,Catering Purchases,180.39,3663 (BFS GROUP LTD)
Revenue,Adult Services,Adult Social Care,Central Codes (to be reallocated),5105692347,12.12.2018,Gouldings Resource Centre,Catering Purchases,4.55,3663 (BFS GROUP LTD)
Revenue,Neighbourhoods,Highways and Transport Services,Management and Support Services,5105692352,21.12.2018,Highways PFI Project,Consultants Fees,750.00,HOSE RHODES DICKSON LIMITED
Revenue,Adult Services,Adult Social Care,Social Care Activities,5105692354,12.12.2018,First Response,Agency staff,"1,626.77",MATRIX SCM LTD
Revenue,Adult Services,Adult Social Care,Social Care Activities,5105692354,12.12.2018,First Response,Agency staff,"1,646.57",MATRIX SCM LTD
Revenue,Adult Services,Adult Social Care,Social Care Activities,5105692354,12.12.2018,First Response,Agency staff,654.35,MATRIX SCM LTD
Revenue,Adult Services,Adult Social Care,Assistive Equipment & Technology,5105692364,12.12.2018,Community Equipment Store,Consultants Fees,"1,208.33",REDACTED PERSONAL DATA
Revenue,Adult Services,Adult Social Care,Assistive Equipment & Technology,5105692365,12.12.2018,Community Equipment Store,Consultants Fees,"1,208.33",REDACTED PERSONAL DATA
Revenue,Adult Services,Adult Social Care,Social Care Activities,5105692390,19.12.2018,Transitions Team,Professional Services,64.25,WIGHTLINK LTD
Revenue,Adult Services,Adult Social Care,Learning Disab Supp (to be reallocated),5105692391,12.12.2018,Plean Dene,Agency staff,390.80,NEWCROSS HEALTHCARE SOLUTIONS LTD
Revenue,Fire & Rescue,Fire & Rescue Services,Fire fighting and Rescue Operations,5105692402,12.12.2018,Business Support  - Fire,Professional Services,103.51,LOCAL GOVERMENT ASSOCIATION
Revenue,Regeneration,Planning services,Economic Development,5105692429,14.12.2018,Director of Regeneration,Catering Purchases,119.00,FRENCH FRANKS
Revenue,Childrens Services,Children's & Education Services,Children Looked After,5105692458,14.12.2018,Adoption Costs,Support Children,168.39,REDACTED PERSONAL DATA
Revenue,Childrens Services,Children's & Education Services,Children Looked After,5105692458,14.12.2018,Adoption Costs,Support Children,207.73,REDACTED PERSONAL DATA
Revenue,Childrens Services,Children's & Education Services,Children Looked After,5105692459,14.12.2018,Adoption Costs,Support Children,168.39,REDACTED PERSONAL DATA
Revenue,Adult Services,Adult Social Care,Learning Disab Supp (to be reallocated),5105691869,07.12.2018,Plean Dene,Catering Purchases,71.49,MEDINA FOODSERVICE T/A MEDINA QUAY MEATS
Revenue,Adult Services,Adult Social Care,Learning Disab Supp (to be reallocated),5105691876,07.12.2018,Plean Dene,Catering Purchases,44.10,CHAPEL NURSERIES
Revenue,Adult Services,Adult Social Care,Learning Disab Supp (to be reallocated),5105691880,07.12.2018,Plean Dene,Catering Purchases,30.80,CHAPEL NURSERIES
Revenue,Adult Services,Adult Social Care,Learning Disab Supp (to be reallocated),5105691882,07.12.2018,Plean Dene,Catering Purchases,37.69,MEDINA FOODSERVICE T/A MEDINA QUAY MEATS
Revenue,Regeneration,Central Services,Support Services,5105691956,07.12.2018,Strategic Assets Team,Consultants Fees,455.00,DOUGHTY NEWNHAM LTD
Revenue,Adult Services,Adult Social Care,Social Support - Support for Carer,5105691979,07.12.2018,Westminster House,Catering Purchases,10.17,FARMHOUSE FAYRE (NEWPORT) LIMITED
Revenue,Adult Services,Adult Social Care,Social Support - Support for Carer,5105691980,07.12.2018,Westminster House,Catering Purchases,36.55,MEDINA FOODSERVICE T/A MEDINA QUAY MEATS
Revenue,Adult Services,Adult Social Care,Social Support - Support for Carer,5105691982,07.12.2018,Westminster House,Catering Purchases,55.11,MEDINA FOODSERVICE T/A MEDINA QUAY MEATS
Revenue,Adult Services,Adult Social Care,Social Support - Support for Carer,5105691984,07.12.2018,Westminster House,Catering Purchases,7.62,FARMHOUSE FAYRE (NEWPORT) LIMITED
Revenue,Adult Services,Adult Social Care,Learning Disab Supp (to be reallocated),5105691985,07.12.2018,Saxonbury,Catering Purchases,36.10,CHAPEL NURSERIES
Revenue,Adult Services,Adult Social Care,Social Support - Support for Carer,5105691986,07.12.2018,Westminster House,Catering Purchases,14.15,FARMHOUSE FAYRE (NEWPORT) LIMITED
Revenue,Adult Services,Adult Social Care,Learning Disab Supp (to be reallocated),5105691989,07.12.2018,Saxonbury,Catering Purchases,17.10,CHAPEL NURSERIES
Revenue,Adult Services,Adult Social Care,Learning Disab Supp (to be reallocated),5105691992,07.12.2018,Saxonbury,Catering Purchases,26.80,CHAPEL NURSERIES
Capital,Corporate Items,Balance Sheet,Balance Sheet,5105692015,21.12.2018,Balance Sheet,Order Settlement to Bal Sht GL,"628,006.00",ISLAND ROADS SERVICES LTD
Revenue,Neighbourhoods,Highways and Transport Services,Management and Support Services,5105692042,21.12.2018,Highways PFI Contract,Highways PFI Unitary Charge,"2,093,161.57",ISLAND ROADS SERVICES LTD
Revenue,Regeneration,Central Services,Support Services,5105692068,07.12.2018,Strategic Assets Team,Consultants Fees,385.00,DOUGHTY NEWNHAM LTD
Revenue,Regeneration,Central Services,Support Services,5105692070,07.12.2018,Strategic Assets Team,Consultants Fees,350.00,DOUGHTY NEWNHAM LTD
Revenue,Adult Services,Adult Social Care,Assistive Equipment & Technology,5105692072,07.12.2018,Community Equipment Store,Consultants Fees,"1,208.33",REDACTED PERSONAL DATA
Revenue,Regeneration,Planning services,Economic Development,5105692081,07.12.2018,One Public Estate,Consultants Fees,475.00,PRINCIPAL SURVEYORS LTD
Revenue,Adult Services,Adult Social Care,Social Care Activities,5105692123,07.12.2018,First Response,Professional Services,39.50,RED FUNNEL GROUP
Revenue,Adult Services,Adult Social Care,Social Care Activities,5105692124,07.12.2018,First Response,Professional Services,-39.50,RED FUNNEL GROUP
Revenue,Childrens Services,Children's & Education Services,Other Education and Community Budget,5105692131,12.12.2018,Learning & Development Running Costs,Catering Purchases,-15.75,WIGHT CRYSTAL
Revenue,Childrens Services,Children's & Education Services,Family Support Services,5105692140,12.12.2018,S17 Child Protection,Support Children,435.00,CHATTERBOX NURSERY LTD
Revenue,Childrens Services,Children's & Education Services,Family Support Services,5105692140,12.12.2018,S17 Child Protection,Support Children,174.00,CHATTERBOX NURSERY LTD
Revenue,Childrens Services,Children's & Education Services,Family Support Services,5105692140,12.12.2018,S17 Child Protection,Support Children,870.00,CHATTERBOX NURSERY LTD
Revenue,Childrens Services,Children's & Education Services,Children Looked After,5105693324,21.12.2018,Adoption Costs,Support Children,64.57,REDACTED PERSONAL DATA
Revenue,Childrens Services,Children's & Education Services,Children Looked After,5105693324,21.12.2018,Adoption Costs,Support Children,64.58,REDACTED PERSONAL DATA
Revenue,Adult Services,Adult Social Care,Central Codes (to be reallocated),5105693408,21.12.2018,Gouldings Resource Centre,Catering Purchases,60.40,CHAPEL NURSERIES
Revenue,Adult Services,Adult Social Care,Central Codes (to be reallocated),5105693409,21.12.2018,Gouldings Resource Centre,Catering Purchases,55.10,CHAPEL NURSERIES
Revenue,Resources,Housing Services,Housing Benefits Administration,5105693421,21.12.2018,Housing Benefit,Consultants Fees,-150.00,NORTHGATE PUBLIC SERVICES (UK) LTD
Revenue,Childrens Services,Children's & Education Services,Other Education and Community Budget,5105693448,27.12.2018,Learning & Development Running Costs,Catering Purchases,-15.75,WIGHT CRYSTAL
Revenue,Childrens Services,Children's & Education Services,Other Education and Community Budget,5105693451,27.12.2018,Learning & Development Running Costs,Catering Purchases,-15.75,WIGHT CRYSTAL
Revenue,Adult Services,Adult Social Care,Social Care Activities,5105693469,21.12.2018,First Response,Agency staff,"1,618.40",MATRIX SCM LTD
Revenue,Adult Services,Adult Social Care,Social Care Activities,5105693469,21.12.2018,First Response,Agency staff,"1,645.67",MATRIX SCM LTD
Revenue,Adult Services,Adult Social Care,Social Care Activities,5105693469,21.12.2018,First Response,Agency staff,655.92,MATRIX SCM LTD
Revenue,Adult Services,Adult Social Care,Learning Disab Supp (to be reallocated),5105693502,21.12.2018,Plean Dene,Catering Purchases,45.70,MEDINA FOODSERVICE T/A MEDINA QUAY MEATS
Revenue,Adult Services,Adult Social Care,Learning Disab Supp (to be reallocated),5105693502,21.12.2018,Plean Dene,Catering Purchases,8.62,MEDINA FOODSERVICE T/A MEDINA QUAY MEATS
Revenue,Adult Services,Adult Social Care,Central Codes (to be reallocated),5105693503,21.12.2018,Gouldings Resource Centre,Catering Purchases,58.45,MEDINA FOODSERVICE T/A MEDINA QUAY MEATS
Revenue,Adult Services,Adult Social Care,Central Codes (to be reallocated),5105693505,21.12.2018,Gouldings Resource Centre,Catering Purchases,127.10,MEDINA FOODSERVICE T/A MEDINA QUAY MEATS
Revenue,Adult Services,Adult Social Care,Learning Disab Supp (to be reallocated),5105693518,21.12.2018,Plean Dene,Catering Purchases,70.20,MEDINA FOODSERVICE T/A MEDINA QUAY MEATS
Revenue,Adult Services,Adult Social Care,Learning Disab Supp (to be reallocated),5105693519,21.12.2018,Plean Dene,Catering Purchases,89.69,MEDINA FOODSERVICE T/A MEDINA QUAY MEATS
Revenue,Adult Services,Adult Social Care,Learning Disab Supp (to be reallocated),5105693519,21.12.2018,Plean Dene,Catering Purchases,8.62,MEDINA FOODSERVICE T/A MEDINA QUAY MEATS
Revenue,Adult Services,Adult Social Care,Learning Disab Supp (to be reallocated),5105693520,21.12.2018,Plean Dene,Catering Purchases,53.34,MEDINA FOODSERVICE T/A MEDINA QUAY MEATS
Revenue,Adult Services,Adult Social Care,Learning Disab Supp (to be reallocated),5105693520,21.12.2018,Plean Dene,Catering Purchases,8.62,MEDINA FOODSERVICE T/A MEDINA QUAY MEATS
Revenue,Adult Services,Adult Social Care,Learning Disab Supp (to be reallocated),5105693522,21.12.2018,Plean Dene,Catering Purchases,97.92,MEDINA FOODSERVICE T/A MEDINA QUAY MEATS
Revenue,Adult Services,Adult Social Care,Learning Disab Supp (to be reallocated),5105693522,21.12.2018,Plean Dene,Catering Purchases,17.24,MEDINA FOODSERVICE T/A MEDINA QUAY MEATS
Revenue,Adult Services,Adult Social Care,Learning Disab Supp (to be reallocated),5105693523,21.12.2018,Plean Dene,Catering Purchases,120.46,MEDINA FOODSERVICE T/A MEDINA QUAY MEATS
Revenue,Adult Services,Adult Social Care,Learning Disab Supp (to be reallocated),5105693524,21.12.2018,Plean Dene,Catering Purchases,87.10,MEDINA FOODSERVICE T/A MEDINA QUAY MEATS
Revenue,Adult Services,Adult Social Care,Learning Disab Supp (to be reallocated),5105693528,21.12.2018,Plean Dene,Catering Purchases,73.68,MEDINA FOODSERVICE T/A MEDINA QUAY MEATS
Revenue,Adult Services,Adult Social Care,Learning Disab Supp (to be reallocated),5105693528,21.12.2018,Plean Dene,Catering Purchases,30.00,MEDINA FOODSERVICE T/A MEDINA QUAY MEATS
Revenue,Adult Services,Adult Social Care,Learning Disab Supp (to be reallocated),5105693530,21.12.2018,Plean Dene,Catering Purchases,40.82,MEDINA FOODSERVICE T/A MEDINA QUAY MEATS
Revenue,Adult Services,Adult Social Care,Learning Disab Supp (to be reallocated),5105693531,21.12.2018,Plean Dene,Catering Purchases,99.94,MEDINA FOODSERVICE T/A MEDINA QUAY MEATS
Revenue,Adult Services,Adult Social Care,Social Support - Support for Carer,5105693533,21.12.2018,Westminster House,Catering Purchases,82.35,MEDINA FOODSERVICE T/A MEDINA QUAY MEATS
Revenue,Adult Services,Adult Social Care,Learning Disab Supp (to be reallocated),5105693537,21.12.2018,Plean Dene,Catering Purchases,42.60,CHAPEL NURSERIES
Revenue,Adult Services,Adult Social Care,Learning Disab Supp (to be reallocated),5105693538,21.12.2018,Plean Dene,Catering Purchases,49.60,CHAPEL NURSERIES
Revenue,Adult Services,Adult Social Care,Learning Disab Supp (to be reallocated),5105693539,21.12.2018,Saxonbury,Catering Purchases,21.00,CHAPEL NURSERIES
Revenue,Adult Services,Adult Social Care,Learning Disab Supp (to be reallocated),5105693540,21.12.2018,Plean Dene,Catering Purchases,45.90,CHAPEL NURSERIES
Revenue,Adult Services,Adult Social Care,Learning Disab Supp (to be reallocated),5105693542,21.12.2018,Plean Dene,Catering Purchases,52.20,CHAPEL NURSERIES
Revenue,Adult Services,Adult Social Care,Social Support - Support for Carer,5105693546,21.12.2018,Westminster House,Catering Purchases,10.43,FARMHOUSE FAYRE (NEWPORT) LIMITED
Revenue,Place,Housing Services,Homelessness,5105693690,27.12.2018,Leaseholds by LA,Accommodation Costs - Leaseholder Payments,216.66,BRAMBLE LETTINGS
Revenue,Place,Housing Services,Homelessness,5105693691,27.12.2018,Leaseholds by LA,Accommodation Costs - Leaseholder Payments,695.89,REDACTED PERSONAL DATA
Revenue,Place,Housing Services,Homelessness,5105693691,27.12.2018,Leaseholds by LA,Accommodation Costs - Leaseholder Payments,695.89,REDACTED PERSONAL DATA
Revenue,Childrens Services,Children's & Education Services,Children Looked After,5105691752,07.12.2018,Adoption Costs,Support Children,43.79,REDACTED PERSONAL DATA
Revenue,Childrens Services,Children's & Education Services,Children Looked After,5105691752,07.12.2018,Adoption Costs,Support Children,38.14,REDACTED PERSONAL DATA
Revenue,Childrens Services,Children's & Education Services,Children Looked After,5105691752,07.12.2018,Adoption Costs,Support Children,38.14,REDACTED PERSONAL DATA
Revenue,Childrens Services,Children's & Education Services,Children Looked After,5105691776,07.12.2018,Adoption Costs,Support Children,64.57,REDACTED PERSONAL DATA
Revenue,Childrens Services,Children's & Education Services,Children Looked After,5105691776,07.12.2018,Adoption Costs,Support Children,64.58,REDACTED PERSONAL DATA
Revenue,Adult Services,Adult Social Care,Social Support - Support for Carer,5105693547,21.12.2018,Westminster House,Catering Purchases,24.75,FARMHOUSE FAYRE (NEWPORT) LIMITED
Revenue,Adult Services,Adult Social Care,Central Codes (to be reallocated),5105693560,27.12.2018,Gouldings Resource Centre,Catering Purchases,-4.00,3663 (BFS GROUP LTD)
Revenue,Regeneration,Planning services,Economic Development,5105693564,21.12.2018,Director of Regeneration,Professional Services,240.00,JONES LANG LASALLE LTD
Revenue,Regeneration,Planning services,Economic Development,5105693565,21.12.2018,Director of Regeneration,Professional Services,"12,450.00",JONES LANG LASALLE LTD
Revenue,Adult Services,Adult Social Care,Assistive Equipment & Technology,5105693583,21.12.2018,Community Equipment Store,General Materials,14.98,W HURST & SON (IW) LTD
Revenue,Neighbourhoods,Environmental & Regulatory Services,Waste Disposal,5105693596,21.12.2018,Waste Disposal - Amey Contract,Waste Contractors,"172,324.10",AMEY (IOW) SPV LIMITED
Revenue,Neighbourhoods,Environmental & Regulatory Services,Recycling,5105693596,21.12.2018,Waste Recycling - Amey Contract,Waste Contractors,"16,710.24",AMEY (IOW) SPV LIMITED
Revenue,Neighbourhoods,Environmental & Regulatory Services,Waste Disposal,5105693597,21.12.2018,Waste Disposal - Amey Contract,Waste Contractors,745.84,AMEY (IOW) SPV LIMITED
Revenue,Neighbourhoods,Environmental & Regulatory Services,Waste Disposal,5105693598,21.12.2018,Waste Disposal - Amey Contract,Waste Contractors,745.84,AMEY (IOW) SPV LIMITED
Revenue,Neighbourhoods,Environmental & Regulatory Services,Waste Disposal,5105693599,21.12.2018,Waste Disposal - Amey Contract,Waste Contractors,"172,324.10",AMEY (IOW) SPV LIMITED
Revenue,Neighbourhoods,Environmental & Regulatory Services,Recycling,5105693599,21.12.2018,Waste Recycling - Amey Contract,Waste Contractors,"16,710.24",AMEY (IOW) SPV LIMITED
Revenue,Adult Services,Adult Social Care,Assistive Equipment & Technology,5105693610,21.12.2018,Community Equipment Store,General Materials,265.80,W HURST & SON (IW) LTD
Revenue,Place,Housing Services,Homelessness,5105693664,27.12.2018,Leaseholds by LA,Accommodation Costs - Leaseholder Payments,881.44,HUNNYHILL PROPERTIES LTD
Revenue,Place,Housing Services,Homelessness,5105693664,27.12.2018,Leaseholds by LA,Accommodation Costs - Leaseholder Payments,695.89,HUNNYHILL PROPERTIES LTD
Revenue,Place,Housing Services,Homelessness,5105693665,27.12.2018,Leaseholds by LA,Accommodation Costs - Leaseholder Payments,695.89,REDACTED PERSONAL DATA
Revenue,Place,Housing Services,Homelessness,5105693665,27.12.2018,Leaseholds by LA,Accommodation Costs - Leaseholder Payments,695.89,REDACTED PERSONAL DATA
Revenue,Place,Housing Services,Homelessness,5105693665,27.12.2018,Leaseholds by LA,Accommodation Costs - Leaseholder Payments,695.89,REDACTED PERSONAL DATA
Revenue,Place,Housing Services,Homelessness,5105693665,27.12.2018,Leaseholds by LA,Accommodation Costs - Leaseholder Payments,695.89,REDACTED PERSONAL DATA
Revenue,Place,Housing Services,Homelessness,5105693665,27.12.2018,Leaseholds by LA,Accommodation Costs - Leaseholder Payments,695.89,REDACTED PERSONAL DATA
Revenue,Place,Housing Services,Homelessness,5105693666,27.12.2018,Leaseholds by LA,Accommodation Costs - Leaseholder Payments,780.00,REDACTED PERSONAL DATA
Revenue,Place,Housing Services,Homelessness,5105693667,27.12.2018,Leaseholds by LA,Accommodation Costs - Leaseholder Payments,859.95,REDACTED PERSONAL DATA
Revenue,Place,Housing Services,Homelessness,5105693668,27.12.2018,Leaseholds by LA,Accommodation Costs - Leaseholder Payments,866.67,REDACTED PERSONAL DATA
Revenue,Place,Housing Services,Homelessness,5105693668,27.12.2018,Leaseholds by LA,Accommodation Costs - Leaseholder Payments,799.50,REDACTED PERSONAL DATA
Revenue,Place,Housing Services,Homelessness,5105693669,27.12.2018,Leaseholds by LA,Accommodation Costs - Leaseholder Payments,888.33,REDACTED PERSONAL DATA
Revenue,Place,Housing Services,Homelessness,5105693670,27.12.2018,Leaseholds by LA,Accommodation Costs - Leaseholder Payments,788.67,REDACTED PERSONAL DATA
Revenue,Place,Housing Services,Homelessness,5105693671,27.12.2018,Leaseholds by LA,Accommodation Costs - Leaseholder Payments,649.83,REDACTED PERSONAL DATA
Revenue,Place,Housing Services,Homelessness,5105693672,27.12.2018,Leaseholds by LA,Accommodation Costs - Leaseholder Payments,814.71,REDACTED PERSONAL DATA
Revenue,Place,Housing Services,Homelessness,5105693672,27.12.2018,Leaseholds by LA,Accommodation Costs - Leaseholder Payments,649.83,REDACTED PERSONAL DATA
Revenue,Place,Housing Services,Homelessness,5105693672,27.12.2018,Leaseholds by LA,Accommodation Costs - Leaseholder Payments,649.83,REDACTED PERSONAL DATA
Revenue,Place,Housing Services,Homelessness,5105693672,27.12.2018,Leaseholds by LA,Accommodation Costs - Leaseholder Payments,649.83,REDACTED PERSONAL DATA
Revenue,Place,Housing Services,Homelessness,5105693672,27.12.2018,Leaseholds by LA,Accommodation Costs - Leaseholder Payments,789.01,REDACTED PERSONAL DATA
Revenue,Place,Housing Services,Homelessness,5105693672,27.12.2018,Leaseholds by LA,Accommodation Costs - Leaseholder Payments,649.83,REDACTED PERSONAL DATA
Revenue,Place,Housing Services,Homelessness,5105693672,27.12.2018,Leaseholds by LA,Accommodation Costs - Leaseholder Payments,649.83,REDACTED PERSONAL DATA
Revenue,Place,Housing Services,Homelessness,5105693672,27.12.2018,Leaseholds by LA,Accommodation Costs - Leaseholder Payments,789.01,REDACTED PERSONAL DATA
Revenue,Place,Housing Services,Homelessness,5105693672,27.12.2018,Leaseholds by LA,Accommodation Costs - Leaseholder Payments,789.01,REDACTED PERSONAL DATA
Revenue,Place,Housing Services,Homelessness,5105693672,27.12.2018,Leaseholds by LA,Accommodation Costs - Leaseholder Payments,789.01,REDACTED PERSONAL DATA
Revenue,Place,Housing Services,Homelessness,5105693672,27.12.2018,Leaseholds by LA,Accommodation Costs - Leaseholder Payments,814.71,REDACTED PERSONAL DATA
Revenue,Place,Housing Services,Homelessness,5105693672,27.12.2018,Leaseholds by LA,Accommodation Costs - Leaseholder Payments,835.08,REDACTED PERSONAL DATA
Revenue,Place,Housing Services,Homelessness,5105693672,27.12.2018,Leaseholds by LA,Accommodation Costs - Leaseholder Payments,649.83,REDACTED PERSONAL DATA
Revenue,Place,Housing Services,Homelessness,5105693672,27.12.2018,Leaseholds by LA,Accommodation Costs - Leaseholder Payments,600.00,REDACTED PERSONAL DATA
Revenue,Place,Housing Services,Homelessness,5105693673,27.12.2018,Leaseholds by LA,Accommodation Costs - Leaseholder Payments,742.26,REDACTED PERSONAL DATA
Revenue,Place,Housing Services,Homelessness,5105693674,27.12.2018,Leaseholds by LA,Accommodation Costs - Leaseholder Payments,799.50,REDACTED PERSONAL DATA
Revenue,Place,Housing Services,Homelessness,5105693674,27.12.2018,Leaseholds by LA,Accommodation Costs - Leaseholder Payments,799.50,REDACTED PERSONAL DATA
Revenue,Place,Housing Services,Homelessness,5105693674,27.12.2018,Leaseholds by LA,Accommodation Costs - Leaseholder Payments,977.17,REDACTED PERSONAL DATA
Revenue,Place,Housing Services,Homelessness,5105693674,27.12.2018,Leaseholds by LA,Accommodation Costs - Leaseholder Payments,927.85,REDACTED PERSONAL DATA
Revenue,Place,Housing Services,Homelessness,5105693674,27.12.2018,Leaseholds by LA,Accommodation Costs - Leaseholder Payments,799.50,REDACTED PERSONAL DATA
Revenue,Place,Housing Services,Homelessness,5105693674,27.12.2018,Leaseholds by LA,Accommodation Costs - Leaseholder Payments,799.50,REDACTED PERSONAL DATA
Revenue,Place,Housing Services,Homelessness,5105693675,27.12.2018,Leaseholds by LA,Accommodation Costs - Leaseholder Payments,510.25,REDACTED PERSONAL DATA
Revenue,Place,Housing Services,Homelessness,5105693675,27.12.2018,Leaseholds by LA,Accommodation Costs - Leaseholder Payments,510.25,REDACTED PERSONAL DATA
Revenue,Place,Housing Services,Homelessness,5105693675,27.12.2018,Leaseholds by LA,Accommodation Costs - Leaseholder Payments,510.25,REDACTED PERSONAL DATA
Revenue,Place,Housing Services,Homelessness,5105693675,27.12.2018,Leaseholds by LA,Accommodation Costs - Leaseholder Payments,510.25,REDACTED PERSONAL DATA
Revenue,Place,Housing Services,Homelessness,5105693675,27.12.2018,Leaseholds by LA,Accommodation Costs - Leaseholder Payments,510.25,REDACTED PERSONAL DATA
Revenue,Place,Housing Services,Homelessness,5105693675,27.12.2018,Leaseholds by LA,Accommodation Costs - Leaseholder Payments,510.25,REDACTED PERSONAL DATA
Revenue,Place,Housing Services,Homelessness,5105693676,27.12.2018,Leaseholds by LA,Accommodation Costs - Leaseholder Payments,835.08,REDACTED PERSONAL DATA
Revenue,Place,Housing Services,Homelessness,5105693677,27.12.2018,Leaseholds by LA,Accommodation Costs - Leaseholder Payments,799.50,REDACTED PERSONAL DATA
Revenue,Place,Housing Services,Homelessness,5105693678,27.12.2018,Leaseholds by LA,Accommodation Costs - Leaseholder Payments,866.67,2K PROPERTY
Revenue,Place,Housing Services,Homelessness,5105693679,27.12.2018,Leaseholds by LA,Accommodation Costs - Leaseholder Payments,799.50,REDACTED PERSONAL DATA
Revenue,Place,Housing Services,Homelessness,5105693680,27.12.2018,Leaseholds by LA,Accommodation Costs - Leaseholder Payments,799.50,REDACTED PERSONAL DATA
Revenue,Place,Housing Services,Homelessness,5105693681,27.12.2018,Leaseholds by LA,Accommodation Costs - Leaseholder Payments,799.50,REDACTED PERSONAL DATA
Revenue,Place,Housing Services,Homelessness,5105693682,27.12.2018,Leaseholds by LA,Accommodation Costs - Leaseholder Payments,780.00,REDACTED PERSONAL DATA
Revenue,Place,Housing Services,Homelessness,5105693682,27.12.2018,Leaseholds by LA,Accommodation Costs - Leaseholder Payments,780.00,REDACTED PERSONAL DATA
Revenue,Place,Housing Services,Homelessness,5105693682,27.12.2018,Leaseholds by LA,Accommodation Costs - Leaseholder Payments,780.00,REDACTED PERSONAL DATA
Revenue,Place,Housing Services,Homelessness,5105693682,27.12.2018,Leaseholds by LA,Accommodation Costs - Leaseholder Payments,742.26,REDACTED PERSONAL DATA
Revenue,Place,Housing Services,Homelessness,5105693683,27.12.2018,Leaseholds by LA,Accommodation Costs - Leaseholder Payments,866.67,REDACTED PERSONAL DATA
Revenue,Place,Housing Services,Homelessness,5105693684,27.12.2018,Leaseholds by LA,Accommodation Costs - Leaseholder Payments,780.00,REDACTED PERSONAL DATA
Revenue,Place,Housing Services,Homelessness,5105693684,27.12.2018,Leaseholds by LA,Accommodation Costs - Leaseholder Payments,780.00,REDACTED PERSONAL DATA
Revenue,Place,Housing Services,Homelessness,5105693685,27.12.2018,Leaseholds by LA,Accommodation Costs - Leaseholder Payments,780.00,REDACTED PERSONAL DATA
Revenue,Place,Housing Services,Homelessness,5105693686,27.12.2018,Leaseholds by LA,Accommodation Costs - Leaseholder Payments,769.43,REDACTED PERSONAL DATA
Revenue,Place,Housing Services,Homelessness,5105693687,27.12.2018,Leaseholds by LA,Accommodation Costs - Leaseholder Payments,678.90,REDACTED PERSONAL DATA
Revenue,Place,Housing Services,Homelessness,5105693689,27.12.2018,Leaseholds by LA,Accommodation Costs - Leaseholder Payments,780.00,ISLAND LETTINGS LTD
Revenue,Place,Housing Services,Homelessness,5105693689,27.12.2018,Leaseholds by LA,Accommodation Costs - Leaseholder Payments,888.33,ISLAND LETTINGS LTD
Revenue,Place,Housing Services,Homelessness,5105693690,27.12.2018,Leaseholds by LA,Accommodation Costs - Leaseholder Payments,746.81,BRAMBLE LETTINGS
Revenue,Place,Housing Services,Homelessness,5105693690,27.12.2018,Leaseholds by LA,Accommodation Costs - Leaseholder Payments,746.81,BRAMBLE LETTINGS
Revenue,Place,Housing Services,Homelessness,5105693690,27.12.2018,Leaseholds by LA,Accommodation Costs - Leaseholder Payments,746.81,BRAMBLE LETTINGS
Revenue,Place,Housing Services,Homelessness,5105693690,27.12.2018,Leaseholds by LA,Accommodation Costs - Leaseholder Payments,746.81,BRAMBLE LETTINGS
Revenue,Place,Housing Services,Homelessness,5105693690,27.12.2018,Leaseholds by LA,Accommodation Costs - Leaseholder Payments,746.81,BRAMBLE LETTINGS
Revenue,Place,Housing Services,Homelessness,5105693690,27.12.2018,Leaseholds by LA,Accommodation Costs - Leaseholder Payments,588.38,BRAMBLE LETTINGS
Revenue,Place,Housing Services,Homelessness,5105693690,27.12.2018,Leaseholds by LA,Accommodation Costs - Leaseholder Payments,588.38,BRAMBLE LETTINGS
Revenue,Place,Housing Services,Homelessness,5105693690,27.12.2018,Leaseholds by LA,Accommodation Costs - Leaseholder Payments,588.38,BRAMBLE LETTINGS
Revenue,Place,Housing Services,Homelessness,5105693690,27.12.2018,Leaseholds by LA,Accommodation Costs - Leaseholder Payments,588.38,BRAMBLE LETTINGS
Revenue,Place,Housing Services,Homelessness,5105693690,27.12.2018,Leaseholds by LA,Accommodation Costs - Leaseholder Payments,588.38,BRAMBLE LETTINGS
Revenue,Place,Housing Services,Homelessness,5105693690,27.12.2018,Leaseholds by LA,Accommodation Costs - Leaseholder Payments,746.81,BRAMBLE LETTINGS
Revenue,Place,Housing Services,Homelessness,5105693690,27.12.2018,Leaseholds by LA,Accommodation Costs - Leaseholder Payments,588.38,BRAMBLE LETTINGS
Revenue,Place,Housing Services,Homelessness,5105693690,27.12.2018,Leaseholds by LA,Accommodation Costs - Leaseholder Payments,746.81,BRAMBLE LETTINGS
Revenue,Place,Housing Services,Homelessness,5105693690,27.12.2018,Leaseholds by LA,Accommodation Costs - Leaseholder Payments,769.43,BRAMBLE LETTINGS
Revenue,Place,Housing Services,Homelessness,5105693690,27.12.2018,Leaseholds by LA,Accommodation Costs - Leaseholder Payments,746.81,BRAMBLE LETTINGS
Revenue,Place,Housing Services,Homelessness,5105693690,27.12.2018,Leaseholds by LA,Accommodation Costs - Leaseholder Payments,746.81,BRAMBLE LETTINGS
Revenue,Place,Housing Services,Homelessness,5105693690,27.12.2018,Leaseholds by LA,Accommodation Costs - Leaseholder Payments,746.81,BRAMBLE LETTINGS
Revenue,Place,Housing Services,Homelessness,5105693690,27.12.2018,Leaseholds by LA,Accommodation Costs - Leaseholder Payments,746.81,BRAMBLE LETTINGS
Revenue,Place,Housing Services,Homelessness,5105693690,27.12.2018,Leaseholds by LA,Accommodation Costs - Leaseholder Payments,746.81,BRAMBLE LETTINGS
Revenue,Place,Housing Services,Homelessness,5105693690,27.12.2018,Leaseholds by LA,Accommodation Costs - Leaseholder Payments,746.81,BRAMBLE LETTINGS
Revenue,Place,Housing Services,Homelessness,5105693690,27.12.2018,Leaseholds by LA,Accommodation Costs - Leaseholder Payments,746.81,BRAMBLE LETTINGS
Revenue,Place,Housing Services,Homelessness,5105693692,27.12.2018,Leaseholds by LA,Accommodation Costs - Leaseholder Payments,675.00,PEACOCK HOMES IW LTD
Revenue,Place,Housing Services,Homelessness,5105693694,27.12.2018,Leaseholds by LA,Accommodation Costs - Leaseholder Payments,780.00,REDACTED PERSONAL DATA
Revenue,Place,Housing Services,Homelessness,5105693694,27.12.2018,Leaseholds by LA,Accommodation Costs - Leaseholder Payments,799.50,REDACTED PERSONAL DATA
Revenue,Place,Housing Services,Homelessness,5105693695,27.12.2018,Leaseholds by LA,Accommodation Costs - Leaseholder Payments,780.00,REDACTED PERSONAL DATA
Revenue,Place,Housing Services,Homelessness,5105693695,27.12.2018,Leaseholds by LA,Accommodation Costs - Leaseholder Payments,799.50,REDACTED PERSONAL DATA
Revenue,Place,Housing Services,Homelessness,5105693696,27.12.2018,Leaseholds by LA,Accommodation Costs - Leaseholder Payments,626.30,KANDY COMMERCIAL LTD
Revenue,Place,Housing Services,Homelessness,5105693696,27.12.2018,Leaseholds by LA,Accommodation Costs - Leaseholder Payments,765.48,KANDY COMMERCIAL LTD
Revenue,Place,Housing Services,Homelessness,5105693696,27.12.2018,Leaseholds by LA,Accommodation Costs - Leaseholder Payments,579.89,KANDY COMMERCIAL LTD
Revenue,Place,Housing Services,Homelessness,5105693696,27.12.2018,Leaseholds by LA,Accommodation Costs - Leaseholder Payments,579.89,KANDY COMMERCIAL LTD
Revenue,Place,Housing Services,Homelessness,5105693696,27.12.2018,Leaseholds by LA,Accommodation Costs - Leaseholder Payments,672.66,KANDY COMMERCIAL LTD
Revenue,Place,Housing Services,Homelessness,5105693696,27.12.2018,Leaseholds by LA,Accommodation Costs - Leaseholder Payments,672.66,KANDY COMMERCIAL LTD
Revenue,Place,Housing Services,Homelessness,5105693697,27.12.2018,Leaseholds by LA,Accommodation Costs - Leaseholder Payments,977.17,REDACTED PERSONAL DATA
Revenue,Place,Housing Services,Homelessness,5105693698,27.12.2018,Leaseholds by LA,Accommodation Costs - Leaseholder Payments,672.66,REDACTED PERSONAL DATA
Revenue,Place,Housing Services,Homelessness,5105693699,27.12.2018,Leaseholds by LA,Accommodation Costs - Leaseholder Payments,780.00,REDACTED PERSONAL DATA
Revenue,Place,Housing Services,Homelessness,5105693700,27.12.2018,Leaseholds by LA,Accommodation Costs - Leaseholder Payments,649.83,MAHER ROSS LTD
Revenue,Place,Housing Services,Homelessness,5105693700,27.12.2018,Leaseholds by LA,Accommodation Costs - Leaseholder Payments,789.01,MAHER ROSS LTD
Revenue,Place,Housing Services,Homelessness,5105693700,27.12.2018,Leaseholds by LA,Accommodation Costs - Leaseholder Payments,835.08,MAHER ROSS LTD
Revenue,Place,Housing Services,Homelessness,5105693700,27.12.2018,Leaseholds by LA,Accommodation Costs - Leaseholder Payments,700.00,MAHER ROSS LTD
Capital,Corporate Items,Balance Sheet,Balance Sheet,5105693751,27.12.2018,Balance Sheet,Order Settlement to Bal Sht GL,464.88,KITE HILL NURSING HOME
Capital,Corporate Items,Balance Sheet,Balance Sheet,5105693752,27.12.2018,Balance Sheet,Order Settlement to Bal Sht GL,"1,209.88",OLD CHARLTON HOUSE CARE HOME
Revenue,Adult Services,Balance Sheet,Balance Sheet,5105693754,27.12.2018,REDACTED PERSONAL DATA,Order Settlement to Bal Sht GL,"2,342.48",ISLANDCARE LTD
Capital,Corporate Items,Balance Sheet,Balance Sheet,5105693768,27.12.2018,Balance Sheet,Order Settlement to Bal Sht GL,200.20,ISLAND HEALTHCARE LTD
Revenue,Adult Services,Balance Sheet,Balance Sheet,5105693784,27.12.2018,REDACTED PERSONAL DATA,Order Settlement to Bal Sht GL,"1,992.48",ST VINCENT CARE HOMES
Revenue,Adult Services,Balance Sheet,Balance Sheet,5105693784,27.12.2018,REDACTED PERSONAL DATA,Order Settlement to Bal Sht GL,"1,073.52",ST VINCENT CARE HOMES
Capital,Corporate Items,Balance Sheet,Balance Sheet,5105693787,27.12.2018,Balance Sheet,Order Settlement to Bal Sht GL,99.96,ISLAND HEALTHCARE LTD
Revenue,Adult Services,Balance Sheet,Balance Sheet,5105693791,27.12.2018,REDACTED PERSONAL DATA,Order Settlement to Bal Sht GL,"2,621.36",THE ORCHARD HOUSE CARE HOME
Capital,Corporate Items,Balance Sheet,Balance Sheet,5105693792,27.12.2018,Balance Sheet,Order Settlement to Bal Sht GL,92.12,BUCKLAND CARE LTD
Revenue,Adult Services,Balance Sheet,Balance Sheet,5105693796,27.12.2018,REDACTED PERSONAL DATA,Order Settlement to Bal Sht GL,"2,621.36",LONDON RESIDENTIAL HEALTHCARE
Revenue,Adult Services,Adult Social Care,Learning Disab Supp (to be reallocated),5105693838,27.12.2018,Saxonbury,Agency staff,188.77,NEWCROSS HEALTHCARE SOLUTIONS LTD
Revenue,Adult Services,Adult Social Care,Social Care Activities,5105693860,27.12.2018,First Response,Agency staff,"1,609.67",MATRIX SCM LTD
Revenue,Adult Services,Adult Social Care,Social Care Activities,5105693860,27.12.2018,First Response,Agency staff,"1,638.92",MATRIX SCM LTD
Revenue,Adult Services,Adult Social Care,Social Care Activities,5105693860,27.12.2018,First Response,Agency staff,641.52,MATRIX SCM LTD
Revenue,Adult Services,Adult Social Care,Learning Disab Supp (to be reallocated),5105693884,27.12.2018,Plean Dene,Agency staff,515.22,NEWCROSS HEALTHCARE SOLUTIONS LTD
Revenue,Adult Services,Adult Social Care,Social Support - Support for Carer,5105693911,27.12.2018,Westminster House,Catering Purchases,37.90,FARMHOUSE FAYRE (NEWPORT) LIMITED
Revenue,Adult Services,Adult Social Care,Central Codes (to be reallocated),5105693919,27.12.2018,Gouldings Resource Centre,Catering Purchases,212.01,3663 (BFS GROUP LTD)
Revenue,Adult Services,Adult Social Care,Central Codes (to be reallocated),5105693919,27.12.2018,Gouldings Resource Centre,Catering Purchases,11.43,3663 (BFS GROUP LTD)
Revenue,Adult Services,Adult Social Care,Learning Disab Supp (to be reallocated),5105693923,27.12.2018,Plean Dene,Catering Purchases,207.42,BOOKER CASH & CARRY LTD
Revenue,Adult Services,Adult Social Care,Learning Disab Supp (to be reallocated),5105693923,27.12.2018,Plean Dene,Catering Purchases,25.95,BOOKER CASH & CARRY LTD
Revenue,Place,Housing Services,Homelessness,5105693924,27.12.2018,Leaseholds by LA,Accommodation Costs - Leaseholder Payments,"9,543.89",VECTIS HOUSING ASSOCIATION LTD
Revenue,Childrens Services,Children's & Education Services,Children Looked After,5105693940,27.12.2018,Adoption Costs,Support Children,168.39,REDACTED PERSONAL DATA
Revenue,Childrens Services,Children's & Education Services,Children Looked After,5105693940,27.12.2018,Adoption Costs,Support Children,207.73,REDACTED PERSONAL DATA
Revenue,Childrens Services,Children's & Education Services,Children Looked After,5105693941,27.12.2018,Adoption Costs,Support Children,168.39,REDACTED PERSONAL DATA
Revenue,Childrens Services,Children's & Education Services,Children Looked After,5105693942,27.12.2018,Adoption Costs,Support Children,168.39,REDACTED PERSONAL DATA
Revenue,Childrens Services,Children's & Education Services,Children Looked After,5105693942,27.12.2018,Adoption Costs,Support Children,207.73,REDACTED PERSONAL DATA
Revenue,Childrens Services,Children's & Education Services,Children Looked After,5105693943,27.12.2018,Adoption Costs,Support Children,207.73,REDACTED PERSONAL DATA
Revenue,Childrens Services,Children's & Education Services,Children Looked After,5105693943,27.12.2018,Adoption Costs,Support Children,168.39,REDACTED PERSONAL DATA
Revenue,Childrens Services,Children's & Education Services,Children Looked After,5105693943,27.12.2018,Adoption Costs,Support Children,168.39,REDACTED PERSONAL DATA
Revenue,Childrens Services,Children's & Education Services,Children Looked After,5105693943,27.12.2018,Adoption Costs,Support Children,132.69,REDACTED PERSONAL DATA
Revenue,Childrens Services,Children's & Education Services,Children Looked After,5105693944,27.12.2018,Adoption Costs,Support Children,225.83,REDACTED PERSONAL DATA
Revenue,Childrens Services,Children's & Education Services,Children Looked After,5105693945,27.12.2018,Adoption Costs,Support Children,132.69,REDACTED PERSONAL DATA
Revenue,Childrens Services,Children's & Education Services,Children Looked After,5105693946,27.12.2018,Adoption Costs,Support Children,178.30,REDACTED PERSONAL DATA
Revenue,Childrens Services,Children's & Education Services,Children Looked After,5105693946,27.12.2018,Adoption Costs,Support Children,146.30,REDACTED PERSONAL DATA
Revenue,Childrens Services,Children's & Education Services,Children Looked After,5105693947,27.12.2018,Adoption Costs,Support Children,168.39,REDACTED PERSONAL DATA
Revenue,Childrens Services,Children's & Education Services,Children Looked After,5105693949,27.12.2018,Adoption Costs,Support Children,71.74,REDACTED PERSONAL DATA
Revenue,Childrens Services,Children's & Education Services,Children Looked After,5105693949,27.12.2018,Adoption Costs,Support Children,71.74,REDACTED PERSONAL DATA
Revenue,Childrens Services,Children's & Education Services,Children Looked After,5105693951,27.12.2018,Adoption Costs,Support Children,168.39,REDACTED PERSONAL DATA
Revenue,Childrens Services,Children's & Education Services,Children Looked After,5105693954,27.12.2018,Adoption Costs,Support Children,207.73,REDACTED PERSONAL DATA
Revenue,Childrens Services,Children's & Education Services,Children Looked After,5105693954,27.12.2018,Adoption Costs,Support Children,168.39,REDACTED PERSONAL DATA
Revenue,Childrens Services,Children's & Education Services,Children Looked After,5105693959,27.12.2018,Adoption Costs,Support Children,207.73,REDACTED PERSONAL DATA
Revenue,Childrens Services,Children's & Education Services,Children Looked After,5105693961,27.12.2018,Adoption Costs,Support Children,168.39,REDACTED PERSONAL DATA
Revenue,Childrens Services,Children's & Education Services,Children Looked After,5105693969,27.12.2018,Adoption Costs,Support Children,168.39,REDACTED PERSONAL DATA
Revenue,Childrens Services,Children's & Education Services,Children Looked After,5105693970,27.12.2018,Adoption Costs,Support Children,132.69,REDACTED PERSONAL DATA
Revenue,Childrens Services,Children's & Education Services,Children Looked After,5105693973,27.12.2018,Adoption Costs,Support Children,207.73,REDACTED PERSONAL DATA
Revenue,Childrens Services,Children's & Education Services,Children Looked After,5105693973,27.12.2018,Adoption Costs,Support Children,207.73,REDACTED PERSONAL DATA
Revenue,Childrens Services,Children's & Education Services,Children Looked After,5105693987,27.12.2018,Adoption Costs,Support Children,44.43,REDACTED PERSONAL DATA
Revenue,Childrens Services,Children's & Education Services,Children Looked After,5105693994,27.12.2018,Adoption Costs,Support Children,132.69,REDACTED PERSONAL DATA
Revenue,Childrens Services,Children's & Education Services,Children Looked After,5105694004,27.12.2018,Adoption Costs,Support Children,161.49,REDACTED PERSONAL DATA
Revenue,Childrens Services,Children's & Education Services,Children Looked After,5105694004,27.12.2018,Adoption Costs,Support Children,168.09,REDACTED PERSONAL DATA
Revenue,Childrens Services,Children's & Education Services,Children Looked After,5105694017,27.12.2018,Adoption Costs,Support Children,43.79,REDACTED PERSONAL DATA
Revenue,Childrens Services,Children's & Education Services,Children Looked After,5105694017,27.12.2018,Adoption Costs,Support Children,38.14,REDACTED PERSONAL DATA
Revenue,Childrens Services,Children's & Education Services,Children Looked After,5105694017,27.12.2018,Adoption Costs,Support Children,38.14,REDACTED PERSONAL DATA
Revenue,Childrens Services,Children's & Education Services,Children Looked After,5105694045,27.12.2018,Adoption Costs,Support Children,64.57,REDACTED PERSONAL DATA
Revenue,Childrens Services,Children's & Education Services,Children Looked After,5105694045,27.12.2018,Adoption Costs,Support Children,64.58,REDACTED PERSONAL DATA
Revenue,Childrens Services,Children's & Education Services,Children Looked After,5105691690,07.12.2018,Adoption Costs,Support Children,168.39,REDACTED PERSONAL DATA
Revenue,Childrens Services,Children's & Education Services,Children Looked After,5105691690,07.12.2018,Adoption Costs,Support Children,207.73,REDACTED PERSONAL DATA
Revenue,Childrens Services,Children's & Education Services,Children Looked After,5105691691,07.12.2018,Adoption Costs,Support Children,168.39,REDACTED PERSONAL DATA
Revenue,Childrens Services,Children's & Education Services,Children Looked After,5105691692,07.12.2018,Adoption Costs,Support Children,168.39,REDACTED PERSONAL DATA
Revenue,Childrens Services,Children's & Education Services,Children Looked After,5105691692,07.12.2018,Adoption Costs,Support Children,207.73,REDACTED PERSONAL DATA
Revenue,Childrens Services,Children's & Education Services,Children Looked After,5105691693,07.12.2018,Adoption Costs,Support Children,207.73,REDACTED PERSONAL DATA
Revenue,Childrens Services,Children's & Education Services,Children Looked After,5105691693,07.12.2018,Adoption Costs,Support Children,168.39,REDACTED PERSONAL DATA
Revenue,Childrens Services,Children's & Education Services,Children Looked After,5105691693,07.12.2018,Adoption Costs,Support Children,168.39,REDACTED PERSONAL DATA
Revenue,Childrens Services,Children's & Education Services,Children Looked After,5105691693,07.12.2018,Adoption Costs,Support Children,132.69,REDACTED PERSONAL DATA
Revenue,Childrens Services,Children's & Education Services,Children Looked After,5105691694,07.12.2018,Adoption Costs,Support Children,225.83,REDACTED PERSONAL DATA
Revenue,Childrens Services,Children's & Education Services,Children Looked After,5105691695,07.12.2018,Adoption Costs,Support Children,132.69,REDACTED PERSONAL DATA
Revenue,Childrens Services,Children's & Education Services,Children Looked After,5105691696,07.12.2018,Adoption Costs,Support Children,178.30,REDACTED PERSONAL DATA
Revenue,Childrens Services,Children's & Education Services,Children Looked After,5105691696,07.12.2018,Adoption Costs,Support Children,146.30,REDACTED PERSONAL DATA
Revenue,Childrens Services,Children's & Education Services,Children Looked After,5105691697,07.12.2018,Adoption Costs,Support Children,168.39,REDACTED PERSONAL DATA
Revenue,Childrens Services,Children's & Education Services,Children Looked After,5105691699,07.12.2018,Adoption Costs,Support Children,71.74,REDACTED PERSONAL DATA
Revenue,Childrens Services,Children's & Education Services,Children Looked After,5105691699,07.12.2018,Adoption Costs,Support Children,71.74,REDACTED PERSONAL DATA
Revenue,Childrens Services,Children's & Education Services,Children Looked After,5105691701,19.12.2018,Adoption Costs,Support Children,168.39,REDACTED PERSONAL DATA
Revenue,Childrens Services,Children's & Education Services,Children Looked After,5105691704,07.12.2018,Adoption Costs,Support Children,207.73,REDACTED PERSONAL DATA
Revenue,Childrens Services,Children's & Education Services,Children Looked After,5105691704,07.12.2018,Adoption Costs,Support Children,168.39,REDACTED PERSONAL DATA
Revenue,Childrens Services,Children's & Education Services,Children Looked After,5105691709,07.12.2018,Adoption Costs,Support Children,207.73,REDACTED PERSONAL DATA
Revenue,Childrens Services,Children's & Education Services,Children Looked After,5105691711,07.12.2018,Adoption Costs,Support Children,168.39,REDACTED PERSONAL DATA
Revenue,Childrens Services,Children's & Education Services,Children Looked After,5105691719,07.12.2018,Adoption Costs,Support Children,168.39,REDACTED PERSONAL DATA
Revenue,Childrens Services,Children's & Education Services,Children Looked After,5105691720,07.12.2018,Adoption Costs,Support Children,132.69,REDACTED PERSONAL DATA
Revenue,Childrens Services,Children's & Education Services,Children Looked After,5105691723,07.12.2018,Adoption Costs,Support Children,207.73,REDACTED PERSONAL DATA
Revenue,Childrens Services,Children's & Education Services,Children Looked After,5105691723,07.12.2018,Adoption Costs,Support Children,207.73,REDACTED PERSONAL DATA
Revenue,Childrens Services,Children's & Education Services,Children Looked After,5105691729,07.12.2018,Adoption Costs,Support Children,44.43,REDACTED PERSONAL DATA
Revenue,Childrens Services,Children's & Education Services,Children Looked After,5105691735,07.12.2018,Adoption Costs,Support Children,132.69,REDACTED PERSONAL DATA
Revenue,Childrens Services,Children's & Education Services,Children Looked After,5105691745,07.12.2018,Adoption Costs,Support Children,161.49,REDACTED PERSONAL DATA
Revenue,Childrens Services,Children's & Education Services,Children Looked After,5105691745,07.12.2018,Adoption Costs,Support Children,168.09,REDACTED PERSONAL DATA
Revenue,Adult Services,Adult Social Care,Assistive Equipment & Technology,5105681991,07.12.2018,Community Equipment Store,Operational Equipment,192.20,DRIVE MEDICAL LTD
Revenue,Childrens Services,Children's & Education Services,Other Education and Community Budget,5105685920,07.12.2018,Learning & Development Running Costs,Stationery,31.86,SUPPLIES TEAM LTD
Revenue,Childrens Services,Children's & Education Services,Management & Support Services,5105685920,07.12.2018,Education Out of School,Stationery,0.96,SUPPLIES TEAM LTD
Revenue,Childrens Services,Children's & Education Services,Other Education and Community Budget,5105685920,07.12.2018,Learning & Development Running Costs,Stationery,1.72,SUPPLIES TEAM LTD
Revenue,Adult Services,Adult Social Care,Assistive Equipment & Technology,5105686626,07.12.2018,Community Equipment Store,Operational Equipment,742.00,G & S SMIRTHWAITE LTD
Revenue,Adult Services,Adult Social Care,Assistive Equipment & Technology,5105687094,19.12.2018,Community Equipment Store,Operational Equipment,9.06,DRIVE MEDICAL LTD
Revenue,Childrens Services,Children's & Education Services,Other Education and Community Budget,5105688389,21.12.2018,Home to School SEN Transport (LA),Taxis - Contract Hire,633.33,MINIBUS-PLUS.COM/TOP TAXI
Revenue,Adult Services,Adult Social Care,Assistive Equipment & Technology,5105689459,05.12.2018,Community Equipment Store,Operational Equipment,"1,945.00",AAT GB LTD
Revenue,Neighbourhoods,Cultural and Related Services,Recreation and Sport,5105690485,05.12.2018,Medina Leisure Centre,Property Services - Day to day Maintenance,379.00,AIRTEK SERVICES IOW LTD
Revenue,Childrens Services,Children's & Education Services,Other Education and Community Budget,5105690723,07.12.2018,Home to School SEN Transport (LA),Transport of Clients,24.60,WIGHTLINK LTD
Revenue,Childrens Services,Children's & Education Services,Children Looked After,5105690738,05.12.2018,Adoption Costs,Charges from Independent Providers,160.00,BARNARDO'S
Revenue,Childrens Services,Children's & Education Services,Children Looked After,5105690739,05.12.2018,Adoption Costs,Charges from Independent Providers,840.00,BARNARDO'S
Revenue,Adult Services,Adult Social Care,Assistive Equipment & Technology,5105690743,14.12.2018,Community Equipment Store,Operational Equipment,315.00,JAMES LECKEY DESIGN LTD
Revenue,Adult Services,Adult Social Care,Central Codes (to be reallocated),5105690763,05.12.2018,Gouldings Resource Centre,Property Services - Day to day Maintenance,406.48,A & M APPLIANCE CARE
Revenue,Childrens Services,Children's & Education Services,Other Education and Community Budget,5105690914,05.12.2018,Home to School SEN Transport (LA),Transport of Clients,17.00,RED FUNNEL GROUP
Revenue,Childrens Services,Children's & Education Services,Other Education and Community Budget,5105690938,05.12.2018,Home to School SEN Transport (LA),Taxis - Contract Hire,450.00,LAKE TAXI
Revenue,Adult Services,Adult Social Care,Learning Disab Supp (to be reallocated),5105690951,05.12.2018,Saxonbury,Operational Equipment,249.34,BETA PAK LTD
Revenue,Childrens Services,Children's & Education Services,Safeguarding Children/Young Peoples Svs,5105690971,05.12.2018,Commissioning (Children & Families),Payments to Other Local Authorities,478.91,BOURNEMOUTH BOROUGH COUNCIL
Revenue,Neighbourhoods,Cultural and Related Services,Recreation and Sport,5105690980,21.12.2018,Medina Leisure Centre,Operational Equipment,-33.25,J P LENNARD LTD
Revenue,Childrens Services,Children's & Education Services,Other Education and Community Budget,5105690994,05.12.2018,Home to School SEN Transport (LA),Transport of Clients,17.00,RED FUNNEL GROUP
Revenue,Childrens Services,Children's & Education Services,Other Education and Community Budget,5105690997,07.12.2018,Home to School SEN Transport (LA),Transport of Clients,17.00,RED FUNNEL GROUP
Revenue,Neighbourhoods,Cultural and Related Services,Recreation and Sport,5105691214,07.12.2018,Medina Leisure Centre,Property Services - Day to day Maintenance,830.30,F W MARSH (ELECT & MECH) LTD
Revenue,Adult Services,Adult Social Care,Learning Disab Supp (to be reallocated),5105691286,12.12.2018,Plean Dene,Operational Equipment,214.99,THE CONSORTIUM
Revenue,Adult Services,Adult Social Care,Learning Disab Supp (to be reallocated),5105691296,07.12.2018,Plean Dene,Operational Equipment,131.65,BETA PAK LTD
Revenue,Adult Services,Adult Social Care,Learning Disab Supp (to be reallocated),5105691296,07.12.2018,Plean Dene,Operational Equipment,44.00,BETA PAK LTD
Revenue,Adult Services,Adult Social Care,Assistive Equipment & Technology,5105691378,14.12.2018,Community Equipment Store,Operational Equipment,191.60,COMPLETE CARE NETWORK LTD
Revenue,Childrens Services,Children's & Education Services,Other Education and Community Budget,5105691410,05.12.2018,Home to School SEN Transport (LA),Transport of Clients,17.00,RED FUNNEL GROUP
Revenue,Childrens Services,Children's & Education Services,Other Education and Community Budget,5105691417,05.12.2018,Home to School SEN Transport (LA),Transport of Clients,140.80,CAREWATCH (SOUTHAMPTON NEW FOREST & IOW)
Revenue,Childrens Services,Children's & Education Services,Other Education and Community Budget,5105691417,05.12.2018,Home to School SEN Transport (LA),Transport of Clients,281.60,CAREWATCH (SOUTHAMPTON NEW FOREST & IOW)
Revenue,Neighbourhoods,Highways and Transport Services,Management and Support Services,5105692061,12.12.2018,Highways PFI Project,Stationery,21.24,SUPPLIES TEAM LTD
Revenue,Neighbourhoods,Cultural and Related Services,Recreation and Sport,5105692063,07.12.2018,Medina Leisure Centre,Stationery,1.08,SUPPLIES TEAM LTD
Revenue,Neighbourhoods,Cultural and Related Services,Recreation and Sport,5105692063,07.12.2018,Medina Leisure Centre,Stationery,1.56,SUPPLIES TEAM LTD
Revenue,Neighbourhoods,Cultural and Related Services,Recreation and Sport,5105692063,07.12.2018,Medina Leisure Centre,Stationery,0.53,SUPPLIES TEAM LTD
Revenue,Neighbourhoods,Cultural and Related Services,Recreation and Sport,5105692063,07.12.2018,Medina Leisure Centre,Stationery,12.16,SUPPLIES TEAM LTD
Revenue,Neighbourhoods,Cultural and Related Services,Recreation and Sport,5105692063,07.12.2018,Medina Leisure Centre,Stationery,11.54,SUPPLIES TEAM LTD
Revenue,Neighbourhoods,Cultural and Related Services,Recreation and Sport,5105692063,07.12.2018,Medina Leisure Centre,Stationery,0.66,SUPPLIES TEAM LTD
Revenue,Childrens Services,Children's & Education Services,Other Education and Community Budget,5105692074,07.12.2018,SEND Independent Advice & Support,Stationery,0.53,SUPPLIES TEAM LTD
Revenue,Childrens Services,Children's & Education Services,Other Education and Community Budget,5105692074,07.12.2018,SEND Independent Advice & Support,Stationery,1.61,SUPPLIES TEAM LTD
Revenue,Childrens Services,Children's & Education Services,Other Education and Community Budget,5105692074,07.12.2018,SEND Independent Advice & Support,Stationery,21.24,SUPPLIES TEAM LTD
Revenue,Childrens Services,Children's & Education Services,Other Education and Community Budget,5105692074,07.12.2018,SEND Independent Advice & Support,Stationery,0.54,SUPPLIES TEAM LTD
Revenue,Childrens Services,Children's & Education Services,Other Education and Community Budget,5105692074,07.12.2018,SEND Independent Advice & Support,Stationery,1.65,SUPPLIES TEAM LTD
Revenue,Childrens Services,Children's & Education Services,Other Education and Community Budget,5105692088,07.12.2018,Home to School SEN Transport (LA),Taxis - Contract Hire,480.00,REDLINE TAXIS
Revenue,Childrens Services,Children's & Education Services,Other Education and Community Budget,5105692089,07.12.2018,Home to School SEN Transport (LA),Taxis - Contract Hire,680.00,REDLINE TAXIS
Revenue,Childrens Services,Children's & Education Services,Other Education and Community Budget,5105692090,07.12.2018,Home to School SEN Transport (LA),Taxis - Contract Hire,"1,360.00",REDLINE TAXIS
Revenue,Neighbourhoods,Cultural and Related Services,Open Spaces,5105692105,07.12.2018,Rights of Way Operations,Advertising & Publicity,263.52,NEWSQUEST MEDIA GROUP LTD
Revenue,Place,Planning services,Development Control,5105692114,07.12.2018,Development Control,Advertising & Publicity,219.60,NEWSQUEST MEDIA GROUP LTD
Revenue,Place,Planning services,Development Control,5105692117,07.12.2018,Development Control,Advertising & Publicity,98.82,NEWSQUEST MEDIA GROUP LTD
Revenue,Neighbourhoods,Cultural and Related Services,Culture and Heritage,5105692143,07.12.2018,Archaeology,Operational Equipment,25.53,N-VIRO
Revenue,Childrens Services,Children's & Education Services,Other Education and Community Budget,5105692156,07.12.2018,Learning & Development Running Costs,Stationery,-31.86,SUPPLIES TEAM LTD
Revenue,Childrens Services,Children's & Education Services,Management & Support Services,5105692156,07.12.2018,Education Out of School,Stationery,-0.96,SUPPLIES TEAM LTD
Revenue,Childrens Services,Children's & Education Services,Other Education and Community Budget,5105692156,07.12.2018,Learning & Development Running Costs,Stationery,-1.72,SUPPLIES TEAM LTD
Revenue,Childrens Services,Children's & Education Services,Other Education and Community Budget,5105692161,07.12.2018,Home to School SEN Transport (LA),Taxis - Contract Hire,880.00,W W CARS OF SEAVIEW
Revenue,Childrens Services,Children's & Education Services,Other Education and Community Budget,5105692162,07.12.2018,Home to School SEN Transport (LA),Taxis - Contract Hire,"2,200.00",W W CARS OF SEAVIEW
Revenue,Adult Services,Adult Social Care,Social Support - Support for Carer,5105692176,14.12.2018,Westminster House,Operational Equipment,67.90,BETA PAK LTD
Revenue,Adult Services,Adult Social Care,Social Support - Support for Carer,5105692178,12.12.2018,Westminster House,Maintenance of Operational Equipment,90.00,PREMIER MOBILITY SERVICES (IW) LTD
Revenue,Neighbourhoods,Cultural and Related Services,Recreation and Sport,5105692185,07.12.2018,Medina Leisure Centre,Operational Equipment,8.76,LAKE CLEANING & CATERING SUPPLIES
Revenue,Place,Planning services,Development Control,5105692192,07.12.2018,Development Control,Advertising & Publicity,98.82,NEWSQUEST MEDIA GROUP LTD
Revenue,Regeneration,Planning services,Economic Development,5105693036,19.12.2018,Director of Regeneration,Professional Services,528.00,REDACTED PERSONAL DATA
Revenue,Adult Services,Adult Social Care,Learning Disab Supp (to be reallocated),5105693049,19.12.2018,Saxonbury,Agency staff,326.60,NEWCROSS HEALTHCARE SOLUTIONS LTD
Revenue,Adult Services,Adult Social Care,Learning Disab Supp (to be reallocated),5105693090,19.12.2018,Saxonbury,Catering Purchases,10.80,CHAPEL NURSERIES
Revenue,Adult Services,Adult Social Care,Learning Disab Supp (to be reallocated),5105693092,19.12.2018,Saxonbury,Catering Purchases,43.80,CHAPEL NURSERIES
Revenue,Place,Cultural and Related Services,Open Spaces,5105693115,19.12.2018,IW Biological Record Centre,Consultants Fees,"1,000.00",REDACTED PERSONAL DATA
Revenue,Neighbourhoods,Highways and Transport Services,Management and Support Services,5105693121,19.12.2018,Highways PFI Project,Consultants Fees,"14,700.00",JASMINE CONSULTING (UK) LTD
Revenue,Neighbourhoods,Highways and Transport Services,Management and Support Services,5105693121,19.12.2018,Highways PFI Project,Consultants Fees,118.90,JASMINE CONSULTING (UK) LTD
Capital,Corporate Items,Balance Sheet,Balance Sheet,5105693156,19.12.2018,Balance Sheet,Order Settlement to Bal Sht GL,"2,324.40",KITE HILL NURSING HOME
Revenue,Neighbourhoods,Cultural and Related Services,Open Spaces,5105693170,19.12.2018,John O�Conner Grounds Maintenance Contract,Professional Services,"-3,000.00",OCCAM'S RAZOR CONSULTING LTD
Revenue,Childrens Services,Children's & Education Services,Other Education and Community Budget,5105693179,19.12.2018,Independent Support for PPS,Catering Purchases,12.50,WIGHT CRYSTAL
Revenue,Adult Services,Adult Social Care,Learning Disab Supp (to be reallocated),5105693191,19.12.2018,Plean Dene,Agency staff,105.32,NEWCROSS HEALTHCARE SOLUTIONS LTD
Revenue,Childrens Services,Children's & Education Services,Children Looked After,5105693239,21.12.2018,Adoption Costs,Support Children,168.39,REDACTED PERSONAL DATA
Revenue,Childrens Services,Children's & Education Services,Children Looked After,5105693239,21.12.2018,Adoption Costs,Support Children,207.73,REDACTED PERSONAL DATA
Revenue,Childrens Services,Children's & Education Services,Children Looked After,5105693240,21.12.2018,Adoption Costs,Support Children,168.39,REDACTED PERSONAL DATA
Revenue,Childrens Services,Children's & Education Services,Children Looked After,5105693241,21.12.2018,Adoption Costs,Support Children,168.39,REDACTED PERSONAL DATA
Revenue,Childrens Services,Children's & Education Services,Children Looked After,5105693241,21.12.2018,Adoption Costs,Support Children,207.73,REDACTED PERSONAL DATA
Revenue,Childrens Services,Children's & Education Services,Children Looked After,5105693242,21.12.2018,Adoption Costs,Support Children,207.73,REDACTED PERSONAL DATA
Revenue,Childrens Services,Children's & Education Services,Children Looked After,5105693242,21.12.2018,Adoption Costs,Support Children,168.39,REDACTED PERSONAL DATA
Revenue,Childrens Services,Children's & Education Services,Children Looked After,5105693242,21.12.2018,Adoption Costs,Support Children,168.39,REDACTED PERSONAL DATA
Revenue,Childrens Services,Children's & Education Services,Children Looked After,5105693242,21.12.2018,Adoption Costs,Support Children,132.69,REDACTED PERSONAL DATA
Revenue,Childrens Services,Children's & Education Services,Children Looked After,5105693243,21.12.2018,Adoption Costs,Support Children,225.83,REDACTED PERSONAL DATA
Revenue,Childrens Services,Children's & Education Services,Children Looked After,5105693244,21.12.2018,Adoption Costs,Support Children,132.69,REDACTED PERSONAL DATA
Revenue,Childrens Services,Children's & Education Services,Children Looked After,5105693245,21.12.2018,Adoption Costs,Support Children,178.30,REDACTED PERSONAL DATA
Revenue,Childrens Services,Children's & Education Services,Children Looked After,5105693245,21.12.2018,Adoption Costs,Support Children,146.30,REDACTED PERSONAL DATA
Revenue,Childrens Services,Children's & Education Services,Children Looked After,5105693246,21.12.2018,Adoption Costs,Support Children,168.39,REDACTED PERSONAL DATA
Revenue,Childrens Services,Children's & Education Services,Children Looked After,5105693248,21.12.2018,Adoption Costs,Support Children,71.74,REDACTED PERSONAL DATA
Revenue,Childrens Services,Children's & Education Services,Children Looked After,5105693248,21.12.2018,Adoption Costs,Support Children,71.74,REDACTED PERSONAL DATA
Revenue,Childrens Services,Children's & Education Services,Children Looked After,5105693250,21.12.2018,Adoption Costs,Support Children,168.39,REDACTED PERSONAL DATA
Revenue,Childrens Services,Children's & Education Services,Children Looked After,5105693253,21.12.2018,Adoption Costs,Support Children,207.73,REDACTED PERSONAL DATA
Revenue,Childrens Services,Children's & Education Services,Children Looked After,5105693253,21.12.2018,Adoption Costs,Support Children,168.39,REDACTED PERSONAL DATA
Revenue,Childrens Services,Children's & Education Services,Children Looked After,5105693258,21.12.2018,Adoption Costs,Support Children,207.73,REDACTED PERSONAL DATA
Revenue,Childrens Services,Children's & Education Services,Children Looked After,5105693260,21.12.2018,Adoption Costs,Support Children,168.39,REDACTED PERSONAL DATA
Revenue,Childrens Services,Children's & Education Services,Children Looked After,5105693268,21.12.2018,Adoption Costs,Support Children,168.39,REDACTED PERSONAL DATA
Revenue,Childrens Services,Children's & Education Services,Children Looked After,5105693269,21.12.2018,Adoption Costs,Support Children,132.69,REDACTED PERSONAL DATA
Revenue,Childrens Services,Children's & Education Services,Children Looked After,5105693272,21.12.2018,Adoption Costs,Support Children,207.73,REDACTED PERSONAL DATA
Revenue,Childrens Services,Children's & Education Services,Children Looked After,5105693272,21.12.2018,Adoption Costs,Support Children,207.73,REDACTED PERSONAL DATA
Revenue,Childrens Services,Children's & Education Services,Children Looked After,5105693278,21.12.2018,Adoption Costs,Support Children,44.43,REDACTED PERSONAL DATA
Revenue,Childrens Services,Children's & Education Services,Children Looked After,5105693284,21.12.2018,Adoption Costs,Support Children,132.69,REDACTED PERSONAL DATA
Revenue,Childrens Services,Children's & Education Services,Children Looked After,5105693294,21.12.2018,Adoption Costs,Support Children,161.49,REDACTED PERSONAL DATA
Revenue,Neighbourhoods,Cultural and Related Services,Recreation and Sport,5105693079,19.12.2018,Medina Leisure Centre,Stock Purchases,436.35,ISLAND ALES LTD
Revenue,Neighbourhoods,Cultural and Related Services,Recreation and Sport,5105693080,19.12.2018,Medina Leisure Centre,Stock Purchases,32.36,ISLAND ALES LTD
Revenue,Neighbourhoods,Cultural and Related Services,Recreation and Sport,5105693081,19.12.2018,Medina Leisure Centre,Stock Purchases,452.78,ISLAND ALES LTD
Revenue,Neighbourhoods,Cultural and Related Services,Recreation and Sport,5105693082,19.12.2018,Medina Leisure Centre,Stock Purchases,49.60,ISLAND ALES LTD
Revenue,Neighbourhoods,Cultural and Related Services,Recreation and Sport,5105693101,19.12.2018,Medina Leisure Centre,Operational Equipment,26.00,LAKE CLEANING & CATERING SUPPLIES
Revenue,Childrens Services,Children's & Education Services,Other Education and Community Budget,5105693105,19.12.2018,Home to School SEN Transport (LA),Taxis - Contract Hire,581.93,RYDE TAXIS LTD
Revenue,Childrens Services,Children's & Education Services,Other Education and Community Budget,5105693108,19.12.2018,Home to School SEN Transport (LA),Taxis - Contract Hire,682.00,AMAR EXCLUSIVES
Revenue,Adult Services,Adult Social Care,Assistive Equipment & Technology,5105693109,19.12.2018,Community Equipment Store,Operational Equipment,275.00,DRIVE MEDICAL LTD
Revenue,Adult Services,Adult Social Care,Central Codes (to be reallocated),5105691974,07.12.2018,Gouldings Resource Centre,Property Services - Day to day Maintenance,115.00,WIGHT HEATING LTD
Revenue,Adult Services,Adult Social Care,Central Codes (to be reallocated),5105691988,12.12.2018,Gouldings Resource Centre,Property Services - Day to day Maintenance,91.08,WSM ASSOCIATES LTD
Revenue,Childrens Services,Children's & Education Services,Other Education and Community Budget,5105691988,12.12.2018,Learning & Development Running Costs,Property Services - Day to day Maintenance,91.08,WSM ASSOCIATES LTD
Revenue,Fire & Rescue,Fire & Rescue Services,Fire fighting and Rescue Operations,5105691988,12.12.2018,Business Support  - Fire,Property Services - Day to day Maintenance,91.08,WSM ASSOCIATES LTD
Revenue,Fire & Rescue,Fire & Rescue Services,Fire fighting and Rescue Operations,5105691988,12.12.2018,Business Support  - Fire,Property Services - Day to day Maintenance,91.08,WSM ASSOCIATES LTD
Revenue,Fire & Rescue,Fire & Rescue Services,Fire fighting and Rescue Operations,5105691988,12.12.2018,Business Support  - Fire,Property Services - Day to day Maintenance,91.08,WSM ASSOCIATES LTD
Revenue,Fire & Rescue,Fire & Rescue Services,Fire fighting and Rescue Operations,5105691988,12.12.2018,Business Support  - Fire,Property Services - Day to day Maintenance,91.08,WSM ASSOCIATES LTD
Revenue,Fire & Rescue,Fire & Rescue Services,Fire fighting and Rescue Operations,5105691988,12.12.2018,Business Support  - Fire,Property Services - Day to day Maintenance,91.08,WSM ASSOCIATES LTD
Revenue,Fire & Rescue,Fire & Rescue Services,Fire fighting and Rescue Operations,5105691988,12.12.2018,Business Support  - Fire,Property Services - Day to day Maintenance,91.08,WSM ASSOCIATES LTD
Revenue,Fire & Rescue,Fire & Rescue Services,Fire fighting and Rescue Operations,5105691988,12.12.2018,Business Support  - Fire,Property Services - Day to day Maintenance,91.08,WSM ASSOCIATES LTD
Revenue,Fire & Rescue,Fire & Rescue Services,Fire fighting and Rescue Operations,5105691988,12.12.2018,Business Support  - Fire,Property Services - Day to day Maintenance,91.08,WSM ASSOCIATES LTD
Revenue,Fire & Rescue,Fire & Rescue Services,Fire fighting and Rescue Operations,5105691988,12.12.2018,Business Support  - Fire,Property Services - Day to day Maintenance,91.08,WSM ASSOCIATES LTD
Revenue,Fire & Rescue,Fire & Rescue Services,Fire fighting and Rescue Operations,5105691988,12.12.2018,Business Support  - Fire,Property Services - Day to day Maintenance,91.08,WSM ASSOCIATES LTD
Revenue,Regeneration,Central Services,Support Services,5105691988,12.12.2018,Non-operational buildings,Property Services - Day to day Maintenance,91.08,WSM ASSOCIATES LTD
Revenue,Regeneration,Central Services,Support Services,5105691988,12.12.2018,Non-operational buildings,Property Services - Day to day Maintenance,91.08,WSM ASSOCIATES LTD
Revenue,Neighbourhoods,Cultural and Related Services,Recreation and Sport,5105691988,12.12.2018,Medina Leisure Centre,Property Services - Day to day Maintenance,91.08,WSM ASSOCIATES LTD
Revenue,Neighbourhoods,Cultural and Related Services,Library Service,5105691988,12.12.2018,Bembridge Library,Property Services - Day to day Maintenance,91.08,WSM ASSOCIATES LTD
Revenue,Neighbourhoods,Cultural and Related Services,Library Service,5105691988,12.12.2018,Cowes Library,Property Services - Day to day Maintenance,91.08,WSM ASSOCIATES LTD
Revenue,Neighbourhoods,Cultural and Related Services,Culture and Heritage,5105691988,12.12.2018,Archives,Property Services - Day to day Maintenance,91.08,WSM ASSOCIATES LTD
Revenue,Neighbourhoods,Cultural and Related Services,Library Service,5105691988,12.12.2018,Ryde Library,Property Services - Day to day Maintenance,91.08,WSM ASSOCIATES LTD
Revenue,Regeneration,Central Services,Support Services,5105691988,12.12.2018,"Mariners Way, Cowes",Property Services - Day to day Maintenance,91.08,WSM ASSOCIATES LTD
Revenue,Regeneration,Central Services,Support Services,5105691988,12.12.2018,"Enterprise House, Newport",Property Services - Day to day Maintenance,91.08,WSM ASSOCIATES LTD
Revenue,Fire & Rescue,Fire & Rescue Services,Fire fighting and Rescue Operations,5105691994,07.12.2018,Business Support  - Fire,Property Services - Planned Maintenance,960.16,WIGHT HEATING LTD
Revenue,Childrens Services,Children's & Education Services,Other Education and Community Budget,5105691995,07.12.2018,Home to School SEN Transport (LA),Taxis - Contract Hire,"1,320.00",THOMPSON TAXI
Revenue,Childrens Services,Children's & Education Services,Other Education and Community Budget,5105692000,07.12.2018,Home to School SEN Transport (LA),Taxis - Contract Hire,558.00,AMAR EXCLUSIVES
Revenue,Childrens Services,Children's & Education Services,Other Education and Community Budget,5105692018,07.12.2018,Home to School SEN Transport (LA),Taxis - Contract Hire,480.00,SOUTH WIGHT TAXIS
Revenue,Childrens Services,Children's & Education Services,Other Education and Community Budget,5105692020,14.12.2018,Home to School SEN Transport (LA),Transport of Clients,"45,154.40",GO SOUTH COAST LTD
Revenue,Childrens Services,Children's & Education Services,Other Education and Community Budget,5105692020,14.12.2018,Home to School SEN Transport (LA),Transport of Clients,"15,455.00",GO SOUTH COAST LTD
Revenue,Adult Services,Adult Social Care,Assistive Equipment & Technology,5105692033,07.12.2018,Community Equipment Store,Operational Equipment,95.40,PATTERSON MEDICAL LTD
Revenue,Adult Services,Adult Social Care,Assistive Equipment & Technology,5105692033,07.12.2018,Community Equipment Store,Operational Equipment,17.00,PATTERSON MEDICAL LTD
Revenue,Childrens Services,Children's & Education Services,Other Education and Community Budget,5105692039,07.12.2018,Home to School SEN Transport (LA),Taxis - Contract Hire,440.00,THOMPSON TAXI
Revenue,Childrens Services,Children's & Education Services,Other Education and Community Budget,5105692040,07.12.2018,Home to School SEN Transport (LA),Taxis - Contract Hire,"2,200.00",THOMPSON TAXI
Revenue,Fire & Rescue,Fire & Rescue Services,Fire fighting and Rescue Operations,5105692914,19.12.2018,Business Support  - Fire,Stationery,1.50,SUPPLIES TEAM LTD
Revenue,Fire & Rescue,Fire & Rescue Services,Fire fighting and Rescue Operations,5105692914,19.12.2018,Business Support  - Fire,Stationery,3.60,SUPPLIES TEAM LTD
Revenue,Fire & Rescue,Fire & Rescue Services,Fire fighting and Rescue Operations,5105692914,19.12.2018,Business Support  - Fire,Stationery,9.92,SUPPLIES TEAM LTD
Revenue,Fire & Rescue,Fire & Rescue Services,Fire fighting and Rescue Operations,5105692914,19.12.2018,Business Support  - Fire,Stationery,0.16,SUPPLIES TEAM LTD
Revenue,Fire & Rescue,Fire & Rescue Services,Fire fighting and Rescue Operations,5105692914,19.12.2018,Business Support  - Fire,Stationery,6.82,SUPPLIES TEAM LTD
Revenue,Neighbourhoods,Cultural and Related Services,Open Spaces,5105692919,19.12.2018,Rights of Way Operations,Maintenance of Operational Equipment,37.65,STUBBINGS BROS LTD
Revenue,Adult Services,Adult Social Care,Central Codes (to be reallocated),5105692925,28.12.2018,Gouldings Resource Centre,Property Services - Day to day Maintenance,99.80,WSM ASSOCIATES LTD
Revenue,Childrens Services,Children's & Education Services,Other Education and Community Budget,5105692925,28.12.2018,Learning & Development Running Costs,Property Services - Day to day Maintenance,99.80,WSM ASSOCIATES LTD
Revenue,Fire & Rescue,Fire & Rescue Services,Fire fighting and Rescue Operations,5105692925,28.12.2018,Business Support  - Fire,Property Services - Day to day Maintenance,99.80,WSM ASSOCIATES LTD
Revenue,Fire & Rescue,Fire & Rescue Services,Fire fighting and Rescue Operations,5105692925,28.12.2018,Business Support  - Fire,Property Services - Day to day Maintenance,99.80,WSM ASSOCIATES LTD
Revenue,Fire & Rescue,Fire & Rescue Services,Fire fighting and Rescue Operations,5105692925,28.12.2018,Business Support  - Fire,Property Services - Day to day Maintenance,99.80,WSM ASSOCIATES LTD
Revenue,Fire & Rescue,Fire & Rescue Services,Fire fighting and Rescue Operations,5105692925,28.12.2018,Business Support  - Fire,Property Services - Day to day Maintenance,99.80,WSM ASSOCIATES LTD
Revenue,Fire & Rescue,Fire & Rescue Services,Fire fighting and Rescue Operations,5105692925,28.12.2018,Business Support  - Fire,Property Services - Day to day Maintenance,99.80,WSM ASSOCIATES LTD
Revenue,Fire & Rescue,Fire & Rescue Services,Fire fighting and Rescue Operations,5105692925,28.12.2018,Business Support  - Fire,Property Services - Day to day Maintenance,99.80,WSM ASSOCIATES LTD
Revenue,Fire & Rescue,Fire & Rescue Services,Fire fighting and Rescue Operations,5105692925,28.12.2018,Business Support  - Fire,Property Services - Day to day Maintenance,99.80,WSM ASSOCIATES LTD
Revenue,Fire & Rescue,Fire & Rescue Services,Fire fighting and Rescue Operations,5105692925,28.12.2018,Business Support  - Fire,Property Services - Day to day Maintenance,99.80,WSM ASSOCIATES LTD
Revenue,Fire & Rescue,Fire & Rescue Services,Fire fighting and Rescue Operations,5105692925,28.12.2018,Business Support  - Fire,Property Services - Day to day Maintenance,99.80,WSM ASSOCIATES LTD
Revenue,Fire & Rescue,Fire & Rescue Services,Fire fighting and Rescue Operations,5105692925,28.12.2018,Business Support  - Fire,Property Services - Day to day Maintenance,99.80,WSM ASSOCIATES LTD
Revenue,Regeneration,Central Services,Support Services,5105692925,28.12.2018,Non-operational buildings,Property Services - Day to day Maintenance,99.80,WSM ASSOCIATES LTD
Revenue,Regeneration,Central Services,Support Services,5105692925,28.12.2018,Non-operational buildings,Property Services - Day to day Maintenance,99.80,WSM ASSOCIATES LTD
Revenue,Neighbourhoods,Cultural and Related Services,Recreation and Sport,5105692925,28.12.2018,Medina Leisure Centre,Property Services - Day to day Maintenance,99.80,WSM ASSOCIATES LTD
Revenue,Neighbourhoods,Cultural and Related Services,Library Service,5105692925,28.12.2018,Bembridge Library,Property Services - Day to day Maintenance,99.80,WSM ASSOCIATES LTD
Revenue,Neighbourhoods,Cultural and Related Services,Library Service,5105692925,28.12.2018,Cowes Library,Property Services - Day to day Maintenance,99.80,WSM ASSOCIATES LTD
Revenue,Neighbourhoods,Cultural and Related Services,Culture and Heritage,5105692925,28.12.2018,Archives,Property Services - Day to day Maintenance,99.80,WSM ASSOCIATES LTD
Revenue,Neighbourhoods,Cultural and Related Services,Library Service,5105692925,28.12.2018,Ryde Library,Property Services - Day to day Maintenance,99.80,WSM ASSOCIATES LTD
Revenue,Regeneration,Central Services,Support Services,5105692925,28.12.2018,"Mariners Way, Cowes",Property Services - Day to day Maintenance,99.80,WSM ASSOCIATES LTD
Revenue,Regeneration,Central Services,Support Services,5105692925,28.12.2018,"Enterprise House, Newport",Property Services - Day to day Maintenance,99.80,WSM ASSOCIATES LTD
Revenue,Adult Services,Adult Social Care,Central Codes (to be reallocated),5105692927,28.12.2018,Gouldings Resource Centre,Property Services - Day to day Maintenance,54.00,WSM ASSOCIATES LTD
Revenue,Childrens Services,Children's & Education Services,Other Education and Community Budget,5105692927,28.12.2018,Learning & Development Running Costs,Property Services - Day to day Maintenance,54.00,WSM ASSOCIATES LTD
Revenue,Fire & Rescue,Fire & Rescue Services,Fire fighting and Rescue Operations,5105692927,28.12.2018,Business Support  - Fire,Property Services - Day to day Maintenance,54.00,WSM ASSOCIATES LTD
Revenue,Fire & Rescue,Fire & Rescue Services,Fire fighting and Rescue Operations,5105692927,28.12.2018,Business Support  - Fire,Property Services - Day to day Maintenance,54.00,WSM ASSOCIATES LTD
Revenue,Fire & Rescue,Fire & Rescue Services,Fire fighting and Rescue Operations,5105692927,28.12.2018,Business Support  - Fire,Property Services - Day to day Maintenance,54.00,WSM ASSOCIATES LTD
Revenue,Fire & Rescue,Fire & Rescue Services,Fire fighting and Rescue Operations,5105692927,28.12.2018,Business Support  - Fire,Property Services - Day to day Maintenance,54.00,WSM ASSOCIATES LTD
Revenue,Fire & Rescue,Fire & Rescue Services,Fire fighting and Rescue Operations,5105692927,28.12.2018,Business Support  - Fire,Property Services - Day to day Maintenance,54.00,WSM ASSOCIATES LTD
Revenue,Fire & Rescue,Fire & Rescue Services,Fire fighting and Rescue Operations,5105692927,28.12.2018,Business Support  - Fire,Property Services - Day to day Maintenance,54.00,WSM ASSOCIATES LTD
Revenue,Fire & Rescue,Fire & Rescue Services,Fire fighting and Rescue Operations,5105692927,28.12.2018,Business Support  - Fire,Property Services - Day to day Maintenance,54.00,WSM ASSOCIATES LTD
Revenue,Fire & Rescue,Fire & Rescue Services,Fire fighting and Rescue Operations,5105692927,28.12.2018,Business Support  - Fire,Property Services - Day to day Maintenance,54.00,WSM ASSOCIATES LTD
Revenue,Fire & Rescue,Fire & Rescue Services,Fire fighting and Rescue Operations,5105692927,28.12.2018,Business Support  - Fire,Property Services - Day to day Maintenance,54.00,WSM ASSOCIATES LTD
Revenue,Fire & Rescue,Fire & Rescue Services,Fire fighting and Rescue Operations,5105692927,28.12.2018,Business Support  - Fire,Property Services - Day to day Maintenance,54.00,WSM ASSOCIATES LTD
Revenue,Regeneration,Central Services,Support Services,5105692927,28.12.2018,Non-operational buildings,Property Services - Day to day Maintenance,54.00,WSM ASSOCIATES LTD
Revenue,Regeneration,Central Services,Support Services,5105692927,28.12.2018,Non-operational buildings,Property Services - Day to day Maintenance,54.00,WSM ASSOCIATES LTD
Revenue,Neighbourhoods,Cultural and Related Services,Recreation and Sport,5105692927,28.12.2018,Medina Leisure Centre,Property Services - Day to day Maintenance,54.00,WSM ASSOCIATES LTD
Revenue,Neighbourhoods,Cultural and Related Services,Library Service,5105692927,28.12.2018,Bembridge Library,Property Services - Day to day Maintenance,54.00,WSM ASSOCIATES LTD
Revenue,Neighbourhoods,Cultural and Related Services,Library Service,5105692927,28.12.2018,Cowes Library,Property Services - Day to day Maintenance,54.00,WSM ASSOCIATES LTD
Revenue,Neighbourhoods,Cultural and Related Services,Culture and Heritage,5105692927,28.12.2018,Archives,Property Services - Day to day Maintenance,54.00,WSM ASSOCIATES LTD
Revenue,Neighbourhoods,Cultural and Related Services,Library Service,5105692927,28.12.2018,Ryde Library,Property Services - Day to day Maintenance,54.00,WSM ASSOCIATES LTD
Revenue,Adult Services,Adult Social Care,Learning Disab Supp (to be reallocated),5105692754,14.12.2018,Saxonbury,Interview & recruitment expenses,132.00,ACCESS PERSONAL CHECKING SERVICES LTD
Revenue,Adult Services,Adult Social Care,Social Support - Support for Carer,5105692754,14.12.2018,Westminster House,Interview & recruitment expenses,88.00,ACCESS PERSONAL CHECKING SERVICES LTD
Revenue,Childrens Services,Children's & Education Services,Safeguarding Children/Young Peoples Svs,5105692754,14.12.2018,Children in Care Team,Interview & recruitment expenses,44.00,ACCESS PERSONAL CHECKING SERVICES LTD
Revenue,Neighbourhoods,Cultural and Related Services,Recreation and Sport,5105692754,14.12.2018,Medina Leisure Centre,Interview & recruitment expenses,75.00,ACCESS PERSONAL CHECKING SERVICES LTD
Revenue,Childrens Services,Children's & Education Services,Safeguarding Children/Young Peoples Svs,5105692754,14.12.2018,Children in Care Team,Interview & recruitment expenses,25.00,ACCESS PERSONAL CHECKING SERVICES LTD
Revenue,Adult Services,Adult Social Care,Learning Disab Supp (to be reallocated),5105692754,14.12.2018,Saxonbury,Interview & recruitment expenses,18.00,ACCESS PERSONAL CHECKING SERVICES LTD
Revenue,Adult Services,Adult Social Care,Social Support - Support for Carer,5105692754,14.12.2018,Westminster House,Interview & recruitment expenses,12.00,ACCESS PERSONAL CHECKING SERVICES LTD
Revenue,Childrens Services,Children's & Education Services,Safeguarding Children/Young Peoples Svs,5105692754,14.12.2018,Children in Care Team,Interview & recruitment expenses,6.00,ACCESS PERSONAL CHECKING SERVICES LTD
Revenue,Neighbourhoods,Cultural and Related Services,Recreation and Sport,5105692754,14.12.2018,Medina Leisure Centre,Interview & recruitment expenses,24.00,ACCESS PERSONAL CHECKING SERVICES LTD
Revenue,Childrens Services,Children's & Education Services,Safeguarding Children/Young Peoples Svs,5105692754,14.12.2018,Children in Care Team,Interview & recruitment expenses,8.00,ACCESS PERSONAL CHECKING SERVICES LTD
Revenue,Adult Services,Adult Social Care,Learning Disab Supp (to be reallocated),5105692757,19.12.2018,Saxonbury,Operational Equipment,330.33,BETA PAK LTD
Revenue,Adult Services,Adult Social Care,Learning Disab Supp (to be reallocated),5105692777,19.12.2018,Plean Dene,Operational Equipment,6.24,BETA PAK LTD
Revenue,Childrens Services,Children's & Education Services,Other Education and Community Budget,5105692381,12.12.2018,Home to School SEN Transport (LA),Taxis - Contract Hire,300.00,ALPHA (IOW) LTD
Revenue,Childrens Services,Children's & Education Services,Other Education and Community Budget,5105692381,12.12.2018,Home to School SEN Transport (LA),Taxis - Contract Hire,200.00,ALPHA (IOW) LTD
Revenue,Childrens Services,Children's & Education Services,Other Education and Community Budget,5105692381,12.12.2018,Home to School SEN Transport (LA),Taxis - Contract Hire,500.00,ALPHA (IOW) LTD
Revenue,Childrens Services,Children's & Education Services,Other Education and Community Budget,5105692381,12.12.2018,Home to School SEN Transport (LA),Taxis - Contract Hire,140.00,ALPHA (IOW) LTD
Revenue,Childrens Services,Children's & Education Services,Other Education and Community Budget,5105692381,12.12.2018,Home to School SEN Transport (LA),Taxis - Contract Hire,260.00,ALPHA (IOW) LTD
Revenue,Childrens Services,Children's & Education Services,Other Education and Community Budget,5105692381,12.12.2018,Home to School SEN Transport (LA),Taxis - Contract Hire,250.00,ALPHA (IOW) LTD
Revenue,Resources,Central Services,Support Services,5105692399,12.12.2018,ICT Refresh Programme,Computer Purchase & Rental,"1,237.22",MTI TECHNOLOGY LTD
Revenue,Resources,Central Services,Support Services,5105692399,12.12.2018,ICT Refresh Programme,Computer Purchase & Rental,203.10,MTI TECHNOLOGY LTD
Revenue,Childrens Services,Children's & Education Services,Other Education and Community Budget,5105691855,21.12.2018,Home to School SEN Transport (LA),Taxis - Contract Hire,500.00,AMAR CABS OF NEWPORT
Revenue,Childrens Services,Children's & Education Services,Other Education and Community Budget,5105691856,21.12.2018,Home to School SEN Transport (LA),Taxis - Contract Hire,468.00,AMAR CABS OF NEWPORT
Revenue,Adult Services,Adult Social Care,Social Care Activities,5105691858,14.12.2018,Local Safeguarding Adults Board,Hire of facilities,120.00,RIVERSIDE VENTURES LTD
Revenue,Adult Services,Adult Social Care,Social Care Activities,5105691858,14.12.2018,Local Safeguarding Adults Board,Hire of facilities,81.25,RIVERSIDE VENTURES LTD
Revenue,Adult Services,Adult Social Care,Social Care Activities,5105691858,14.12.2018,Local Safeguarding Adults Board,Hire of facilities,25.00,RIVERSIDE VENTURES LTD
Revenue,Adult Services,Adult Social Care,Learning Disab Supp (to be reallocated),5105691860,07.12.2018,Saxonbury,Operational Equipment,262.24,BETA PAK LTD
Revenue,Adult Services,Adult Social Care,Social Support - Support for Carer,5105691862,07.12.2018,Westminster House,Operational Equipment,55.42,BETA PAK LTD
Revenue,Adult Services,Adult Social Care,Learning Disab Supp (to be reallocated),5105691866,07.12.2018,Saxonbury,Operational Equipment,-121.32,BETA PAK LTD
Revenue,Adult Services,Adult Social Care,Assistive Equipment & Technology,5105691888,07.12.2018,Community Equipment Store,Operational Equipment,21.98,IDML
Revenue,Adult Services,Adult Social Care,Assistive Equipment & Technology,5105691888,07.12.2018,Community Equipment Store,Operational Equipment,19.00,IDML
Revenue,Childrens Services,Children's & Education Services,Other Education and Community Budget,5105691894,07.12.2018,Home to School SEN Transport (LA),Taxis - Contract Hire,450.00,ALPHA (IOW) LTD
Revenue,Childrens Services,Children's & Education Services,Other Education and Community Budget,5105691894,07.12.2018,Home to School SEN Transport (LA),Taxis - Contract Hire,350.00,ALPHA (IOW) LTD
Revenue,Childrens Services,Children's & Education Services,Other Education and Community Budget,5105691894,07.12.2018,Home to School SEN Transport (LA),Taxis - Contract Hire,250.00,ALPHA (IOW) LTD
Revenue,Childrens Services,Children's & Education Services,Other Education and Community Budget,5105691894,07.12.2018,Home to School SEN Transport (LA),Taxis - Contract Hire,400.00,ALPHA (IOW) LTD
Revenue,Childrens Services,Children's & Education Services,Other Education and Community Budget,5105691894,07.12.2018,Home to School SEN Transport (LA),Taxis - Contract Hire,395.00,ALPHA (IOW) LTD
Revenue,Childrens Services,Children's & Education Services,Other Education and Community Budget,5105691894,07.12.2018,Home to School SEN Transport (LA),Taxis - Contract Hire,700.00,ALPHA (IOW) LTD
Revenue,Childrens Services,Children's & Education Services,Other Education and Community Budget,5105691894,07.12.2018,Home to School SEN Transport (LA),Taxis - Contract Hire,200.00,ALPHA (IOW) LTD
Revenue,Childrens Services,Children's & Education Services,Other Education and Community Budget,5105691894,07.12.2018,Home to School SEN Transport (LA),Taxis - Contract Hire,280.00,ALPHA (IOW) LTD
Revenue,Childrens Services,Children's & Education Services,Other Education and Community Budget,5105691894,07.12.2018,Home to School SEN Transport (LA),Taxis - Contract Hire,150.00,ALPHA (IOW) LTD
Revenue,Childrens Services,Children's & Education Services,Other Education and Community Budget,5105691894,07.12.2018,Home to School SEN Transport (LA),Taxis - Contract Hire,600.00,ALPHA (IOW) LTD
Revenue,Childrens Services,Children's & Education Services,Other Education and Community Budget,5105691894,07.12.2018,Home to School SEN Transport (LA),Taxis - Contract Hire,350.00,ALPHA (IOW) LTD
Revenue,Childrens Services,Children's & Education Services,Other Education and Community Budget,5105691894,07.12.2018,Home to School SEN Transport (LA),Taxis - Contract Hire,250.00,ALPHA (IOW) LTD
Revenue,Childrens Services,Children's & Education Services,Other Education and Community Budget,5105691894,07.12.2018,Home to School SEN Transport (LA),Taxis - Contract Hire,300.00,ALPHA (IOW) LTD
Revenue,Childrens Services,Children's & Education Services,Other Education and Community Budget,5105691894,07.12.2018,Home to School SEN Transport (LA),Taxis - Contract Hire,450.00,ALPHA (IOW) LTD
Revenue,Childrens Services,Children's & Education Services,Other Education and Community Budget,5105691894,07.12.2018,Home to School SEN Transport (LA),Taxis - Contract Hire,300.00,ALPHA (IOW) LTD
Revenue,Childrens Services,Children's & Education Services,Other Education and Community Budget,5105691894,07.12.2018,Home to School SEN Transport (LA),Taxis - Contract Hire,200.00,ALPHA (IOW) LTD
Revenue,Childrens Services,Children's & Education Services,Other Education and Community Budget,5105691894,07.12.2018,Home to School SEN Transport (LA),Taxis - Contract Hire,500.00,ALPHA (IOW) LTD
Revenue,Childrens Services,Children's & Education Services,Other Education and Community Budget,5105691894,07.12.2018,Home to School SEN Transport (LA),Taxis - Contract Hire,140.00,ALPHA (IOW) LTD
Revenue,Childrens Services,Children's & Education Services,Other Education and Community Budget,5105691894,07.12.2018,Home to School SEN Transport (LA),Taxis - Contract Hire,260.00,ALPHA (IOW) LTD
Revenue,Childrens Services,Children's & Education Services,Other Education and Community Budget,5105691894,07.12.2018,Home to School SEN Transport (LA),Taxis - Contract Hire,250.00,ALPHA (IOW) LTD
Revenue,Childrens Services,Children's & Education Services,Other Education and Community Budget,5105691901,07.12.2018,Home to School SEN Transport (LA),Taxis - Contract Hire,450.00,ALPHA (IOW) LTD
Revenue,Childrens Services,Children's & Education Services,Other Education and Community Budget,5105691901,07.12.2018,Home to School SEN Transport (LA),Taxis - Contract Hire,350.00,ALPHA (IOW) LTD
Revenue,Childrens Services,Children's & Education Services,Other Education and Community Budget,5105691901,07.12.2018,Home to School SEN Transport (LA),Taxis - Contract Hire,250.00,ALPHA (IOW) LTD
Revenue,Childrens Services,Children's & Education Services,Other Education and Community Budget,5105691901,07.12.2018,Home to School SEN Transport (LA),Taxis - Contract Hire,400.00,ALPHA (IOW) LTD
Revenue,Childrens Services,Children's & Education Services,Other Education and Community Budget,5105691901,07.12.2018,Home to School SEN Transport (LA),Taxis - Contract Hire,395.00,ALPHA (IOW) LTD
Revenue,Childrens Services,Children's & Education Services,Other Education and Community Budget,5105691901,07.12.2018,Home to School SEN Transport (LA),Taxis - Contract Hire,700.00,ALPHA (IOW) LTD
Revenue,Childrens Services,Children's & Education Services,Other Education and Community Budget,5105691901,07.12.2018,Home to School SEN Transport (LA),Taxis - Contract Hire,200.00,ALPHA (IOW) LTD
Revenue,Childrens Services,Children's & Education Services,Other Education and Community Budget,5105691901,07.12.2018,Home to School SEN Transport (LA),Taxis - Contract Hire,280.00,ALPHA (IOW) LTD
Revenue,Childrens Services,Children's & Education Services,Other Education and Community Budget,5105691901,07.12.2018,Home to School SEN Transport (LA),Taxis - Contract Hire,150.00,ALPHA (IOW) LTD
Revenue,Childrens Services,Children's & Education Services,Other Education and Community Budget,5105691901,07.12.2018,Home to School SEN Transport (LA),Taxis - Contract Hire,600.00,ALPHA (IOW) LTD
Revenue,Childrens Services,Children's & Education Services,Other Education and Community Budget,5105691901,07.12.2018,Home to School SEN Transport (LA),Taxis - Contract Hire,350.00,ALPHA (IOW) LTD
Revenue,Childrens Services,Children's & Education Services,Other Education and Community Budget,5105691901,07.12.2018,Home to School SEN Transport (LA),Taxis - Contract Hire,250.00,ALPHA (IOW) LTD
Revenue,Childrens Services,Children's & Education Services,Other Education and Community Budget,5105691901,07.12.2018,Home to School SEN Transport (LA),Taxis - Contract Hire,300.00,ALPHA (IOW) LTD
Revenue,Childrens Services,Children's & Education Services,Other Education and Community Budget,5105691901,07.12.2018,Home to School SEN Transport (LA),Taxis - Contract Hire,450.00,ALPHA (IOW) LTD
Revenue,Childrens Services,Children's & Education Services,Other Education and Community Budget,5105691901,07.12.2018,Home to School SEN Transport (LA),Taxis - Contract Hire,300.00,ALPHA (IOW) LTD
Revenue,Childrens Services,Children's & Education Services,Other Education and Community Budget,5105691901,07.12.2018,Home to School SEN Transport (LA),Taxis - Contract Hire,200.00,ALPHA (IOW) LTD
Revenue,Childrens Services,Children's & Education Services,Other Education and Community Budget,5105691901,07.12.2018,Home to School SEN Transport (LA),Taxis - Contract Hire,500.00,ALPHA (IOW) LTD
Revenue,Childrens Services,Children's & Education Services,Other Education and Community Budget,5105691901,07.12.2018,Home to School SEN Transport (LA),Taxis - Contract Hire,140.00,ALPHA (IOW) LTD
Revenue,Childrens Services,Children's & Education Services,Other Education and Community Budget,5105691901,07.12.2018,Home to School SEN Transport (LA),Taxis - Contract Hire,260.00,ALPHA (IOW) LTD
Revenue,Childrens Services,Children's & Education Services,Other Education and Community Budget,5105691901,07.12.2018,Home to School SEN Transport (LA),Taxis - Contract Hire,250.00,ALPHA (IOW) LTD
Revenue,Neighbourhoods,Cultural and Related Services,Recreation and Sport,5105691952,07.12.2018,Medina Leisure Centre,Property Services - Day to day Maintenance,288.21,WIGHT HEATING LTD
Revenue,Neighbourhoods,Cultural and Related Services,Recreation and Sport,5105691966,07.12.2018,Medina Leisure Centre,Property Services - Day to day Maintenance,80.00,WIGHT HEATING LTD
Revenue,Fire & Rescue,Fire & Rescue Services,Fire fighting and Rescue Operations,5105691967,07.12.2018,Business Support  - Fire,Property Services - Day to day Maintenance,45.00,WIGHT HEATING LTD
Revenue,Regeneration,Central Services,Support Services,5105692927,28.12.2018,"Mariners Way, Cowes",Property Services - Day to day Maintenance,54.00,WSM ASSOCIATES LTD
Revenue,Regeneration,Central Services,Support Services,5105692927,28.12.2018,"Enterprise House, Newport",Property Services - Day to day Maintenance,54.00,WSM ASSOCIATES LTD
Revenue,Neighbourhoods,Cultural and Related Services,Library Service,5105692935,19.12.2018,Bembridge Library,Property Services - Planned Maintenance,75.00,WIGHT HEATING LTD
Revenue,Fire & Rescue,Fire & Rescue Services,Fire fighting and Rescue Operations,5105692938,19.12.2018,Business Support  - Fire,Property Services - Planned Maintenance,115.00,WIGHT HEATING LTD
Revenue,Neighbourhoods,Cultural and Related Services,Recreation and Sport,5105692940,19.12.2018,Medina Leisure Centre,Property Services - Day to day Maintenance,115.00,WIGHT HEATING LTD
Revenue,Regeneration,Central Services,Support Services,5105692942,19.12.2018,"Enterprise House, Newport",Property Services - Planned Maintenance,115.00,WIGHT HEATING LTD
Revenue,Fire & Rescue,Fire & Rescue Services,Fire fighting and Rescue Operations,5105692943,19.12.2018,Business Support  - Fire,Property Services - Planned Maintenance,75.00,WIGHT HEATING LTD
Revenue,Fire & Rescue,Fire & Rescue Services,Fire fighting and Rescue Operations,5105692945,19.12.2018,Business Support  - Fire,Property Services - Planned Maintenance,205.00,WIGHT HEATING LTD
Revenue,Adult Services,Adult Social Care,Central Codes (to be reallocated),5105692951,19.12.2018,Gouldings Resource Centre,Property Services - Day to day Maintenance,193.00,F W MARSH (ELECT & MECH) LTD
Revenue,Adult Services,Adult Social Care,Central Codes (to be reallocated),5105692953,19.12.2018,Gouldings Resource Centre,Property Services - Day to day Maintenance,154.40,F W MARSH (ELECT & MECH) LTD
Revenue,Childrens Services,Children's & Education Services,Other Education and Community Budget,5105692957,21.12.2018,Home to School SEN Transport (LA),Taxis - Contract Hire,700.00,AMAR CABS OF NEWPORT
Revenue,Adult Services,Adult Social Care,Social Support - Support for Carer,5105692962,19.12.2018,Westminster House,Operational Equipment,30.00,BETA PAK LTD
Revenue,Childrens Services,Children's & Education Services,Other Education and Community Budget,5105692965,19.12.2018,Home to School SEN Transport (LA),Taxis - Contract Hire,733.48,RYDE TAXIS LTD
Revenue,Childrens Services,Children's & Education Services,Other Education and Community Budget,5105692981,19.12.2018,Home to School SEN Transport (LA),Taxis - Contract Hire,60.00,MR TAXIS
Revenue,Childrens Services,Children's & Education Services,Other Education and Community Budget,5105692998,19.12.2018,Home to School SEN Transport (LA),Transport of Clients,17.00,RED FUNNEL GROUP
Revenue,Adult Services,Adult Social Care,Assistive Equipment & Technology,5105693001,19.12.2018,Community Equipment Store,Operational Equipment,307.66,PRISM MEDICAL UK
Revenue,Adult Services,Adult Social Care,Assistive Equipment & Technology,5105693001,19.12.2018,Community Equipment Store,Operational Equipment,127.31,PRISM MEDICAL UK
Revenue,Adult Services,Adult Social Care,Assistive Equipment & Technology,5105693001,19.12.2018,Community Equipment Store,Operational Equipment,12.50,PRISM MEDICAL UK
Revenue,Regeneration,Central Services,Support Services,5105693004,19.12.2018,"Enterprise House, Newport",Rent of Buildings and Rooms,"30,625.00",MJH DEVELOPMENTS LTD
Revenue,Childrens Services,Children's & Education Services,Other Education and Community Budget,5105693009,27.12.2018,Home to School SEN Transport (LA),Taxis - Contract Hire,16.67,RYDE TAXIS LTD
Revenue,Neighbourhoods,Cultural and Related Services,Recreation and Sport,5105693010,19.12.2018,Medina Leisure Centre,Stock Purchases,20.94,MEDINA FOODSERVICE T/A MEDINA QUAY MEATS
Revenue,Adult Services,Adult Social Care,Assistive Equipment & Technology,5105693011,19.12.2018,Community Equipment Store,Operational Equipment,124.95,COMPLETE CARE NETWORK LTD
Revenue,Fire & Rescue,Fire & Rescue Services,Fire fighting and Rescue Operations,5105693019,19.12.2018,Business Support  - Fire,Property Services - Day to day Maintenance,80.00,WIGHT HEATING LTD
Revenue,Fire & Rescue,Fire & Rescue Services,Fire fighting and Rescue Operations,5105693020,19.12.2018,Business Support  - Fire,Property Services - Day to day Maintenance,80.00,WIGHT HEATING LTD
Revenue,Fire & Rescue,Fire & Rescue Services,Fire fighting and Rescue Operations,5105693021,19.12.2018,Business Support  - Fire,Stationery,16.98,SUPPLIES TEAM LTD
Revenue,Childrens Services,Children's & Education Services,Other Education and Community Budget,5105693047,19.12.2018,Learning & Development Running Costs,Stationery,2.47,SUPPLIES TEAM LTD
Revenue,Childrens Services,Children's & Education Services,Other Education and Community Budget,5105693047,19.12.2018,Learning & Development Running Costs,Stationery,6.42,SUPPLIES TEAM LTD
Revenue,Childrens Services,Children's & Education Services,Safeguarding Children/Young Peoples Svs,5105693048,21.12.2018,Commissioning (Children & Families),Stationery,3.22,SUPPLIES TEAM LTD
Revenue,Childrens Services,Children's & Education Services,Safeguarding Children/Young Peoples Svs,5105693048,21.12.2018,Commissioning (Children & Families),Stationery,8.80,SUPPLIES TEAM LTD
Revenue,Resources,Central Services,Support Services,5105693048,21.12.2018,County Hall Central Mail Room,Stationery,42.48,SUPPLIES TEAM LTD
Revenue,Neighbourhoods,Cultural and Related Services,Recreation and Sport,5105693060,21.12.2018,Medina Leisure Centre,Stationery,185.00,ICR SYSTEMS
Revenue,Childrens Services,Children's & Education Services,Other Education and Community Budget,5105693071,21.12.2018,Home to School SEN Transport (LA),Transport of Clients,17.00,RED FUNNEL GROUP
Revenue,Adult Services,Adult Social Care,Assistive Equipment & Technology,5105693072,19.12.2018,Community Equipment Store,Operational Equipment,-9.06,DRIVE MEDICAL LTD
Revenue,Place,Planning services,Development Control,5105693073,19.12.2018,Development Control,Advertising & Publicity,131.76,NEWSQUEST MEDIA GROUP LTD
Revenue,Neighbourhoods,Cultural and Related Services,Recreation and Sport,5105693074,19.12.2018,Medina Leisure Centre,Stock Purchases,26.68,MEDINA FOODSERVICE T/A MEDINA QUAY MEATS
Revenue,Neighbourhoods,Cultural and Related Services,Recreation and Sport,5105693076,19.12.2018,Medina Leisure Centre,Stock Purchases,185.00,MEDINA FOODSERVICE T/A MEDINA QUAY MEATS
Revenue,Neighbourhoods,Cultural and Related Services,Recreation and Sport,5105693077,19.12.2018,Medina Leisure Centre,Stock Purchases,738.49,ISLAND ALES LTD
Revenue,Neighbourhoods,Cultural and Related Services,Recreation and Sport,5105693078,19.12.2018,Medina Leisure Centre,Stock Purchases,953.64,ISLAND ALES LTD
Revenue,Fire & Rescue,Fire & Rescue Services,Fire fighting and Rescue Operations,5105693543,21.12.2018,Business Support  - Fire,Property Services - Day to day Maintenance,160.31,WIGHT HEATING LTD
Revenue,Adult Services,Adult Social Care,Learning Disab Supp (to be reallocated),5105693549,21.12.2018,Plean Dene,Operational Equipment,24.56,LAKE CLEANING & CATERING SUPPLIES
Revenue,Fire & Rescue,Fire & Rescue Services,Fire fighting and Rescue Operations,5105693551,21.12.2018,Business Support  - Fire,Property Services - Day to day Maintenance,-80.00,WIGHT HEATING LTD
Revenue,Adult Services,Adult Social Care,Assistive Equipment & Technology,5105693572,21.12.2018,Community Equipment Store,Operational Equipment,"1,948.70",JENX LIMITED
Revenue,Childrens Services,Children's & Education Services,Other Education and Community Budget,5105693612,21.12.2018,Home to School SEN Transport (LA),Transport of Clients,17.00,RED FUNNEL GROUP
Revenue,Adult Services,Adult Social Care,Social Support - Support for Carer,5105693621,21.12.2018,Westminster House,Operational Equipment,111.44,BETA PAK LTD
Revenue,Adult Services,Adult Social Care,Learning Disab Supp (to be reallocated),5105693623,21.12.2018,Plean Dene,Operational Equipment,252.95,BETA PAK LTD
Revenue,Adult Services,Adult Social Care,Learning Disab Supp (to be reallocated),5105693623,21.12.2018,Plean Dene,Operational Equipment,44.00,BETA PAK LTD
Revenue,Neighbourhoods,Cultural and Related Services,Recreation and Sport,5105693636,27.12.2018,Medina Leisure Centre,Stock Purchases,146.84,EXPRESSO PLUS
Revenue,Neighbourhoods,Cultural and Related Services,Recreation and Sport,5105693636,27.12.2018,Medina Leisure Centre,Stock Purchases,209.17,EXPRESSO PLUS
Revenue,Childrens Services,Children's & Education Services,Other Education and Community Budget,5105693648,27.12.2018,Home to School SEN Transport (LA),Taxis - Contract Hire,140.00,ALPHA (IOW) LTD
Revenue,Childrens Services,Children's & Education Services,Other Education and Community Budget,5105693648,27.12.2018,Home to School SEN Transport (LA),Taxis - Contract Hire,260.00,ALPHA (IOW) LTD
Revenue,Childrens Services,Children's & Education Services,Other Education and Community Budget,5105693648,27.12.2018,Home to School SEN Transport (LA),Taxis - Contract Hire,250.00,ALPHA (IOW) LTD
Revenue,Childrens Services,Children's & Education Services,Other Education and Community Budget,5105693648,27.12.2018,Home to School SEN Transport (LA),Taxis - Contract Hire,450.00,ALPHA (IOW) LTD
Revenue,Childrens Services,Children's & Education Services,Other Education and Community Budget,5105693648,27.12.2018,Home to School SEN Transport (LA),Taxis - Contract Hire,300.00,ALPHA (IOW) LTD
Revenue,Childrens Services,Children's & Education Services,Other Education and Community Budget,5105693648,27.12.2018,Home to School SEN Transport (LA),Taxis - Contract Hire,200.00,ALPHA (IOW) LTD
Revenue,Childrens Services,Children's & Education Services,Other Education and Community Budget,5105693648,27.12.2018,Home to School SEN Transport (LA),Taxis - Contract Hire,500.00,ALPHA (IOW) LTD
Revenue,Childrens Services,Children's & Education Services,Other Education and Community Budget,5105693648,27.12.2018,Home to School SEN Transport (LA),Taxis - Contract Hire,300.00,ALPHA (IOW) LTD
Revenue,Childrens Services,Children's & Education Services,Other Education and Community Budget,5105693648,27.12.2018,Home to School SEN Transport (LA),Taxis - Contract Hire,200.00,ALPHA (IOW) LTD
Revenue,Childrens Services,Children's & Education Services,Other Education and Community Budget,5105693648,27.12.2018,Home to School SEN Transport (LA),Taxis - Contract Hire,280.00,ALPHA (IOW) LTD
Revenue,Childrens Services,Children's & Education Services,Other Education and Community Budget,5105693648,27.12.2018,Home to School SEN Transport (LA),Taxis - Contract Hire,150.00,ALPHA (IOW) LTD
Revenue,Childrens Services,Children's & Education Services,Other Education and Community Budget,5105693648,27.12.2018,Home to School SEN Transport (LA),Taxis - Contract Hire,600.00,ALPHA (IOW) LTD
Revenue,Childrens Services,Children's & Education Services,Other Education and Community Budget,5105693648,27.12.2018,Home to School SEN Transport (LA),Taxis - Contract Hire,350.00,ALPHA (IOW) LTD
Revenue,Childrens Services,Children's & Education Services,Other Education and Community Budget,5105693648,27.12.2018,Home to School SEN Transport (LA),Taxis - Contract Hire,250.00,ALPHA (IOW) LTD
Revenue,Childrens Services,Children's & Education Services,Other Education and Community Budget,5105693648,27.12.2018,Home to School SEN Transport (LA),Taxis - Contract Hire,450.00,ALPHA (IOW) LTD
Revenue,Childrens Services,Children's & Education Services,Other Education and Community Budget,5105693648,27.12.2018,Home to School SEN Transport (LA),Taxis - Contract Hire,350.00,ALPHA (IOW) LTD
Revenue,Childrens Services,Children's & Education Services,Other Education and Community Budget,5105693648,27.12.2018,Home to School SEN Transport (LA),Taxis - Contract Hire,250.00,ALPHA (IOW) LTD
Revenue,Childrens Services,Children's & Education Services,Other Education and Community Budget,5105693648,27.12.2018,Home to School SEN Transport (LA),Taxis - Contract Hire,400.00,ALPHA (IOW) LTD
Revenue,Adult Services,Adult Social Care,Commissioning & Service Delivery,5105693403,20.12.2018,BCF Community Matrons,Payments to IW CCG,"-39,335.00",NHS ISLE OF WIGHT CCG
Revenue,Adult Services,Adult Social Care,Commissioning & Service Delivery,5105693403,20.12.2018,BCF Continence Service,Payments to IW CCG,"-76,193.00",NHS ISLE OF WIGHT CCG
Revenue,Adult Services,Adult Social Care,Commissioning & Service Delivery,5105693403,20.12.2018,BCF Anticipatory Care Planning,Payments to IW CCG,"-14,650.00",NHS ISLE OF WIGHT CCG
Revenue,Adult Services,Adult Social Care,Commissioning & Service Delivery,5105693403,20.12.2018,BCF CCG Carers,Payments to IW CCG,"-24,638.00",NHS ISLE OF WIGHT CCG
Revenue,Adult Services,Adult Social Care,Commissioning & Service Delivery,5105693403,20.12.2018,BCF MH Social Care Officers,Payments to IW CCG,"-12,250.00",NHS ISLE OF WIGHT CCG
Revenue,Adult Services,Adult Social Care,Commissioning & Service Delivery,5105693403,20.12.2018,BCF Woodlands Centre,Payments to IW CCG,"-107,050.00",NHS ISLE OF WIGHT CCG
Revenue,Adult Services,Adult Social Care,Commissioning & Service Delivery,5105693405,24.12.2018,BCF Community Matrons,Payments to IW CCG,"39,335.00",NHS ISLE OF WIGHT CCG
Revenue,Adult Services,Adult Social Care,Commissioning & Service Delivery,5105693405,24.12.2018,BCF Continence Service,Payments to IW CCG,"76,193.00",NHS ISLE OF WIGHT CCG
Revenue,Adult Services,Adult Social Care,Commissioning & Service Delivery,5105693405,24.12.2018,BCF Anticipatory Care Planning,Payments to IW CCG,"14,650.00",NHS ISLE OF WIGHT CCG
Revenue,Adult Services,Adult Social Care,Commissioning & Service Delivery,5105693405,24.12.2018,BCF CCG Carers,Payments to IW CCG,"24,638.00",NHS ISLE OF WIGHT CCG
Revenue,Adult Services,Adult Social Care,Commissioning & Service Delivery,5105693405,24.12.2018,BCF MH Social Care Officers,Payments to IW CCG,"12,250.00",NHS ISLE OF WIGHT CCG
Revenue,Adult Services,Adult Social Care,Commissioning & Service Delivery,5105693405,24.12.2018,BCF Woodlands Centre,Payments to IW CCG,"107,050.00",NHS ISLE OF WIGHT CCG
Revenue,Childrens Services,Children's & Education Services,Other Education and Community Budget,5105693410,21.12.2018,Home to School SEN Transport (LA),Taxis - Contract Hire,880.00,REDLINE TAXIS
Revenue,Childrens Services,Children's & Education Services,Other Education and Community Budget,5105693411,21.12.2018,Home to School SEN Transport (LA),Taxis - Contract Hire,660.00,REDLINE TAXIS
Revenue,Childrens Services,Children's & Education Services,Other Education and Community Budget,5105693174,19.12.2018,Home to School SEN Transport (LA),Taxis - Contract Hire,60.00,RYDE TAXIS LTD
Revenue,Adult Services,Adult Social Care,Commissioning & Service Delivery,5105693176,20.12.2018,BCF Community Matrons,Payments to IW CCG,"39,335.00",NHS ISLE OF WIGHT CCG
Revenue,Adult Services,Adult Social Care,Commissioning & Service Delivery,5105693176,20.12.2018,BCF Continence Service,Payments to IW CCG,"76,193.00",NHS ISLE OF WIGHT CCG
Revenue,Adult Services,Adult Social Care,Commissioning & Service Delivery,5105693176,20.12.2018,BCF Anticipatory Care Planning,Payments to IW CCG,"14,650.00",NHS ISLE OF WIGHT CCG
Revenue,Adult Services,Adult Social Care,Commissioning & Service Delivery,5105693176,20.12.2018,BCF CCG Carers,Payments to IW CCG,"24,638.00",NHS ISLE OF WIGHT CCG
Revenue,Adult Services,Adult Social Care,Commissioning & Service Delivery,5105693176,20.12.2018,BCF MH Social Care Officers,Payments to IW CCG,"12,250.00",NHS ISLE OF WIGHT CCG
Revenue,Adult Services,Adult Social Care,Commissioning & Service Delivery,5105693176,20.12.2018,BCF Woodlands Centre,Payments to IW CCG,"107,050.00",NHS ISLE OF WIGHT CCG
Revenue,Neighbourhoods,Cultural and Related Services,Recreation and Sport,5105693180,19.12.2018,Medina Leisure Centre,Stock Purchases,77.92,MEDINA FOODSERVICE T/A MEDINA QUAY MEATS
Revenue,Neighbourhoods,Cultural and Related Services,Recreation and Sport,5105693180,19.12.2018,Medina Leisure Centre,Stock Purchases,101.49,MEDINA FOODSERVICE T/A MEDINA QUAY MEATS
Revenue,Childrens Services,Children's & Education Services,Other Education and Community Budget,5105693198,19.12.2018,Home to School SEN Transport (LA),Taxis - Contract Hire,553.40,RYDE TAXIS LTD
Revenue,Childrens Services,Children's & Education Services,Other Education and Community Budget,5105693202,21.12.2018,Home to School SEN Transport (LA),Taxis - Contract Hire,572.00,AMAR CABS OF NEWPORT
Revenue,Childrens Services,Children's & Education Services,Other Education and Community Budget,5105693211,21.12.2018,Home to School SEN Transport (LA),Taxis - Contract Hire,"-1,200.00",MUSTI'S TAXIS
Revenue,Childrens Services,Children's & Education Services,Other Education and Community Budget,5105693218,21.12.2018,Home to School SEN Transport (LA),Taxis - Contract Hire,"1,800.00",MUSTI'S TAXIS
Revenue,Childrens Services,Children's & Education Services,Other Education and Community Budget,5105693220,21.12.2018,Home to School SEN Transport (LA),Taxis - Contract Hire,"-1,700.00",MUSTI'S TAXIS
Revenue,Adult Services,Adult Social Care,Learning Disab Supp (to be reallocated),5105693233,21.12.2018,Saxonbury,Operational Equipment,16.48,BETA PAK LTD
Revenue,Place,Planning services,Development Control,5105692193,07.12.2018,Development Control,Advertising & Publicity,219.60,NEWSQUEST MEDIA GROUP LTD
Revenue,Adult Services,Adult Social Care,Learning Disab Supp (to be reallocated),5105692199,07.12.2018,Plean Dene,Operational Equipment,128.63,BETA PAK LTD
Revenue,Adult Services,Adult Social Care,Learning Disab Supp (to be reallocated),5105692200,07.12.2018,Saxonbury,Operational Equipment,24.72,BETA PAK LTD
Revenue,Childrens Services,Children's & Education Services,Other Education and Community Budget,5105692201,14.12.2018,Home to School SEN Transport (LA),Transport of Clients,17.00,RED FUNNEL GROUP
Revenue,Childrens Services,Children's & Education Services,Other Education and Community Budget,5105692202,12.12.2018,Home to School SEN Transport (LA),Transport of Clients,17.00,RED FUNNEL GROUP
Revenue,Childrens Services,Children's & Education Services,Other Education and Community Budget,5105692243,12.12.2018,Home to School SEN Transport (LA),Taxis - Contract Hire,"1,250.00",MUSTI'S TAXIS
Revenue,Childrens Services,Children's & Education Services,Other Education and Community Budget,5105692245,12.12.2018,Home to School SEN Transport (LA),Taxis - Contract Hire,"2,275.00",MUSTI'S TAXIS
Revenue,Regeneration,Planning services,Economic Development,5105692250,21.12.2018,Digital Conference,Hire of facilities,644.50,COWES YACHT HAVEN LTD
Revenue,Adult Services,Adult Social Care,Learning Disab Supp (to be reallocated),5105692254,12.12.2018,Plean Dene,Operational Equipment,116.38,THE CONSORTIUM
Revenue,Neighbourhoods,Cultural and Related Services,Recreation and Sport,5105692255,12.12.2018,Medina Leisure Centre,Operational Equipment,"1,493.60",CLIPPER CONTRACTS LTD
Revenue,Adult Services,Adult Social Care,Assistive Equipment & Technology,5105692262,12.12.2018,Community Equipment Store,Operational Equipment,399.00,COMPLETE CARE NETWORK LTD
Revenue,Adult Services,Adult Social Care,Assistive Equipment & Technology,5105692262,12.12.2018,Community Equipment Store,Operational Equipment,20.00,COMPLETE CARE NETWORK LTD
Revenue,Fire & Rescue,Fire & Rescue Services,Fire fighting and Rescue Operations,5105692265,12.12.2018,Business Support  - Fire,Property Services - Day to day Maintenance,80.00,WIGHT HEATING LTD
Revenue,Neighbourhoods,Cultural and Related Services,Culture and Heritage,5105692266,12.12.2018,Archives,Property Services - Planned Maintenance,75.00,WIGHT HEATING LTD
Revenue,Childrens Services,Children's & Education Services,Other Education and Community Budget,5105692279,12.12.2018,Home to School SEN Transport (LA),Taxis - Contract Hire,12.51,RYDE TAXIS LTD
Revenue,Neighbourhoods,Cultural and Related Services,Recreation and Sport,5105692289,14.12.2018,Medina Leisure Centre,Stock Purchases,611.00,MEDINA FOODSERVICE T/A MEDINA QUAY MEATS
Revenue,Neighbourhoods,Cultural and Related Services,Recreation and Sport,5105692289,14.12.2018,Medina Leisure Centre,Stock Purchases,15.32,MEDINA FOODSERVICE T/A MEDINA QUAY MEATS
Revenue,Childrens Services,Children's & Education Services,Management & Support Services,5105692300,12.12.2018,Special Discretionary Grants,Charges from Independent Providers,"1,250.00",IW ADVENTURE ACTIVITIES LTD
Revenue,Neighbourhoods,Cultural and Related Services,Recreation and Sport,5105692301,12.12.2018,Medina Leisure Centre,Property Services - Day to day Maintenance,70.30,TEMPLE LIFTS LTD
Revenue,Neighbourhoods,Cultural and Related Services,Recreation and Sport,5105692312,12.12.2018,Medina Leisure Centre,Property Services - Planned Maintenance,70.30,TEMPLE LIFTS LTD
Revenue,Childrens Services,Children's & Education Services,Other Education and Community Budget,5105692318,19.12.2018,Home to School SEN Transport (LA),Transport of Clients,17.00,RED FUNNEL GROUP
Revenue,Childrens Services,Children's & Education Services,Other Education and Community Budget,5105692328,12.12.2018,Home to School SEN Transport (LA),Transport of Clients,17.00,RED FUNNEL GROUP
Revenue,Childrens Services,Children's & Education Services,Other Education and Community Budget,5105692357,12.12.2018,Home to School SEN Transport (LA),Taxis - Contract Hire,"1,210.00",CLARES CABS
Revenue,Childrens Services,Children's & Education Services,Other Education and Community Budget,5105692366,19.12.2018,Home to School SEN Transport (LA),Transport of Clients,17.00,RED FUNNEL GROUP
Revenue,Adult Services,Adult Social Care,Social Care Activities,5105692369,12.12.2018,Local Safeguarding Adults Board,Hire of facilities,60.00,RIVERSIDE VENTURES LTD
Revenue,Adult Services,Adult Social Care,Social Care Activities,5105692369,12.12.2018,Local Safeguarding Adults Board,Hire of facilities,62.50,RIVERSIDE VENTURES LTD
Revenue,Adult Services,Adult Social Care,Social Care Activities,5105692369,12.12.2018,Local Safeguarding Adults Board,Hire of facilities,25.00,RIVERSIDE VENTURES LTD
Revenue,Childrens Services,Children's & Education Services,Other Education and Community Budget,5105692381,12.12.2018,Home to School SEN Transport (LA),Taxis - Contract Hire,450.00,ALPHA (IOW) LTD
Revenue,Childrens Services,Children's & Education Services,Other Education and Community Budget,5105692381,12.12.2018,Home to School SEN Transport (LA),Taxis - Contract Hire,350.00,ALPHA (IOW) LTD
Revenue,Childrens Services,Children's & Education Services,Other Education and Community Budget,5105692381,12.12.2018,Home to School SEN Transport (LA),Taxis - Contract Hire,250.00,ALPHA (IOW) LTD
Revenue,Childrens Services,Children's & Education Services,Other Education and Community Budget,5105692381,12.12.2018,Home to School SEN Transport (LA),Taxis - Contract Hire,400.00,ALPHA (IOW) LTD
Revenue,Childrens Services,Children's & Education Services,Other Education and Community Budget,5105692381,12.12.2018,Home to School SEN Transport (LA),Taxis - Contract Hire,395.00,ALPHA (IOW) LTD
Revenue,Childrens Services,Children's & Education Services,Other Education and Community Budget,5105692381,12.12.2018,Home to School SEN Transport (LA),Taxis - Contract Hire,700.00,ALPHA (IOW) LTD
Revenue,Childrens Services,Children's & Education Services,Other Education and Community Budget,5105692381,12.12.2018,Home to School SEN Transport (LA),Taxis - Contract Hire,200.00,ALPHA (IOW) LTD
Revenue,Childrens Services,Children's & Education Services,Other Education and Community Budget,5105692381,12.12.2018,Home to School SEN Transport (LA),Taxis - Contract Hire,280.00,ALPHA (IOW) LTD
Revenue,Childrens Services,Children's & Education Services,Other Education and Community Budget,5105692381,12.12.2018,Home to School SEN Transport (LA),Taxis - Contract Hire,150.00,ALPHA (IOW) LTD
Revenue,Childrens Services,Children's & Education Services,Other Education and Community Budget,5105692381,12.12.2018,Home to School SEN Transport (LA),Taxis - Contract Hire,600.00,ALPHA (IOW) LTD
Revenue,Childrens Services,Children's & Education Services,Other Education and Community Budget,5105692381,12.12.2018,Home to School SEN Transport (LA),Taxis - Contract Hire,350.00,ALPHA (IOW) LTD
Revenue,Childrens Services,Children's & Education Services,Other Education and Community Budget,5105692381,12.12.2018,Home to School SEN Transport (LA),Taxis - Contract Hire,250.00,ALPHA (IOW) LTD
Revenue,Childrens Services,Children's & Education Services,Other Education and Community Budget,5105692381,12.12.2018,Home to School SEN Transport (LA),Taxis - Contract Hire,300.00,ALPHA (IOW) LTD
Revenue,Childrens Services,Children's & Education Services,Other Education and Community Budget,5105692381,12.12.2018,Home to School SEN Transport (LA),Taxis - Contract Hire,450.00,ALPHA (IOW) LTD
Capital,Childrens Services,Capital,Capital,5105694215,28.12.2018,Administration and Inspection Schemes,External Design and Supervision Fees,"4,370.50",HAMPSHIRE COUNTY COUNCIL
Capital,Childrens Services,Capital,Capital,5105694215,28.12.2018,Administration and Inspection Schemes,External Design and Supervision Fees,300.00,HAMPSHIRE COUNTY COUNCIL
Capital,Childrens Services,Capital,Capital,5105694215,28.12.2018,Administration and Inspection Schemes,External Design and Supervision Fees,594.50,HAMPSHIRE COUNTY COUNCIL
Capital,Childrens Services,Capital,Capital,5105694215,28.12.2018,Administration and Inspection Schemes,External Design and Supervision Fees,356.50,HAMPSHIRE COUNTY COUNCIL
Capital,Childrens Services,Capital,Capital,5105694215,28.12.2018,Administration and Inspection Schemes,External Design and Supervision Fees,"4,820.50",HAMPSHIRE COUNTY COUNCIL
Capital,Childrens Services,Capital,Capital,5105694215,28.12.2018,Administration and Inspection Schemes,External Design and Supervision Fees,"3,490.75",HAMPSHIRE COUNTY COUNCIL
Capital,Childrens Services,Capital,Capital,5105694215,28.12.2018,Administration and Inspection Schemes,External Design and Supervision Fees,290.00,HAMPSHIRE COUNTY COUNCIL
Capital,Childrens Services,Capital,Capital,5105694215,28.12.2018,Administration and Inspection Schemes,External Design and Supervision Fees,248.00,HAMPSHIRE COUNTY COUNCIL
Capital,Childrens Services,Capital,Capital,5105694215,28.12.2018,Administration and Inspection Schemes,External Design and Supervision Fees,"5,797.00",HAMPSHIRE COUNTY COUNCIL
Capital,Childrens Services,Capital,Capital,5105694215,28.12.2018,Administration and Inspection Schemes,External Design and Supervision Fees,187.50,HAMPSHIRE COUNTY COUNCIL
Capital,Childrens Services,Capital,Capital,5105694215,28.12.2018,Administration and Inspection Schemes,External Design and Supervision Fees,614.25,HAMPSHIRE COUNTY COUNCIL
Capital,Childrens Services,Capital,Capital,5105694215,28.12.2018,Administration and Inspection Schemes,External Design and Supervision Fees,579.00,HAMPSHIRE COUNTY COUNCIL
Capital,Childrens Services,Capital,Capital,5105694215,28.12.2018,Administration and Inspection Schemes,External Design and Supervision Fees,"4,626.00",HAMPSHIRE COUNTY COUNCIL
Capital,Childrens Services,Capital,Capital,5105694215,28.12.2018,Administration and Inspection Schemes,External Design and Supervision Fees,300.00,HAMPSHIRE COUNTY COUNCIL
Revenue,Adult Services,Adult Social Care,Commissioning & Service Delivery,5105694255,28.12.2018,BCF Care Bill Implementation,Payment to Private Contractors,"20,000.00",ADAM HTT LTD
Revenue,Adult Services,Adult Social Care,Commissioning & Service Delivery,5105694257,28.12.2018,BCF Care Bill Implementation,Payment to Private Contractors,"43,750.00",ADAM HTT LTD
Revenue,Neighbourhoods,Cultural and Related Services,Recreation and Sport,5105694287,28.12.2018,Medina Leisure Centre,Payment to Private Contractors,582.80,FUGRO GB MARINE LTD
Revenue,Place,Highways and Transport Services,Transport Planning Policy and Strategy,5105694332,28.12.2018,Sustainable Transport,Payment to Private Contractors,"3,788.62",A TO THERE SOLUTIONS LTD
Revenue,Place,Highways and Transport Services,Transport Planning Policy and Strategy,5105694333,28.12.2018,Sustainable Transport,Payment to Private Contractors,"3,429.21",A TO THERE SOLUTIONS LTD
Capital,Corporate Items,Balance Sheet,Balance Sheet,5105694384,28.12.2018,Balance Sheet,Vehicle Maintenance Costs,55.95,FLEET MOBILE TYRES (ISLE OF WIGHT)
Revenue,Neighbourhoods,Cultural and Related Services,Recreation and Sport,5105694393,28.12.2018,Medina Leisure Centre,Payment to Private Contractors,900.00,WILLIAMS ASSOCIATES (SOUTHERN) LTD
Revenue,Neighbourhoods,Cultural and Related Services,Open Spaces,5105693890,27.12.2018,John O�Conner Grounds Maintenance Contract,Payment to Private Contractors,90.00,BRIGHSTONE LANDSCAPING LTD
Capital,Childrens Services,Capital,Capital,5105693895,27.12.2018,Administration and Inspection Schemes,Payment to Contractors - Capital,"1,500.00",ROGER HANLEY FENCING
Capital,Childrens Services,Capital,Capital,5105693907,27.12.2018,Administration and Inspection Schemes,Payment to Contractors - Capital,"4,413.51",T JONES ELECTRICAL LTD
Capital,Childrens Services,Capital,Capital,5105693908,27.12.2018,Administration and Inspection Schemes,Payment to Contractors - Capital,"7,479.63",T JONES ELECTRICAL LTD
Revenue,Childrens Services,Children's & Education Services,Other Education and Community Budget,5105693905,27.12.2018,Home to School SEN Transport (LA),Taxis - Contract Hire,600.00,ALPHA (IOW) LTD
Revenue,Childrens Services,Children's & Education Services,Other Education and Community Budget,5105693905,27.12.2018,Home to School SEN Transport (LA),Taxis - Contract Hire,350.00,ALPHA (IOW) LTD
Revenue,Childrens Services,Children's & Education Services,Other Education and Community Budget,5105693905,27.12.2018,Home to School SEN Transport (LA),Taxis - Contract Hire,250.00,ALPHA (IOW) LTD
Revenue,Childrens Services,Children's & Education Services,Other Education and Community Budget,5105693905,27.12.2018,Home to School SEN Transport (LA),Taxis - Contract Hire,300.00,ALPHA (IOW) LTD
Revenue,Childrens Services,Children's & Education Services,Other Education and Community Budget,5105693905,27.12.2018,Home to School SEN Transport (LA),Taxis - Contract Hire,450.00,ALPHA (IOW) LTD
Revenue,Childrens Services,Children's & Education Services,Other Education and Community Budget,5105693905,27.12.2018,Home to School SEN Transport (LA),Taxis - Contract Hire,300.00,ALPHA (IOW) LTD
Revenue,Childrens Services,Children's & Education Services,Other Education and Community Budget,5105693905,27.12.2018,Home to School SEN Transport (LA),Taxis - Contract Hire,200.00,ALPHA (IOW) LTD
Revenue,Childrens Services,Children's & Education Services,Other Education and Community Budget,5105693905,27.12.2018,Home to School SEN Transport (LA),Taxis - Contract Hire,500.00,ALPHA (IOW) LTD
Revenue,Childrens Services,Children's & Education Services,Other Education and Community Budget,5105693905,27.12.2018,Home to School SEN Transport (LA),Taxis - Contract Hire,140.00,ALPHA (IOW) LTD
Revenue,Childrens Services,Children's & Education Services,Other Education and Community Budget,5105693905,27.12.2018,Home to School SEN Transport (LA),Taxis - Contract Hire,260.00,ALPHA (IOW) LTD
Revenue,Childrens Services,Children's & Education Services,Other Education and Community Budget,5105693905,27.12.2018,Home to School SEN Transport (LA),Taxis - Contract Hire,250.00,ALPHA (IOW) LTD
Revenue,Fire & Rescue,Fire & Rescue Services,Fire fighting and Rescue Operations,5105694162,27.12.2018,Business Support  - Fire,Property Services - Day to day Maintenance,305.08,CHANT LOCK & SECURITY SERVICE
Revenue,Adult Services,Adult Social Care,Learning Disab Supp (to be reallocated),5105694168,27.12.2018,Saxonbury,Operational Equipment,39.36,BETA PAK LTD
Revenue,Adult Services,Adult Social Care,Learning Disab Supp (to be reallocated),5105694169,27.12.2018,Plean Dene,Operational Equipment,6.07,BETA PAK LTD
Revenue,Regeneration,Planning services,Economic Development,5105694199,28.12.2018,Director of Regeneration,Computer Maintenance,378.90,PHOENIX SOFTWARE LTD
Revenue,Childrens Services,Children's & Education Services,Management & Support Services,5105694206,28.12.2018,Special Discretionary Grants,Charges from Independent Providers,473.48,SOCIALISING BUDDIES
Revenue,Neighbourhoods,Cultural and Related Services,Recreation and Sport,5105694285,28.12.2018,Medina Leisure Centre,Stock Purchases,321.73,HUNTS FOOD SERVICES LTD
Revenue,Neighbourhoods,Cultural and Related Services,Open Spaces,5105694288,28.12.2018,Rights of Way Operations,Operational Equipment,50.29,W HURST & SON (IW) LTD
Revenue,Adult Services,Adult Social Care,Learning Disab Supp (to be reallocated),5105694290,28.12.2018,Saxonbury,Operational Equipment,435.46,BETA PAK LTD
Revenue,Adult Services,Adult Social Care,Assistive Equipment & Technology,5105694297,28.12.2018,Community Equipment Store,Operational Equipment,695.00,COMPLETE CARE NETWORK LTD
Revenue,Adult Services,Adult Social Care,Assistive Equipment & Technology,5105694297,28.12.2018,Community Equipment Store,Operational Equipment,715.00,COMPLETE CARE NETWORK LTD
Revenue,Neighbourhoods,Cultural and Related Services,Open Spaces,5105694306,28.12.2018,Rights of Way Operations,Operational Equipment,17.98,W HURST & SON (IW) LTD
Revenue,Fire & Rescue,Fire & Rescue Services,Fire fighting and Rescue Operations,5105694309,28.12.2018,Business Support  - Fire,Property Services - Day to day Maintenance,245.00,WIGHT HEATING LTD
Revenue,Neighbourhoods,Cultural and Related Services,Recreation and Sport,5105694310,28.12.2018,Medina Leisure Centre,Property Services - Day to day Maintenance,80.00,WIGHT HEATING LTD
Revenue,Neighbourhoods,Cultural and Related Services,Recreation and Sport,5105694312,28.12.2018,Medina Leisure Centre,Property Services - Day to day Maintenance,105.00,WIGHT HEATING LTD
Revenue,Adult Services,Adult Social Care,Assistive Equipment & Technology,5105694326,28.12.2018,Community Equipment Store,Operational Equipment,859.90,NOTTINGHAM REHAB LTD
Revenue,Adult Services,Adult Social Care,Assistive Equipment & Technology,5105694326,28.12.2018,Community Equipment Store,Operational Equipment,20.00,NOTTINGHAM REHAB LTD
Revenue,Childrens Services,Children's & Education Services,Other Education and Community Budget,5105694344,28.12.2018,Home to School SEN Transport (LA),Taxis - Contract Hire,"1,000.00",WIGHTLINE TAXIS
Revenue,Regeneration,Planning services,Economic Development,5105694363,28.12.2018,Digital Conference,Hire of facilities,"-2,890.50",COWES YACHT HAVEN LTD
Revenue,Adult Services,Adult Social Care,Learning Disab Supp (to be reallocated),5105694398,28.12.2018,Plean Dene,Operational Equipment,26.59,LAKE CLEANING & CATERING SUPPLIES
Revenue,Childrens Services,Children's & Education Services,Other Education and Community Budget,5105693835,27.12.2018,Home to School SEN Transport (LA),Transport of Clients,17.00,RED FUNNEL GROUP
Revenue,Childrens Services,Children's & Education Services,Management & Support Services,5105693851,27.12.2018,Special Discretionary Grants,Charges from Independent Providers,343.75,SOCIALISING BUDDIES
Revenue,Adult Services,Adult Social Care,Assistive Equipment & Technology,5105693897,27.12.2018,Community Equipment Store,Operational Equipment,175.25,IDML
Revenue,Childrens Services,Children's & Education Services,Other Education and Community Budget,5105693905,27.12.2018,Home to School SEN Transport (LA),Taxis - Contract Hire,495.00,ALPHA (IOW) LTD
Revenue,Childrens Services,Children's & Education Services,Other Education and Community Budget,5105693905,27.12.2018,Home to School SEN Transport (LA),Taxis - Contract Hire,350.00,ALPHA (IOW) LTD
Revenue,Childrens Services,Children's & Education Services,Other Education and Community Budget,5105693905,27.12.2018,Home to School SEN Transport (LA),Taxis - Contract Hire,250.00,ALPHA (IOW) LTD
Revenue,Childrens Services,Children's & Education Services,Other Education and Community Budget,5105693905,27.12.2018,Home to School SEN Transport (LA),Taxis - Contract Hire,400.00,ALPHA (IOW) LTD
Revenue,Childrens Services,Children's & Education Services,Other Education and Community Budget,5105693905,27.12.2018,Home to School SEN Transport (LA),Taxis - Contract Hire,395.00,ALPHA (IOW) LTD
Revenue,Childrens Services,Children's & Education Services,Other Education and Community Budget,5105693905,27.12.2018,Home to School SEN Transport (LA),Taxis - Contract Hire,700.00,ALPHA (IOW) LTD
Revenue,Childrens Services,Children's & Education Services,Other Education and Community Budget,5105693905,27.12.2018,Home to School SEN Transport (LA),Taxis - Contract Hire,200.00,ALPHA (IOW) LTD
Revenue,Childrens Services,Children's & Education Services,Other Education and Community Budget,5105693905,27.12.2018,Home to School SEN Transport (LA),Taxis - Contract Hire,280.00,ALPHA (IOW) LTD
Revenue,Childrens Services,Children's & Education Services,Other Education and Community Budget,5105693905,27.12.2018,Home to School SEN Transport (LA),Taxis - Contract Hire,150.00,ALPHA (IOW) LTD
Revenue,Adult Services,Adult Social Care,Support - Memory /Cognition-older people (65+),5105693785,27.12.2018,Memory & Cognition Homecare 65+,Charges from Independent Providers,"2,342.48",EDEN HOUSE
Revenue,Adult Services,Adult Social Care,Learning Disability Support-older people,5105693772,27.12.2018,Learning Disability Nursing 65+,Charges from Independent Providers,"2,621.36",SANDOWN NURSING HOME
Revenue,Childrens Services,Children's & Education Services,Other Education and Community Budget,5105693648,27.12.2018,Home to School SEN Transport (LA),Taxis - Contract Hire,395.00,ALPHA (IOW) LTD
Revenue,Childrens Services,Children's & Education Services,Other Education and Community Budget,5105693648,27.12.2018,Home to School SEN Transport (LA),Taxis - Contract Hire,700.00,ALPHA (IOW) LTD
Revenue,Neighbourhoods,Cultural and Related Services,Recreation and Sport,5105693653,27.12.2018,Medina Leisure Centre,Stock Purchases,200.60,ZOGGS INTERNATIONAL LIMITED
Revenue,Adult Services,Adult Social Care,Learning Disability Support-older people,5105693751,27.12.2018,Learning Disability Nursing 65+,Charges from Independent Providers,"2,621.36",KITE HILL NURSING HOME
Revenue,Childrens Services,Children's & Education Services,Other Education and Community Budget,5105693412,21.12.2018,Home to School SEN Transport (LA),Taxis - Contract Hire,"1,760.00",REDLINE TAXIS
Revenue,Childrens Services,Children's & Education Services,Other Education and Community Budget,5105693413,21.12.2018,Home to School SEN Transport (LA),Taxis - Contract Hire,665.00,REDLINE TAXIS
Revenue,Neighbourhoods,Cultural and Related Services,Recreation and Sport,5105693416,21.12.2018,Medina Leisure Centre,Operational Equipment,59.32,J P LENNARD LTD
Revenue,Neighbourhoods,Cultural and Related Services,Recreation and Sport,5105693416,21.12.2018,Medina Leisure Centre,Operational Equipment,22.20,J P LENNARD LTD
Revenue,Regeneration,Planning services,Economic Development,5105693423,21.12.2018,Digital Conference,Hire of facilities,"2,890.50",COWES YACHT HAVEN LTD
Revenue,Adult Services,Adult Social Care,Learning Disab Supp (to be reallocated),5105693441,21.12.2018,Plean Dene,Operational Equipment,39.36,BETA PAK LTD
Revenue,Adult Services,Adult Social Care,Assistive Equipment & Technology,5105693458,21.12.2018,Community Equipment Store,Operational Equipment,216.00,WESTRIDGE LTD
Revenue,Childrens Services,Children's & Education Services,Other Education and Community Budget,5105693472,27.12.2018,Home to School SEN Transport (LA),Taxis - Contract Hire,840.00,LEADERCABS LTD
Revenue,Childrens Services,Children's & Education Services,Other Education and Community Budget,5105693476,21.12.2018,Learning & Development Running Costs,Stationery,1.90,SUPPLIES TEAM LTD
Revenue,Childrens Services,Children's & Education Services,Other Education and Community Budget,5105693476,21.12.2018,Learning & Development Running Costs,Stationery,53.10,SUPPLIES TEAM LTD
Revenue,Childrens Services,Children's & Education Services,Other Education and Community Budget,5105693476,21.12.2018,Learning & Development Running Costs,Stationery,3.35,SUPPLIES TEAM LTD
Revenue,Childrens Services,Children's & Education Services,Other Education and Community Budget,5105693476,21.12.2018,Learning & Development Running Costs,Stationery,6.42,SUPPLIES TEAM LTD
Revenue,Childrens Services,Children's & Education Services,Other Education and Community Budget,5105693476,21.12.2018,Learning & Development Running Costs,Stationery,2.00,SUPPLIES TEAM LTD
Revenue,Childrens Services,Children's & Education Services,Other Education and Community Budget,5105693476,21.12.2018,Learning & Development Running Costs,Stationery,94.82,SUPPLIES TEAM LTD
Revenue,Childrens Services,Children's & Education Services,Other Education and Community Budget,5105693476,21.12.2018,Learning & Development Running Costs,Stationery,9.63,SUPPLIES TEAM LTD
Revenue,Neighbourhoods,Cultural and Related Services,Open Spaces,5105693485,21.12.2018,Rights of Way Operations,Maintenance of Operational Equipment,15.31,MIKE GARWOOD LTD
Revenue,Neighbourhoods,Cultural and Related Services,Open Spaces,5105693488,21.12.2018,Rights of Way Operations,Maintenance of Operational Equipment,141.37,MIKE GARWOOD LTD
Revenue,Childrens Services,Children's & Education Services,Other Education and Community Budget,5105693491,21.12.2018,Home to School SEN Transport (LA),Taxis - Contract Hire,880.00,MINIBUS-PLUS.COM/TOP TAXI
Revenue,Fire & Rescue,Fire & Rescue Services,Fire fighting and Rescue Operations,5105693521,21.12.2018,Business Support  - Fire,Property Services - Day to day Maintenance,80.00,WIGHT HEATING LTD
Revenue,Adult Services,Adult Social Care,Learning Disab Supp (to be reallocated),5105693534,21.12.2018,Plean Dene,Operational Equipment,-6.24,BETA PAK LTD
Revenue,Adult Services,Adult Social Care,Central Codes (to be reallocated),5105693535,21.12.2018,Gouldings Resource Centre,Property Services - Day to day Maintenance,80.00,WIGHT HEATING LTD
Revenue,Adult Services,Adult Social Care,Social Care Activities,5105693040,19.12.2018,Domestic Violence,Payments to other NHS Trusts,500.00,SOLENT NHS TRUST
Revenue,Neighbourhoods,Environmental & Regulatory Services,Regulatory Services,5105693056,21.12.2018,Public Conveniences - General,Cleaning Contracts,"1,200.00",TOP MOPS LIMITED
Revenue,Resources,Central Services,Central Services to the Public,5105693068,19.12.2018,Electoral Registration Canvassing,Printing Costs,"1,011.72",ELECTORAL REFORM SERVICES
Revenue,Neighbourhoods,Cultural and Related Services,Recreation and Sport,5105693084,19.12.2018,Medina Leisure Centre,Payment to Private Contractors,130.00,FOUR SEASONS CLEANING SERVICES LTD
Revenue,Adult Services,Adult Social Care,Commissioning & Service Delivery,5105693095,27.12.2018,NHS Independent Complaints Advocacy Service (ICAS),Payment to Private Contractors,"3,750.00",SEAP
Revenue,Adult Services,Adult Social Care,Assistive Equipment & Technology,5105693122,27.12.2018,Community Equipment Store,Cleaning Contracts,252.12,N-VIRO
Revenue,Neighbourhoods,Cultural and Related Services,Recreation and Sport,5105693196,19.12.2018,Medina Leisure Centre,Payment to Private Contractors,200.00,ICR SYSTEMS
Revenue,Neighbourhoods,Cultural and Related Services,Recreation and Sport,5105693433,21.12.2018,Medina Leisure Centre,Clothing & Laundry,54.20,CONTEGO SAFETY SOLUTIONS LTD
Revenue,Adult Services,Adult Social Care,Assistive Equipment & Technology,5105693454,27.12.2018,Community Equipment Store,Vehicle Maintenance Costs,1.76,PREMIER MOTORS (SOLENT) LTD
Revenue,Adult Services,Adult Social Care,Assistive Equipment & Technology,5105693457,27.12.2018,Community Equipment Store,Vehicle Maintenance Costs,7.24,PREMIER MOTORS (SOLENT) LTD
Revenue,Neighbourhoods,Cultural and Related Services,Recreation and Sport,5105693554,21.12.2018,Sandown Concessions,Payment to Private Contractors,70.15,BRIGHSTONE LANDSCAPING LTD
Revenue,Neighbourhoods,Cultural and Related Services,Recreation and Sport,5105693554,21.12.2018,Ryde Concessions,Payment to Private Contractors,79.93,BRIGHSTONE LANDSCAPING LTD
Capital,Childrens Services,Capital,Capital,5105693557,21.12.2018,Administration and Inspection Schemes,Payment to Contractors - Capital,"112,723.96",T JONES ELECTRICAL LTD
Capital,Childrens Services,Capital,Capital,5105693574,21.12.2018,Administration and Inspection Schemes,Payment to Contractors - Capital,"65,043.90",F W MARSH (ELECT & MECH) LTD
Capital,Childrens Services,Capital,Capital,5105693594,27.12.2018,Administration and Inspection Schemes,External Design and Supervision Fees,"3,030.00",HAMPSHIRE COUNTY COUNCIL
Capital,Childrens Services,Capital,Capital,5105693594,27.12.2018,Administration and Inspection Schemes,External Design and Supervision Fees,"2,580.00",HAMPSHIRE COUNTY COUNCIL
Capital,Childrens Services,Capital,Capital,5105693594,27.12.2018,Administration and Inspection Schemes,External Design and Supervision Fees,"7,665.00",HAMPSHIRE COUNTY COUNCIL
Capital,Childrens Services,Capital,Capital,5105693594,27.12.2018,Administration and Inspection Schemes,External Design and Supervision Fees,105.00,HAMPSHIRE COUNTY COUNCIL
Capital,Childrens Services,Capital,Capital,5105693594,27.12.2018,Administration and Inspection Schemes,External Design and Supervision Fees,"1,305.00",HAMPSHIRE COUNTY COUNCIL
Capital,Childrens Services,Capital,Capital,5105693594,27.12.2018,Administration and Inspection Schemes,External Design and Supervision Fees,"3,585.00",HAMPSHIRE COUNTY COUNCIL
Capital,Childrens Services,Capital,Capital,5105693594,27.12.2018,Administration and Inspection Schemes,External Design and Supervision Fees,"1,290.00",HAMPSHIRE COUNTY COUNCIL
Capital,Childrens Services,Capital,Capital,5105693594,27.12.2018,Administration and Inspection Schemes,External Design and Supervision Fees,"2,640.00",HAMPSHIRE COUNTY COUNCIL
Capital,Childrens Services,Capital,Capital,5105693594,27.12.2018,Administration and Inspection Schemes,External Design and Supervision Fees,"3,195.00",HAMPSHIRE COUNTY COUNCIL
Capital,Childrens Services,Capital,Capital,5105693594,27.12.2018,Administration and Inspection Schemes,External Design and Supervision Fees,"1,575.00",HAMPSHIRE COUNTY COUNCIL
Capital,Childrens Services,Capital,Capital,5105693594,27.12.2018,Administration and Inspection Schemes,External Design and Supervision Fees,30.00,HAMPSHIRE COUNTY COUNCIL
Capital,Childrens Services,Capital,Capital,5105693594,27.12.2018,Administration and Inspection Schemes,External Design and Supervision Fees,"5,730.00",HAMPSHIRE COUNTY COUNCIL
Capital,Childrens Services,Capital,Capital,5105693594,27.12.2018,Administration and Inspection Schemes,External Design and Supervision Fees,"1,140.00",HAMPSHIRE COUNTY COUNCIL
Capital,Childrens Services,Capital,Capital,5105693594,27.12.2018,Administration and Inspection Schemes,External Design and Supervision Fees,600.00,HAMPSHIRE COUNTY COUNCIL
Revenue,Adult Services,Adult Social Care,Social Care Activities,5105692177,12.12.2018,Domestic Violence,Payment to Private Contractors,"21,007.47",THE YOU TRUST
Revenue,Neighbourhoods,Cultural and Related Services,Recreation and Sport,5105692226,12.12.2018,Sandown Concessions,Payment to Private Contractors,50.00,GROUNDSELL CONTRACTING LTD
Revenue,Adult Services,Adult Social Care,Learning Disab Supp (to be reallocated),5105692252,12.12.2018,"Brooklime House, Bluebell Meadows",Security of Buildings,72.00,VECTIS GROUP SECURITY LTD
Capital,Childrens Services,Capital,Capital,5105692309,12.12.2018,Administration and Inspection Schemes,Payment to Contractors - Capital,945.00,ROGER HANLEY FENCING
Capital,Childrens Services,Capital,Capital,5105692315,12.12.2018,Administration and Inspection Schemes,Payment to Contractors - Capital,"16,576.43",MCM CONSTRUCTION LTD
Capital,Childrens Services,Capital,Capital,5105692317,12.12.2018,Administration and Inspection Schemes,Payment to Contractors - Capital,"1,468.93",T JONES ELECTRICAL LTD
Capital,Childrens Services,Capital,Capital,5105692317,12.12.2018,Administration and Inspection Schemes,Payment to Contractors - Capital,"15,194.77",T JONES ELECTRICAL LTD
Capital,Childrens Services,Capital,Capital,5105692323,12.12.2018,Administration and Inspection Schemes,Payment to Contractors - Capital,845.80,T JONES ELECTRICAL LTD
Capital,Childrens Services,Capital,Capital,5105692323,12.12.2018,Administration and Inspection Schemes,Payment to Contractors - Capital,"1,605.77",T JONES ELECTRICAL LTD
Capital,Childrens Services,Capital,Capital,5105692330,12.12.2018,Administration and Inspection Schemes,Payment to Contractors - Capital,"24,214.16",MCM CONSTRUCTION LTD
Revenue,Neighbourhoods,Cultural and Related Services,Open Spaces,5105692334,12.12.2018,John O�Conner Grounds Maintenance Contract,Payment to Private Contractors,90.00,F W MARSH (ELECT & MECH) LTD
Revenue,Adult Services,Adult Social Care,Learning Disab Supp (to be reallocated),5105692337,12.12.2018,Plean Dene,"Refuse Collection, Disposal and Recycling Costs",184.56,BIFFA WASTE SERVICES LTD
Revenue,Adult Services,Adult Social Care,Learning Disab Supp (to be reallocated),5105692337,12.12.2018,Saxonbury,"Refuse Collection, Disposal and Recycling Costs",90.68,BIFFA WASTE SERVICES LTD
Revenue,Childrens Services,Children's & Education Services,Other Education and Community Budget,5105692337,12.12.2018,Learning & Development Running Costs,"Refuse Collection, Disposal and Recycling Costs",48.14,BIFFA WASTE SERVICES LTD
Revenue,Neighbourhoods,Cultural and Related Services,Recreation and Sport,5105692337,12.12.2018,Seaclose Amusements,"Refuse Collection, Disposal and Recycling Costs",371.36,BIFFA WASTE SERVICES LTD
Revenue,Neighbourhoods,Highways and Transport Services,"Airports, Harbours & Toll Facilities",5105692337,12.12.2018,Ryde Harbour,"Refuse Collection, Disposal and Recycling Costs",96.28,BIFFA WASTE SERVICES LTD
Revenue,Regeneration,Central Services,Support Services,5105692337,12.12.2018,"Enterprise House, Newport","Refuse Collection, Disposal and Recycling Costs",197.03,BIFFA WASTE SERVICES LTD
Revenue,Childrens Services,Children's & Education Services,Other Education and Community Budget,5105692337,12.12.2018,SEND Independent Advice & Support,"Refuse Collection, Disposal and Recycling Costs",38.92,BIFFA WASTE SERVICES LTD
Revenue,Adult Services,Adult Social Care,Assistive Equipment & Technology,5105692337,12.12.2018,Community Equipment Store,"Refuse Collection, Disposal and Recycling Costs",86.21,BIFFA WASTE SERVICES LTD
Revenue,Neighbourhoods,Cultural and Related Services,Culture and Heritage,5105692337,12.12.2018,Archaeology,"Refuse Collection, Disposal and Recycling Costs",5.60,BIFFA WASTE SERVICES LTD
Revenue,Adult Services,Adult Social Care,Commissioning & Service Delivery,5105692337,12.12.2018,Stores Adult Social Care,"Refuse Collection, Disposal and Recycling Costs",10.18,BIFFA WASTE SERVICES LTD
Revenue,Neighbourhoods,Cultural and Related Services,Recreation and Sport,5105692337,12.12.2018,Medina Leisure Centre,"Refuse Collection, Disposal and Recycling Costs",353.51,BIFFA WASTE SERVICES LTD
Revenue,Adult Services,Adult Social Care,Assistive Equipment & Technology,5105692348,14.12.2018,Community Equipment Store,Vehicle Maintenance Costs,889.82,PREMIER MOTORS (SOLENT) LTD
Revenue,Neighbourhoods,Cultural and Related Services,Open Spaces,5105692350,12.12.2018,Allotments,Payment to Private Contractors,50.00,GROUNDSELL CONTRACTING LTD
Revenue,Corporate Items,Central Services,Support Services,5105692405,12.12.2018,Miscellaneous Non-rechargeable,Legal Fees - Other Parties,"8,816.00",DAC BEACHCROFT LTD
Revenue,Corporate Items,Central Services,Support Services,5105692405,12.12.2018,Miscellaneous Non-rechargeable,Legal Fees - Other Parties,"1,850.00",DAC BEACHCROFT LTD
Revenue,Neighbourhoods,Highways and Transport Services,Management and Support Services,5105692406,12.12.2018,Highways PFI Contract,Payment to Private Contractors,"17,660.39",ISLAND ROADS SERVICES LTD
Revenue,Neighbourhoods,Cultural and Related Services,Open Spaces,5105691871,07.12.2018,Rights of Way Operations,Payment to Private Contractors,450.00,NIGEL EARLEY SERVICES LTD
Revenue,Adult Services,Adult Social Care,Commissioning & Service Delivery,5105691922,12.12.2018,iBCF Support for Providers,Training,"2,250.00",DAVID BURNBY & ASSOCIATES
Revenue,Adult Services,Adult Social Care,Commissioning & Service Delivery,5105691922,12.12.2018,iBCF Support for Providers,Training,625.72,DAVID BURNBY & ASSOCIATES
Revenue,Adult Services,Adult Social Care,Commissioning & Service Delivery,5105691922,12.12.2018,iBCF Support for Providers,Training,187.00,DAVID BURNBY & ASSOCIATES
Revenue,Adult Services,Adult Social Care,Central Codes (to be reallocated),5105691931,07.12.2018,Gouldings Resource Centre,"Refuse Collection, Disposal and Recycling Costs",95.20,BIFFA WASTE SERVICES LTD
Revenue,Adult Services,Adult Social Care,Central Codes (to be reallocated),5105691938,07.12.2018,Gouldings Resource Centre,"Refuse Collection, Disposal and Recycling Costs",306.24,BIFFA WASTE SERVICES LTD
Capital,Childrens Services,Capital,Capital,5105691968,12.12.2018,Administration and Inspection Schemes,Payment to Contractors - Capital,"52,963.90",T JONES ELECTRICAL LTD
Revenue,Adult Services,Adult Social Care,Commissioning & Service Delivery,5105691988,12.12.2018,Stores Adult Social Care,Payment to Private Contractors,91.08,WSM ASSOCIATES LTD
Revenue,Neighbourhoods,Cultural and Related Services,Open Spaces,5105692036,07.12.2018,Rights of Way Operations,Vehicle Maintenance Costs,11.50,CHAMELEON CODEWING LTD
Revenue,Neighbourhoods,Cultural and Related Services,Open Spaces,5105692036,07.12.2018,Rights of Way Operations,Vehicle Maintenance Costs,11.50,CHAMELEON CODEWING LTD
Revenue,Resources,Children's & Education Services,Other Education and Community Budget,5105692075,12.12.2018,Workforce Development Schools,Printing Costs,170.00,ADGIFTDISCOUNTS LTD
Revenue,Adult Services,Adult Social Care,Social Care Activities,5105692083,19.12.2018,Domestic Violence,Payment to Private Contractors,"21,007.47",THE YOU TRUST
Revenue,Resources,Central Services,Support Services,5105692102,07.12.2018,Pension Administration,Training,63.00,FRENCH FRANKS
Revenue,Childrens Services,Children's & Education Services,Other Education and Community Budget,5105686462,12.12.2018,SEND Independent Advice & Support,Cleaning Contracts,2.69,PHS GROUP PLC
Revenue,Adult Services,Adult Social Care,Learning Disab Supp (to be reallocated),5105686462,12.12.2018,Saxonbury,Cleaning Contracts,153.06,PHS GROUP PLC
Revenue,Neighbourhoods,Cultural and Related Services,Library Service,5105686462,12.12.2018,Ryde Library,Cleaning Contracts,3.90,PHS GROUP PLC
Revenue,Neighbourhoods,Cultural and Related Services,Recreation and Sport,5105686462,12.12.2018,Medina Leisure Centre,Cleaning Contracts,69.83,PHS GROUP PLC
Revenue,Adult Services,Adult Social Care,Learning Disab Supp (to be reallocated),5105686462,12.12.2018,Plean Dene,Cleaning Contracts,121.17,PHS GROUP PLC
Revenue,Adult Services,Adult Social Care,Social Support - Support for Carer,5105686462,12.12.2018,Westminster House,Cleaning Contracts,109.08,PHS GROUP PLC
Revenue,Adult Services,Adult Social Care,Assistive Equipment & Technology,5105686462,12.12.2018,Community Equipment Store,Cleaning Contracts,2.70,PHS GROUP PLC
Revenue,Neighbourhoods,Cultural and Related Services,Library Service,5105686462,12.12.2018,Cowes Library,Cleaning Contracts,2.92,PHS GROUP PLC
Revenue,Childrens Services,Children's & Education Services,Other Education and Community Budget,5105686462,12.12.2018,Learning & Development Running Costs,Cleaning Contracts,6.75,PHS GROUP PLC
Revenue,Neighbourhoods,Cultural and Related Services,Recreation and Sport,5105691221,07.12.2018,Medina Leisure Centre,Payment to Private Contractors,"3,998.85",F W MARSH (ELECT & MECH) LTD
Revenue,Resources,Central Services,Support Services,5105691374,12.12.2018,County Hall Central Mail Room,Professional Subscriptions,"3,616.93",DX NETWORK SERVICES LTD
Revenue,Adult Services,Adult Social Care,Assistive Equipment & Technology,5105691499,05.12.2018,Community Equipment Store,Vehicle Maintenance Costs,80.00,FLEET MOBILE TYRES (ISLE OF WIGHT)
Capital,Childrens Services,Capital,Capital,5105691503,05.12.2018,Administration and Inspection Schemes,Payment to Contractors - Capital,"284,686.97",ROLLALONG LIMITED
Revenue,Resources,Central Services,Central Services to the Public,5105691576,12.12.2018,Electoral Registration Canvassing,Printing Costs,"3,456.90",ELECTORAL REFORM SERVICES
Revenue,Neighbourhoods,Cultural and Related Services,Open Spaces,5105691617,05.12.2018,Client Management Unit - Grounds Maintenance,Vehicle Maintenance Costs,52.95,FLEET MOBILE TYRES (ISLE OF WIGHT)
Capital,Childrens Services,Capital,Capital,5105694215,28.12.2018,Administration and Inspection Schemes,External Design and Supervision Fees,93.00,HAMPSHIRE COUNTY COUNCIL
Capital,Childrens Services,Capital,Capital,5105694215,28.12.2018,Administration and Inspection Schemes,External Design and Supervision Fees,152.00,HAMPSHIRE COUNTY COUNCIL
Capital,Childrens Services,Capital,Capital,5105694215,28.12.2018,Administration and Inspection Schemes,External Design and Supervision Fees,478.00,HAMPSHIRE COUNTY COUNCIL
Capital,Childrens Services,Capital,Capital,5105694215,28.12.2018,Administration and Inspection Schemes,External Design and Supervision Fees,95.00,HAMPSHIRE COUNTY COUNCIL
Capital,Childrens Services,Capital,Capital,5105694215,28.12.2018,Administration and Inspection Schemes,External Design and Supervision Fees,57.00,HAMPSHIRE COUNTY COUNCIL
Capital,Childrens Services,Capital,Capital,5105694215,28.12.2018,Administration and Inspection Schemes,External Design and Supervision Fees,"8,640.65",HAMPSHIRE COUNTY COUNCIL
Capital,Childrens Services,Capital,Capital,5105694215,28.12.2018,Administration and Inspection Schemes,External Design and Supervision Fees,"9,783.50",HAMPSHIRE COUNTY COUNCIL
Capital,Childrens Services,Capital,Capital,5105694215,28.12.2018,Administration and Inspection Schemes,External Design and Supervision Fees,49.00,HAMPSHIRE COUNTY COUNCIL
Capital,Childrens Services,Capital,Capital,5105694215,28.12.2018,Administration and Inspection Schemes,External Design and Supervision Fees,133.00,HAMPSHIRE COUNTY COUNCIL
Capital,Childrens Services,Capital,Capital,5105694215,28.12.2018,Administration and Inspection Schemes,External Design and Supervision Fees,"4,068.75",HAMPSHIRE COUNTY COUNCIL
Capital,Childrens Services,Capital,Capital,5105694215,28.12.2018,Administration and Inspection Schemes,External Design and Supervision Fees,"1,814.00",HAMPSHIRE COUNTY COUNCIL
Capital,Childrens Services,Capital,Capital,5105694215,28.12.2018,Administration and Inspection Schemes,External Design and Supervision Fees,"11,045.75",HAMPSHIRE COUNTY COUNCIL
Capital,Childrens Services,Capital,Capital,5105694215,28.12.2018,Administration and Inspection Schemes,External Design and Supervision Fees,"13,244.50",HAMPSHIRE COUNTY COUNCIL
Capital,Childrens Services,Capital,Capital,5105694215,28.12.2018,Administration and Inspection Schemes,External Design and Supervision Fees,"1,691.50",HAMPSHIRE COUNTY COUNCIL
Capital,Childrens Services,Capital,Capital,5105694215,28.12.2018,Administration and Inspection Schemes,External Design and Supervision Fees,233.00,HAMPSHIRE COUNTY COUNCIL
Capital,Childrens Services,Capital,Capital,5105694215,28.12.2018,Administration and Inspection Schemes,External Design and Supervision Fees,"8,939.50",HAMPSHIRE COUNTY COUNCIL
Revenue,Adult Services,Adult Social Care,Learning Disab Supp (to be reallocated),5105691616,05.12.2018,Plean Dene,Minor Works,80.00,A & M APPLIANCE CARE
Revenue,Adult Services,Adult Social Care,Learning Disab Supp (to be reallocated),5105691983,07.12.2018,Plean Dene,Minor Works,185.00,WIGHT HEATING LTD
Revenue,Adult Services,Adult Social Care,Learning Disab Supp (to be reallocated),5105693525,21.12.2018,Plean Dene,Minor Works,215.00,WIGHT HEATING LTD
Revenue,Neighbourhoods,Highways and Transport Services,"Airports, Harbours & Toll Facilities",5105692927,28.12.2018,Ryde Harbour,Minor Works,54.00,WSM ASSOCIATES LTD
Revenue,Neighbourhoods,Highways and Transport Services,"Airports, Harbours & Toll Facilities",5105692925,28.12.2018,Ryde Harbour,Minor Works,99.80,WSM ASSOCIATES LTD
Revenue,Adult Services,Adult Social Care,Social Support - Support for Carer,5105692927,28.12.2018,Westminster House,Minor Works,54.00,WSM ASSOCIATES LTD
Revenue,Adult Services,Adult Social Care,Social Support - Support for Carer,5105692925,28.12.2018,Westminster House,Minor Works,99.80,WSM ASSOCIATES LTD
Revenue,Neighbourhoods,Highways and Transport Services,"Airports, Harbours & Toll Facilities",5105691988,12.12.2018,Ryde Harbour,Minor Works,91.08,WSM ASSOCIATES LTD
Revenue,Adult Services,Adult Social Care,Learning Disab Supp (to be reallocated),5105692221,12.12.2018,Plean Dene,Minor Works,87.00,ARJO UK LTD
Revenue,Adult Services,Adult Social Care,Social Support - Support for Carer,5105691988,12.12.2018,Westminster House,Minor Works,91.08,WSM ASSOCIATES LTD
Revenue,Adult Services,Adult Social Care,Assistive Equipment & Technology,5105691988,12.12.2018,Community Equipment Store,Fixtures and Fittings,91.08,WSM ASSOCIATES LTD
Revenue,Adult Services,Adult Social Care,Assistive Equipment & Technology,5105692322,12.12.2018,Community Equipment Store,Fixtures and Fittings,200.79,WIGHT HEATING LTD
Revenue,Adult Services,Adult Social Care,Assistive Equipment & Technology,5105692925,28.12.2018,Community Equipment Store,Fixtures and Fittings,99.80,WSM ASSOCIATES LTD
Revenue,Adult Services,Adult Social Care,Assistive Equipment & Technology,5105692927,28.12.2018,Community Equipment Store,Fixtures and Fittings,54.00,WSM ASSOCIATES LTD
Revenue,Adult Services,Adult Social Care,Assistive Equipment & Technology,5105693222,21.12.2018,Community Equipment Store,Fixtures and Fittings,590.47,TEMPLE LIFTS LTD
Revenue,Adult Services,Adult Social Care,Learning Disab Supp (to be reallocated),5105693234,21.12.2018,Plean Dene,Fixtures and Fittings,"2,144.17",ISLE OF WIGHT TEXTILES
Revenue,Adult Services,Adult Social Care,Central Codes (to be reallocated),5105691531,05.12.2018,Gouldings Resource Centre,Consumable Cleaning Materials,145.54,ISLAND ENVIRONMENTAL HYGIENE LTD
Revenue,Adult Services,Adult Social Care,Learning Disab Supp (to be reallocated),5105691611,07.12.2018,Plean Dene,Consumable Cleaning Materials,78.00,A & M APPLIANCE CARE
Revenue,Adult Services,Adult Social Care,Central Codes (to be reallocated),5105691613,05.12.2018,Gouldings Resource Centre,Consumable Cleaning Materials,180.00,A & M APPLIANCE CARE
Revenue,Neighbourhoods,Cultural and Related Services,Recreation and Sport,5105694251,28.12.2018,Medina Leisure Centre,Consumable Cleaning Materials,29.12,LAKE CLEANING & CATERING SUPPLIES
Revenue,Neighbourhoods,Cultural and Related Services,Recreation and Sport,5105694251,28.12.2018,Medina Leisure Centre,Consumable Cleaning Materials,14.56,LAKE CLEANING & CATERING SUPPLIES
Revenue,Neighbourhoods,Cultural and Related Services,Recreation and Sport,5105694251,28.12.2018,Medina Leisure Centre,Consumable Cleaning Materials,16.44,LAKE CLEANING & CATERING SUPPLIES
Revenue,Neighbourhoods,Cultural and Related Services,Recreation and Sport,5105694251,28.12.2018,Medina Leisure Centre,Consumable Cleaning Materials,25.94,LAKE CLEANING & CATERING SUPPLIES
Revenue,Neighbourhoods,Cultural and Related Services,Recreation and Sport,5105694251,28.12.2018,Medina Leisure Centre,Consumable Cleaning Materials,44.28,LAKE CLEANING & CATERING SUPPLIES
Revenue,Neighbourhoods,Cultural and Related Services,Recreation and Sport,5105694251,28.12.2018,Medina Leisure Centre,Consumable Cleaning Materials,16.80,LAKE CLEANING & CATERING SUPPLIES
Revenue,Neighbourhoods,Cultural and Related Services,Recreation and Sport,5105694251,28.12.2018,Medina Leisure Centre,Consumable Cleaning Materials,13.44,LAKE CLEANING & CATERING SUPPLIES
Revenue,Neighbourhoods,Cultural and Related Services,Recreation and Sport,5105694251,28.12.2018,Medina Leisure Centre,Consumable Cleaning Materials,8.88,LAKE CLEANING & CATERING SUPPLIES
Revenue,Adult Services,Adult Social Care,Central Codes (to be reallocated),5105693578,21.12.2018,Gouldings Resource Centre,Consumable Cleaning Materials,119.74,ISLAND ENVIRONMENTAL HYGIENE LTD
Revenue,Adult Services,Adult Social Care,Central Codes (to be reallocated),5105693620,21.12.2018,Gouldings Resource Centre,Consumable Cleaning Materials,8.85,SOMERTON PAPER SERVICE
Revenue,Adult Services,Adult Social Care,Central Codes (to be reallocated),5105693187,19.12.2018,Gouldings Resource Centre,Consumable Cleaning Materials,854.53,SOMERTON PAPER SERVICE
Revenue,Neighbourhoods,Environmental & Regulatory Services,Regulatory Services,5105692830,14.12.2018,Public Conveniences - General,Consumable Cleaning Materials,25.80,TOP MOPS LIMITED
Revenue,Neighbourhoods,Cultural and Related Services,Recreation and Sport,5105692908,19.12.2018,Medina Leisure Centre,Consumable Cleaning Materials,"1,646.05",COMPLETE POOL CONTROLS LTD
Revenue,Neighbourhoods,Cultural and Related Services,Recreation and Sport,5105692438,12.12.2018,Medina Leisure Centre,Consumable Cleaning Materials,5.82,LAKE CLEANING & CATERING SUPPLIES
Revenue,Neighbourhoods,Cultural and Related Services,Recreation and Sport,5105692438,12.12.2018,Medina Leisure Centre,Consumable Cleaning Materials,117.09,LAKE CLEANING & CATERING SUPPLIES
Revenue,Neighbourhoods,Cultural and Related Services,Recreation and Sport,5105692438,12.12.2018,Medina Leisure Centre,Consumable Cleaning Materials,15.60,LAKE CLEANING & CATERING SUPPLIES
Revenue,Neighbourhoods,Cultural and Related Services,Recreation and Sport,5105692438,12.12.2018,Medina Leisure Centre,Consumable Cleaning Materials,16.28,LAKE CLEANING & CATERING SUPPLIES
Revenue,Adult Services,Adult Social Care,Learning Disab Supp (to be reallocated),5105692792,19.12.2018,Plean Dene,Consumable Cleaning Materials,80.00,A & M APPLIANCE CARE
Revenue,Neighbourhoods,Cultural and Related Services,Recreation and Sport,5105692438,12.12.2018,Medina Leisure Centre,Consumable Cleaning Materials,25.94,LAKE CLEANING & CATERING SUPPLIES
Revenue,Neighbourhoods,Cultural and Related Services,Recreation and Sport,5105692438,12.12.2018,Medina Leisure Centre,Consumable Cleaning Materials,45.30,LAKE CLEANING & CATERING SUPPLIES
Revenue,Neighbourhoods,Cultural and Related Services,Recreation and Sport,5105692438,12.12.2018,Medina Leisure Centre,Consumable Cleaning Materials,45.30,LAKE CLEANING & CATERING SUPPLIES
Revenue,Neighbourhoods,Cultural and Related Services,Recreation and Sport,5105692438,12.12.2018,Medina Leisure Centre,Consumable Cleaning Materials,20.16,LAKE CLEANING & CATERING SUPPLIES
Revenue,Neighbourhoods,Cultural and Related Services,Recreation and Sport,5105692438,12.12.2018,Medina Leisure Centre,Consumable Cleaning Materials,15.57,LAKE CLEANING & CATERING SUPPLIES
Revenue,Childrens Services,Children's & Education Services,Other Education and Community Budget,5105692014,07.12.2018,Learning & Development Running Costs,Consumable Cleaning Materials,22.71,N-VIRO
Revenue,Childrens Services,Children's & Education Services,Other Education and Community Budget,5105692014,07.12.2018,Learning & Development Running Costs,Consumable Cleaning Materials,53.88,N-VIRO
Revenue,Adult Services,Adult Social Care,Social Support - Support for Carer,5105694225,28.12.2018,Westminster House,Grounds Maintenance,184.00,CARE IN THE GARDEN
Revenue,Adult Services,Adult Social Care,Social Support - Support for Carer,5105691872,07.12.2018,Westminster House,Grounds Maintenance,95.15,CARE IN THE GARDEN
Revenue,Adult Services,Adult Social Care,Learning Disab Supp (to be reallocated),5105694225,28.12.2018,Plean Dene,Grounds Maintenance,320.00,CARE IN THE GARDEN
Revenue,Public Health,Public Health,Central Codes (to be reallocated),5105690723,07.12.2018,Local Area Coordinators -Gen Preventn NP,Travel Expenses,52.25,WIGHTLINK LTD
Revenue,Public Health,Public Health,Central Codes (to be reallocated),5105690723,07.12.2018,Local Area Coordinators -Gen Preventn NP,Travel Expenses,52.25,WIGHTLINK LTD
Revenue,Neighbourhoods,Cultural and Related Services,Open Spaces,5105693006,19.12.2018,Rights of Way Operations,Sundry Office Expenses,301.20,CHANT LOCK & SECURITY SERVICE
Revenue,Neighbourhoods,Cultural and Related Services,Open Spaces,5105693431,21.12.2018,Rights of Way Operations,Sundry Office Expenses,35.00,ST JOHNS CHURCH HALL
Revenue,Adult Services,Adult Social Care,Social Support - Support for Carer,5105690338,05.12.2018,Westminster House,Medical Fees and Staff Welfare,300.00,INDUSTRIAL DIAGNOSTICS COMPANY LTD
Revenue,Resources,Housing Services,Housing Benefits Administration,5105690338,05.12.2018,Housing Benefit,Medical Fees and Staff Welfare,300.00,INDUSTRIAL DIAGNOSTICS COMPANY LTD
Revenue,Adult Services,Adult Social Care,Social Care Activities,5105690338,05.12.2018,First Response,Medical Fees and Staff Welfare,300.00,INDUSTRIAL DIAGNOSTICS COMPANY LTD
Revenue,Place,Housing Services,Homelessness,5105693858,28.12.2018,"Options,Prevention & Register Team",Medical Fees and Staff Welfare,300.00,INDUSTRIAL DIAGNOSTICS COMPANY LTD
Revenue,Childrens Services,Children's & Education Services,Safeguarding Children/Young Peoples Svs,5105693858,28.12.2018,Children in Care Team,Medical Fees and Staff Welfare,225.00,INDUSTRIAL DIAGNOSTICS COMPANY LTD
Revenue,Adult Services,Adult Social Care,Central Codes (to be reallocated),5105693858,28.12.2018,Gouldings Resource Centre,Medical Fees and Staff Welfare,225.00,INDUSTRIAL DIAGNOSTICS COMPANY LTD
Revenue,Corporate Items,Central Services,Support Services,5105693858,28.12.2018,Miscellaneous Non-rechargeable,Medical Fees and Staff Welfare,900.00,INDUSTRIAL DIAGNOSTICS COMPANY LTD
Revenue,Adult Services,Adult Social Care,Social Care Activities,5105693858,28.12.2018,Self Directed Support Team,Medical Fees and Staff Welfare,225.00,INDUSTRIAL DIAGNOSTICS COMPANY LTD
Revenue,Adult Services,Adult Social Care,Assistive Equipment & Technology,5105691525,05.12.2018,Community Equipment Store,Computer Software Licencing,"2,825.00",RESCOM SYSTEMS LIMITED
Revenue,Resources,Housing Services,Housing Benefits Administration,5105691923,07.12.2018,Housing Benefit,Computer Software Licencing,"11,317.69",NORTHGATE PUBLIC SERVICES (UK) LTD
Revenue,Adult Services,Adult Social Care,Social Support - Support for Carer,5105692819,19.12.2018,Carers Services,Grants to External Bodies,"19,445.00",CARERS IW
Revenue,Public Health,Public Health,NCMP,5105693473,21.12.2018,National Child Measurement Programme P,Payments to IW NHS Trust,"1,416.67",ISLE OF WIGHT NHS TRUST
Revenue,Public Health,Public Health,Mandated 0-5 Childrens Services,5105693473,21.12.2018,0-5 Health Visitors P,Payments to IW NHS Trust,"147,715.91",ISLE OF WIGHT NHS TRUST
Revenue,Public Health,Public Health,Children 5-19 Programme,5105693473,21.12.2018,5-19 School Nursing NP,Payments to IW NHS Trust,"30,034.09",ISLE OF WIGHT NHS TRUST
Revenue,Public Health,Public Health,NCMP,5105693918,28.12.2018,National Child Measurement Programme P,Payments to IW NHS Trust,"1,416.67",ISLE OF WIGHT NHS TRUST
Revenue,Public Health,Public Health,Mandated 0-5 Childrens Services,5105693918,28.12.2018,0-5 Health Visitors P,Payments to IW NHS Trust,"147,715.91",ISLE OF WIGHT NHS TRUST
Revenue,Public Health,Public Health,Children 5-19 Programme,5105693918,28.12.2018,5-19 School Nursing NP,Payments to IW NHS Trust,"30,034.09",ISLE OF WIGHT NHS TRUST
Revenue,Childrens Services,Children's & Education Services,Management & Support Services,5105692632,21.12.2018,Pre-school Special Educational Needs,Training,125.00,ELKLAN
Revenue,Neighbourhoods,Highways and Transport Services,Parking Services,5105692684,21.12.2018,Parking Maintenance Off Street,Payment to Private Contractors,50.00,W HURST & SON (IW) LTD
Revenue,Place,Housing Services,Supporting People,5105692715,14.12.2018,Supporting People Young People,Payment to Private Contractors,706.68,IW LAW CENTRE LTD
Revenue,Place,Housing Services,Supporting People,5105692717,14.12.2018,Supporting People Mental Health,Payment to Private Contractors,"2,300.73",RICHMOND FELLOWSHIP
Revenue,Place,Housing Services,Supporting People,5105692718,14.12.2018,Supporting People Young People,Payment to Private Contractors,"37,173.84",SOVEREIGN HOUSING ASSOCIATION
Revenue,Place,Housing Services,Supporting People,5105692725,14.12.2018,Supporting People Physical Disability,Payment to Private Contractors,"1,944.57",TRACSCARE WELLCARE LIFESTYLES
Revenue,Place,Housing Services,Supporting People,5105692726,14.12.2018,Supporting People Mental Health,Payment to Private Contractors,"1,590.35",TRACSCARE WELLCARE LIFESTYLES
Revenue,Place,Housing Services,Supporting People,5105692727,14.12.2018,Supporting People Mental Health,Payment to Private Contractors,"23,071.76",SOUTHERN HOUSING GROUP - HOUSING BENEFIT
Revenue,Place,Housing Services,Supporting People,5105692729,14.12.2018,Supporting People Young People,Payment to Private Contractors,"1,116.99",SOUTHERN HOUSING GROUP - HOUSING BENEFIT
Revenue,Place,Housing Services,Supporting People,5105692731,14.12.2018,Supporting People Mental Health,Payment to Private Contractors,"9,440.76",SOUTHERN HOUSING GROUP - HOUSING BENEFIT
Revenue,Adult Services,Adult Social Care,Assistive Equipment & Technology,5105692751,14.12.2018,Community Equipment Store,Vehicle Maintenance Costs,"3,457.00",ISLAND COACHWORKS AND COATINGS
Revenue,Adult Services,Adult Social Care,Assistive Equipment & Technology,5105692752,14.12.2018,Community Equipment Store,Vehicle Maintenance Costs,237.06,ISLAND COACHWORKS AND COATINGS
Revenue,Neighbourhoods,Environmental & Regulatory Services,Regulatory Services,5105692772,14.12.2018,Public Conveniences - General,Cleaning Contracts,150.00,TOP MOPS LIMITED
Revenue,Resources,Central Services,Central Services to the Public,5105692858,19.12.2018,Electoral Registration Canvassing,Printing Costs,"2,215.50",ELECTORAL REFORM SERVICES
Revenue,Neighbourhoods,Cultural and Related Services,Open Spaces,5105692889,19.12.2018,Rights of Way Operations,Clothing & Laundry,145.14,ITS TOOLS IOW LTD
Revenue,Public Health,Public Health,NHS Health Check Programme,5105692897,27.12.2018,NHS Health Check Programme P,Payment to Private Contractors,"5,833.33",I W CHAMBER OF COMMERCE LIMITED
Revenue,Neighbourhoods,Cultural and Related Services,Recreation and Sport,5105692916,19.12.2018,Medina Leisure Centre,Payment to Private Contractors,12.00,VECTIS GROUP SECURITY LTD
Revenue,Adult Services,Adult Social Care,Commissioning & Service Delivery,5105692925,28.12.2018,Stores Adult Social Care,Payment to Private Contractors,99.80,WSM ASSOCIATES LTD
Revenue,Adult Services,Adult Social Care,Commissioning & Service Delivery,5105692927,28.12.2018,Stores Adult Social Care,Payment to Private Contractors,54.00,WSM ASSOCIATES LTD
Revenue,Neighbourhoods,Cultural and Related Services,Open Spaces,5105692956,19.12.2018,Allotments,Payment to Private Contractors,70.00,GROUNDSELL CONTRACTING LTD
Revenue,Place,Housing Services,Homelessness,5105693690,27.12.2018,Leaseholds by LA,Accommodation Costs - Leaseholder Payments,746.81,BRAMBLE LETTINGS
Revenue,Place,Housing Services,Homelessness,5105693690,27.12.2018,Leaseholds by LA,Accommodation Costs - Leaseholder Payments,281.66,BRAMBLE LETTINGS
Revenue,Neighbourhoods,Cultural and Related Services,Open Spaces,5105688133,19.12.2018,John O�Conner Grounds Maintenance Contract,Professional Services,"5,000.00",OCCAM'S RAZOR CONSULTING LTD
Revenue,Adult Services,Adult Social Care,Social Support - Support for Carer,5105690873,05.12.2018,Westminster House,Agency staff,343.79,NEWCROSS HEALTHCARE SOLUTIONS LTD
Revenue,Resources,Central Services,Support Services,5105691326,12.12.2018,Strategic Management,Professional Services,"15,000.00",PORTSMOUTH CITY COUNCIL
Revenue,Neighbourhoods,Highways and Transport Services,Management and Support Services,5105691336,05.12.2018,Highways PFI Project,Consultants Fees,"15,400.00",JASMINE CONSULTING (UK) LTD
Revenue,Neighbourhoods,Highways and Transport Services,Management and Support Services,5105691336,05.12.2018,Highways PFI Project,Consultants Fees,106.30,JASMINE CONSULTING (UK) LTD
Revenue,Neighbourhoods,Highways and Transport Services,Management and Support Services,5105691336,05.12.2018,Highways PFI Project,Consultants Fees,350.00,JASMINE CONSULTING (UK) LTD
Revenue,Resources,Housing Services,Housing Benefits Administration,5105691347,12.12.2018,Housing Benefit,Support Services - ICT,545.00,NORTHGATE PUBLIC SERVICES (UK) LTD
Revenue,Adult Services,Adult Social Care,Assistive Equipment & Technology,5105691378,14.12.2018,Community Equipment Store,General Materials,40.00,COMPLETE CARE NETWORK LTD
Revenue,Childrens Services,Children's & Education Services,Other Education and Community Budget,5105691545,05.12.2018,Learning & Development Running Costs,Catering Purchases,23.00,WIGHT CRYSTAL
Revenue,Adult Services,Adult Social Care,Learning Disab Supp (to be reallocated),5105691575,05.12.2018,Saxonbury,Agency staff,843.25,NEWCROSS HEALTHCARE SOLUTIONS LTD
Revenue,Place,Housing Services,Homelessness,5105691610,05.12.2018,Leaseholds by LA,Accommodation Costs - Leaseholder Payments,437.70,VECTIS HOUSING ASSOCIATION LTD
Revenue,Childrens Services,Children's & Education Services,Other Education and Community Budget,5105691642,05.12.2018,Learning & Development Running Costs,Catering Purchases,18.75,WIGHT CRYSTAL
Revenue,Childrens Services,Children's & Education Services,Other Education and Community Budget,5105691642,05.12.2018,Learning & Development Running Costs,Catering Purchases,15.75,WIGHT CRYSTAL
Revenue,Adult Services,Adult Social Care,Learning Disab Supp (to be reallocated),5105691647,21.12.2018,Plean Dene,Catering Purchases,151.91,BOOKER CASH & CARRY LTD
Revenue,Adult Services,Adult Social Care,Learning Disab Supp (to be reallocated),5105691647,21.12.2018,Plean Dene,Catering Purchases,22.86,BOOKER CASH & CARRY LTD
Revenue,Adult Services,Adult Social Care,Assistive Equipment & Technology,5105691657,05.12.2018,Community Equipment Store,General Materials,184.00,AKW MEDI-CARE LTD
Revenue,Adult Services,Adult Social Care,Assistive Equipment & Technology,5105691657,05.12.2018,Community Equipment Store,General Materials,310.00,AKW MEDI-CARE LTD
Revenue,Adult Services,Adult Social Care,Assistive Equipment & Technology,5105691657,05.12.2018,Community Equipment Store,General Materials,209.25,AKW MEDI-CARE LTD
Revenue,Adult Services,Adult Social Care,Assistive Equipment & Technology,5105691657,05.12.2018,Community Equipment Store,General Materials,253.50,AKW MEDI-CARE LTD
Revenue,Adult Services,Adult Social Care,Assistive Equipment & Technology,5105691657,05.12.2018,Community Equipment Store,General Materials,74.00,AKW MEDI-CARE LTD
Revenue,Adult Services,Adult Social Care,Learning Disab Supp (to be reallocated),5105691661,05.12.2018,Saxonbury,Agency staff,344.72,NEWCROSS HEALTHCARE SOLUTIONS LTD
Revenue,Adult Services,Adult Social Care,Learning Disab Supp (to be reallocated),5105691680,07.12.2018,Plean Dene,Catering Purchases,56.31,MEDINA FOODSERVICE T/A MEDINA QUAY MEATS
Revenue,Adult Services,Adult Social Care,Learning Disab Supp (to be reallocated),5105691681,07.12.2018,Plean Dene,Catering Purchases,29.99,MEDINA FOODSERVICE T/A MEDINA QUAY MEATS
Revenue,Adult Services,Adult Social Care,Learning Disab Supp (to be reallocated),5105691682,07.12.2018,Plean Dene,Catering Purchases,85.86,MEDINA FOODSERVICE T/A MEDINA QUAY MEATS
Revenue,Adult Services,Adult Social Care,Learning Disab Supp (to be reallocated),5105691683,07.12.2018,Plean Dene,Catering Purchases,17.93,MEDINA FOODSERVICE T/A MEDINA QUAY MEATS
Revenue,Adult Services,Adult Social Care,Learning Disab Supp (to be reallocated),5105691683,07.12.2018,Plean Dene,Catering Purchases,12.76,MEDINA FOODSERVICE T/A MEDINA QUAY MEATS
Revenue,Adult Services,Adult Social Care,Learning Disab Supp (to be reallocated),5105691684,07.12.2018,Plean Dene,Catering Purchases,33.80,MEDINA FOODSERVICE T/A MEDINA QUAY MEATS
Revenue,Adult Services,Adult Social Care,Learning Disab Supp (to be reallocated),5105691684,07.12.2018,Plean Dene,Catering Purchases,8.62,MEDINA FOODSERVICE T/A MEDINA QUAY MEATS
Revenue,Childrens Services,Children's & Education Services,Children Looked After,5105693294,21.12.2018,Adoption Costs,Support Children,168.09,REDACTED PERSONAL DATA
Revenue,Childrens Services,Children's & Education Services,Children Looked After,5105693301,21.12.2018,Adoption Costs,Support Children,43.79,REDACTED PERSONAL DATA
Revenue,Childrens Services,Children's & Education Services,Children Looked After,5105693301,21.12.2018,Adoption Costs,Support Children,38.14,REDACTED PERSONAL DATA
Revenue,Childrens Services,Children's & Education Services,Children Looked After,5105693301,21.12.2018,Adoption Costs,Support Children,38.14,REDACTED PERSONAL DATA
Revenue,Regeneration,Planning services,Economic Development,5105692628,21.12.2018,One Public Estate,Consultants Fees,965.85,INNER CIRCLE CONSULTING LTD
Revenue,Resources,Housing Services,Housing Benefits Administration,5105692633,21.12.2018,Housing Benefit,Consultants Fees,300.00,NORTHGATE PUBLIC SERVICES (UK) LTD
Revenue,Adult Services,Adult Social Care,Central Codes (to be reallocated),5105692642,14.12.2018,Gouldings Resource Centre,Catering Purchases,71.75,MEDINA FOODSERVICE T/A MEDINA QUAY MEATS
Revenue,Adult Services,Adult Social Care,Central Codes (to be reallocated),5105692643,14.12.2018,Gouldings Resource Centre,Catering Purchases,62.10,CHAPEL NURSERIES
Revenue,Adult Services,Adult Social Care,Central Codes (to be reallocated),5105692649,19.12.2018,Gouldings Resource Centre,Catering Purchases,-5.49,3663 (BFS GROUP LTD)
Revenue,Adult Services,Adult Social Care,Assistive Equipment & Technology,5105692655,14.12.2018,Community Equipment Store,General Materials,265.80,W HURST & SON (IW) LTD
Revenue,Adult Services,Adult Social Care,Central Codes (to be reallocated),5105692670,14.12.2018,Gouldings Resource Centre,Catering Purchases,194.50,MEDINA FOODSERVICE T/A MEDINA QUAY MEATS
Revenue,Adult Services,Adult Social Care,Learning Disab Supp (to be reallocated),5105692675,14.12.2018,Saxonbury,Catering Purchases,25.60,CHAPEL NURSERIES
Revenue,Adult Services,Adult Social Care,Social Support - Support for Carer,5105692677,14.12.2018,Westminster House,Catering Purchases,12.69,FARMHOUSE FAYRE (NEWPORT) LIMITED
Revenue,Adult Services,Adult Social Care,Central Codes (to be reallocated),5105692687,14.12.2018,Gouldings Resource Centre,Catering Purchases,185.94,3663 (BFS GROUP LTD)
Revenue,Adult Services,Adult Social Care,Central Codes (to be reallocated),5105692687,14.12.2018,Gouldings Resource Centre,Catering Purchases,21.93,3663 (BFS GROUP LTD)
Capital,Corporate Items,Balance Sheet,Balance Sheet,5105692735,14.12.2018,Balance Sheet,Order Settlement to Bal Sht GL,"2,905.50",KITE HILL NURSING HOME
Revenue,Adult Services,Adult Social Care,Central Codes (to be reallocated),5105692743,14.12.2018,Gouldings Resource Centre,Catering Purchases,51.86,MEDINA FOODSERVICE T/A MEDINA QUAY MEATS
Revenue,Regeneration,Planning services,Economic Development,5105692761,19.12.2018,Director of Regeneration,Professional Services,"2,175.00",ERMC LTD
Revenue,Adult Services,Adult Social Care,Learning Disab Supp (to be reallocated),5105692769,14.12.2018,Plean Dene,Catering Purchases,40.20,CHAPEL NURSERIES
Revenue,Adult Services,Adult Social Care,Learning Disab Supp (to be reallocated),5105692809,14.12.2018,Plean Dene,Catering Purchases,86.30,MEDINA FOODSERVICE T/A MEDINA QUAY MEATS
Revenue,Adult Services,Adult Social Care,Learning Disab Supp (to be reallocated),5105692809,14.12.2018,Plean Dene,Catering Purchases,55.40,MEDINA FOODSERVICE T/A MEDINA QUAY MEATS
Revenue,Adult Services,Adult Social Care,Social Support - Support for Carer,5105692811,14.12.2018,Westminster House,Catering Purchases,24.35,FARMHOUSE FAYRE (NEWPORT) LIMITED
Revenue,Adult Services,Adult Social Care,Learning Disab Supp (to be reallocated),5105692813,14.12.2018,Plean Dene,Catering Purchases,85.57,MEDINA FOODSERVICE T/A MEDINA QUAY MEATS
Revenue,Adult Services,Adult Social Care,Learning Disab Supp (to be reallocated),5105692813,14.12.2018,Plean Dene,Catering Purchases,12.76,MEDINA FOODSERVICE T/A MEDINA QUAY MEATS
Revenue,Adult Services,Adult Social Care,Social Support - Support for Carer,5105692824,14.12.2018,Westminster House,Catering Purchases,19.45,FARMHOUSE FAYRE (NEWPORT) LIMITED
Revenue,Adult Services,Adult Social Care,Social Support - Support for Carer,5105692826,14.12.2018,Westminster House,Catering Purchases,41.60,FARMHOUSE FAYRE (NEWPORT) LIMITED
Revenue,Adult Services,Adult Social Care,Social Support - Support for Carer,5105692827,14.12.2018,Westminster House,Catering Purchases,2.90,FARMHOUSE FAYRE (NEWPORT) LIMITED
Revenue,Adult Services,Adult Social Care,Social Support - Support for Carer,5105692829,14.12.2018,Westminster House,Catering Purchases,11.37,FARMHOUSE FAYRE (NEWPORT) LIMITED
Revenue,Adult Services,Adult Social Care,Social Support - Support for Carer,5105692831,14.12.2018,Westminster House,Catering Purchases,11.05,FARMHOUSE FAYRE (NEWPORT) LIMITED
Revenue,Adult Services,Adult Social Care,Social Support - Support for Carer,5105692845,19.12.2018,Westminster House,Catering Purchases,25.16,FARMHOUSE FAYRE (NEWPORT) LIMITED
Revenue,Adult Services,Adult Social Care,Social Support - Support for Carer,5105692846,19.12.2018,Westminster House,Catering Purchases,26.10,FARMHOUSE FAYRE (NEWPORT) LIMITED
Revenue,Adult Services,Adult Social Care,Central Codes (to be reallocated),5105692850,19.12.2018,Gouldings Resource Centre,Catering Purchases,99.59,MEDINA FOODSERVICE T/A MEDINA QUAY MEATS
Revenue,Adult Services,Adult Social Care,Central Codes (to be reallocated),5105692850,19.12.2018,Gouldings Resource Centre,Catering Purchases,24.36,MEDINA FOODSERVICE T/A MEDINA QUAY MEATS
Revenue,Adult Services,Adult Social Care,Central Codes (to be reallocated),5105692853,19.12.2018,Gouldings Resource Centre,Catering Purchases,64.29,MEDINA FOODSERVICE T/A MEDINA QUAY MEATS
Revenue,Adult Services,Adult Social Care,Learning Disab Supp (to be reallocated),5105692856,19.12.2018,Plean Dene,Catering Purchases,23.97,BOOKER CASH & CARRY LTD
Revenue,Adult Services,Adult Social Care,Central Codes (to be reallocated),5105692859,19.12.2018,Gouldings Resource Centre,Catering Purchases,271.80,3663 (BFS GROUP LTD)
Revenue,Adult Services,Adult Social Care,Central Codes (to be reallocated),5105692859,19.12.2018,Gouldings Resource Centre,Catering Purchases,22.52,3663 (BFS GROUP LTD)
Revenue,Adult Services,Adult Social Care,Social Support - Support for Carer,5105692874,19.12.2018,Westminster House,Catering Purchases,20.92,MEDINA FOODSERVICE T/A MEDINA QUAY MEATS
Revenue,Adult Services,Adult Social Care,Social Support - Support for Carer,5105692877,19.12.2018,Westminster House,Catering Purchases,88.79,MEDINA FOODSERVICE T/A MEDINA QUAY MEATS
Revenue,Adult Services,Adult Social Care,Social Support - Support for Carer,5105692878,19.12.2018,Westminster House,Catering Purchases,28.39,MEDINA FOODSERVICE T/A MEDINA QUAY MEATS
Revenue,Adult Services,Adult Social Care,Social Support - Support for Carer,5105692880,19.12.2018,Westminster House,Catering Purchases,52.79,MEDINA FOODSERVICE T/A MEDINA QUAY MEATS
Revenue,Adult Services,Adult Social Care,Assistive Equipment & Technology,5105692881,19.12.2018,Community Equipment Store,General Materials,38.00,JAMES LECKEY DESIGN LTD
Revenue,Adult Services,Adult Social Care,Assistive Equipment & Technology,5105692881,19.12.2018,Community Equipment Store,General Materials,48.00,JAMES LECKEY DESIGN LTD
Revenue,Childrens Services,Children's & Education Services,Other Education and Community Budget,5105692964,19.12.2018,Learning & Development Running Costs,Catering Purchases,18.75,WIGHT CRYSTAL
Revenue,Childrens Services,Children's & Education Services,Other Education and Community Budget,5105692964,19.12.2018,Learning & Development Running Costs,Catering Purchases,15.75,WIGHT CRYSTAL
Revenue,Childrens Services,Children's & Education Services,Other Education and Community Budget,5105692964,19.12.2018,Learning & Development Running Costs,Catering Purchases,39.99,WIGHT CRYSTAL
Revenue,Childrens Services,Children's & Education Services,Other Education and Community Budget,5105693017,19.12.2018,SEND Independent Advice & Support,Catering Purchases,-5.25,WIGHT CRYSTAL
Capital,Childrens Services,Capital,Capital,5105693027,19.12.2018,Administration and Inspection Schemes,Eligible Supplies and Services - Capital,225.00,HOSE RHODES DICKSON LIMITED
Revenue,Childrens Services,Children's & Education Services,Children Looked After,5105692460,14.12.2018,Adoption Costs,Support Children,168.39,REDACTED PERSONAL DATA
Revenue,Childrens Services,Children's & Education Services,Children Looked After,5105692460,14.12.2018,Adoption Costs,Support Children,207.73,REDACTED PERSONAL DATA
Revenue,Childrens Services,Children's & Education Services,Children Looked After,5105692461,14.12.2018,Adoption Costs,Support Children,207.73,REDACTED PERSONAL DATA
Revenue,Childrens Services,Children's & Education Services,Children Looked After,5105692461,14.12.2018,Adoption Costs,Support Children,168.39,REDACTED PERSONAL DATA
Revenue,Childrens Services,Children's & Education Services,Children Looked After,5105692461,14.12.2018,Adoption Costs,Support Children,168.39,REDACTED PERSONAL DATA
Revenue,Childrens Services,Children's & Education Services,Children Looked After,5105692461,14.12.2018,Adoption Costs,Support Children,132.69,REDACTED PERSONAL DATA
Revenue,Childrens Services,Children's & Education Services,Children Looked After,5105692462,14.12.2018,Adoption Costs,Support Children,225.83,REDACTED PERSONAL DATA
Revenue,Childrens Services,Children's & Education Services,Children Looked After,5105692463,14.12.2018,Adoption Costs,Support Children,132.69,REDACTED PERSONAL DATA
Revenue,Childrens Services,Children's & Education Services,Children Looked After,5105692464,14.12.2018,Adoption Costs,Support Children,178.30,REDACTED PERSONAL DATA
Revenue,Childrens Services,Children's & Education Services,Children Looked After,5105692464,14.12.2018,Adoption Costs,Support Children,146.30,REDACTED PERSONAL DATA
Revenue,Childrens Services,Children's & Education Services,Children Looked After,5105692465,14.12.2018,Adoption Costs,Support Children,168.39,REDACTED PERSONAL DATA
Revenue,Childrens Services,Children's & Education Services,Children Looked After,5105692467,14.12.2018,Adoption Costs,Support Children,71.74,REDACTED PERSONAL DATA
Revenue,Childrens Services,Children's & Education Services,Children Looked After,5105692467,14.12.2018,Adoption Costs,Support Children,71.74,REDACTED PERSONAL DATA
Revenue,Childrens Services,Children's & Education Services,Children Looked After,5105692469,19.12.2018,Adoption Costs,Support Children,168.39,REDACTED PERSONAL DATA
Revenue,Childrens Services,Children's & Education Services,Children Looked After,5105692472,14.12.2018,Adoption Costs,Support Children,207.73,REDACTED PERSONAL DATA
Revenue,Childrens Services,Children's & Education Services,Children Looked After,5105692472,14.12.2018,Adoption Costs,Support Children,168.39,REDACTED PERSONAL DATA
Revenue,Childrens Services,Children's & Education Services,Children Looked After,5105692477,14.12.2018,Adoption Costs,Support Children,207.73,REDACTED PERSONAL DATA
Revenue,Childrens Services,Children's & Education Services,Children Looked After,5105692479,14.12.2018,Adoption Costs,Support Children,168.39,REDACTED PERSONAL DATA
Revenue,Childrens Services,Children's & Education Services,Children Looked After,5105692487,14.12.2018,Adoption Costs,Support Children,168.39,REDACTED PERSONAL DATA
Revenue,Childrens Services,Children's & Education Services,Children Looked After,5105692488,14.12.2018,Adoption Costs,Support Children,132.69,REDACTED PERSONAL DATA
Revenue,Childrens Services,Children's & Education Services,Children Looked After,5105692491,14.12.2018,Adoption Costs,Support Children,207.73,REDACTED PERSONAL DATA
Revenue,Childrens Services,Children's & Education Services,Children Looked After,5105692491,14.12.2018,Adoption Costs,Support Children,207.73,REDACTED PERSONAL DATA
Revenue,Childrens Services,Children's & Education Services,Children Looked After,5105692497,14.12.2018,Adoption Costs,Support Children,44.43,REDACTED PERSONAL DATA
Revenue,Childrens Services,Children's & Education Services,Children Looked After,5105692503,14.12.2018,Adoption Costs,Support Children,132.69,REDACTED PERSONAL DATA
Revenue,Childrens Services,Children's & Education Services,Children Looked After,5105692513,14.12.2018,Adoption Costs,Support Children,161.49,REDACTED PERSONAL DATA
Revenue,Childrens Services,Children's & Education Services,Children Looked After,5105692513,14.12.2018,Adoption Costs,Support Children,168.09,REDACTED PERSONAL DATA
Revenue,Childrens Services,Children's & Education Services,Children Looked After,5105692520,14.12.2018,Adoption Costs,Support Children,43.79,REDACTED PERSONAL DATA
Revenue,Childrens Services,Children's & Education Services,Children Looked After,5105692520,14.12.2018,Adoption Costs,Support Children,38.14,REDACTED PERSONAL DATA
Revenue,Childrens Services,Children's & Education Services,Children Looked After,5105692520,14.12.2018,Adoption Costs,Support Children,38.14,REDACTED PERSONAL DATA
Revenue,Childrens Services,Children's & Education Services,Children Looked After,5105692543,14.12.2018,Adoption Costs,Support Children,64.57,REDACTED PERSONAL DATA
Revenue,Childrens Services,Children's & Education Services,Children Looked After,5105692543,14.12.2018,Adoption Costs,Support Children,64.58,REDACTED PERSONAL DATA
Revenue,Childrens Services,Children's & Education Services,Other Education and Community Budget,5105694160,27.12.2018,Learning & Development Running Costs,Catering Purchases,23.00,WIGHT CRYSTAL
Revenue,Adult Services,Adult Social Care,Social Care Activities,5105694233,28.12.2018,Local Safeguarding Adults Board,Professional Services,405.00,MAKING CONNECTIONS (IW) LTD
Revenue,Adult Services,Adult Social Care,Assistive Equipment & Technology,5105694241,28.12.2018,Community Equipment Store,General Materials,322.56,SYDENHAMS LTD
Revenue,Adult Services,Adult Social Care,Assistive Equipment & Technology,5105694241,28.12.2018,Community Equipment Store,General Materials,124.32,SYDENHAMS LTD
Revenue,Adult Services,Adult Social Care,Learning Disab Supp (to be reallocated),5105694254,28.12.2018,Saxonbury,Catering Purchases,14.10,CHAPEL NURSERIES
Revenue,Adult Services,Adult Social Care,Learning Disab Supp (to be reallocated),5105694256,28.12.2018,Saxonbury,Catering Purchases,30.00,CHAPEL NURSERIES
Revenue,Regeneration,Central Services,Support Services,5105694315,28.12.2018,Strategic Assets Team,Professional Services,225.00,SKYSCAN
Revenue,Adult Services,Adult Social Care,Social Support - Support for Carer,5105694371,28.12.2018,Westminster House,Catering Purchases,160.54,MEDINA FOODSERVICE T/A MEDINA QUAY MEATS
Revenue,Adult Services,Adult Social Care,Social Support - Support for Carer,5105694373,28.12.2018,Westminster House,Catering Purchases,52.86,MEDINA FOODSERVICE T/A MEDINA QUAY MEATS
Revenue,Adult Services,Adult Social Care,Social Support - Support for Carer,5105694374,28.12.2018,Westminster House,Catering Purchases,10.49,FARMHOUSE FAYRE (NEWPORT) LIMITED
Revenue,Neighbourhoods,Cultural and Related Services,Open Spaces,5105694382,28.12.2018,Rights of Way Operations,General Materials,50.00,COUNTY FENCING SUPPLIES
Revenue,Adult Services,Adult Social Care,Central Codes (to be reallocated),5105694386,28.12.2018,Gouldings Resource Centre,Catering Purchases,94.45,MEDINA FOODSERVICE T/A MEDINA QUAY MEATS
Revenue,Adult Services,Adult Social Care,Central Codes (to be reallocated),5105694387,28.12.2018,Gouldings Resource Centre,Catering Purchases,136.21,MEDINA FOODSERVICE T/A MEDINA QUAY MEATS
Revenue,Adult Services,Adult Social Care,Central Codes (to be reallocated),5105694387,28.12.2018,Gouldings Resource Centre,Catering Purchases,17.52,MEDINA FOODSERVICE T/A MEDINA QUAY MEATS
Revenue,Adult Services,Adult Social Care,Central Codes (to be reallocated),5105694389,28.12.2018,Gouldings Resource Centre,Catering Purchases,124.63,MEDINA FOODSERVICE T/A MEDINA QUAY MEATS
Revenue,Adult Services,Adult Social Care,Central Codes (to be reallocated),5105694389,28.12.2018,Gouldings Resource Centre,Catering Purchases,8.76,MEDINA FOODSERVICE T/A MEDINA QUAY MEATS
Capital,Childrens Services,Capital,Capital,5105694391,28.12.2018,Administration and Inspection Schemes,Eligible Supplies and Services - Capital,"2,192.83",ISLE OF WIGHT TEXTILES
Capital,Childrens Services,Capital,Capital,5105694405,28.12.2018,Administration and Inspection Schemes,Eligible Supplies and Services - Capital,165.00,TL ELECTRICAL (IOW) LTD
Revenue,Neighbourhoods,Cultural and Related Services,Recreation and Sport,5105692787,14.12.2018,Medina Leisure Centre,Stock Purchases,196.00,ZOGGS INTERNATIONAL LIMITED
Revenue,Neighbourhoods,Cultural and Related Services,Recreation and Sport,5105692787,14.12.2018,Medina Leisure Centre,Stock Purchases,189.42,ZOGGS INTERNATIONAL LIMITED
Revenue,Childrens Services,Children's & Education Services,Other Education and Community Budget,5105692796,19.12.2018,Home to School SEN Transport (LA),Transport of Clients,463.16,OSEL ENTERPRISES LTD
Revenue,Adult Services,Adult Social Care,Social Care Activities,5105692804,14.12.2018,Local Safeguarding Adults Board,Hire of facilities,85.00,MJH DEVELOPMENTS
Revenue,Adult Services,Adult Social Care,Social Care Activities,5105692804,14.12.2018,Local Safeguarding Adults Board,Hire of facilities,72.00,MJH DEVELOPMENTS
Revenue,Neighbourhoods,Cultural and Related Services,Recreation and Sport,5105692808,14.12.2018,Medina Leisure Centre,Stationery,9.98,SUPPLIES TEAM LTD
Revenue,Neighbourhoods,Cultural and Related Services,Recreation and Sport,5105692848,19.12.2018,Medina Leisure Centre,Stock Purchases,333.24,SWIM ENGLAND TRADING LIMITED
Revenue,Resources,Central Services,Support Services,5105692849,19.12.2018,Payroll,Stationery,63.70,SUPPLIES TEAM LTD
Revenue,Childrens Services,Children's & Education Services,Other Education and Community Budget,5105692865,19.12.2018,Home to School SEN Transport (LA),Taxis - Contract Hire,36.00,HAVEN TAXIS & PRIVATE HIRE
Revenue,Childrens Services,Children's & Education Services,Other Education and Community Budget,5105692866,19.12.2018,Home to School SEN Transport (LA),Taxis - Contract Hire,858.00,HAVEN TAXIS & PRIVATE HIRE
Revenue,Adult Services,Adult Social Care,Social Support - Support for Carer,5105692872,19.12.2018,Westminster House,Operational Equipment,122.49,BETA PAK LTD
Revenue,Neighbourhoods,Cultural and Related Services,Open Spaces,5105692889,19.12.2018,Rights of Way Operations,Operational Equipment,39.81,ITS TOOLS IOW LTD
Revenue,Childrens Services,Children's & Education Services,Other Education and Community Budget,5105692891,19.12.2018,Home to School SEN Transport (LA),Taxis - Contract Hire,330.00,BEACON TAXIS
Revenue,Childrens Services,Children's & Education Services,Other Education and Community Budget,5105692909,19.12.2018,Home to School SEN Transport (LA),Taxis - Contract Hire,586.52,RYDE TAXIS LTD
Revenue,Adult Services,Adult Social Care,Assistive Equipment & Technology,5105692911,28.12.2018,Community Equipment Store,Stationery,31.86,SUPPLIES TEAM LTD
Revenue,Adult Services,Adult Social Care,Assistive Equipment & Technology,5105692911,28.12.2018,Community Equipment Store,Stationery,0.53,SUPPLIES TEAM LTD
Revenue,Adult Services,Adult Social Care,Assistive Equipment & Technology,5105692911,28.12.2018,Community Equipment Store,Stationery,0.54,SUPPLIES TEAM LTD
Revenue,Adult Services,Adult Social Care,Assistive Equipment & Technology,5105692911,28.12.2018,Community Equipment Store,Stationery,0.39,SUPPLIES TEAM LTD
Revenue,Fire & Rescue,Fire & Rescue Services,Fire fighting and Rescue Operations,5105692914,19.12.2018,Business Support  - Fire,Stationery,2.10,SUPPLIES TEAM LTD
Revenue,Fire & Rescue,Fire & Rescue Services,Fire fighting and Rescue Operations,5105692914,19.12.2018,Business Support  - Fire,Stationery,1.62,SUPPLIES TEAM LTD
Revenue,Neighbourhoods,Cultural and Related Services,Recreation and Sport,5105692621,14.12.2018,Medina Leisure Centre,Stock Purchases,-415.80,MEDINA FOODSERVICE T/A MEDINA QUAY MEATS
Revenue,Childrens Services,Children's & Education Services,Other Education and Community Budget,5105692637,14.12.2018,Home to School SEN Transport (LA),Taxis - Contract Hire,718.00,METEOR TAXIS
Revenue,Adult Services,Adult Social Care,Assistive Equipment & Technology,5105692641,14.12.2018,Community Equipment Store,Operational Equipment,"2,029.50",R82 UK LTD
Revenue,Neighbourhoods,Cultural and Related Services,Service Management and Support Services,5105692650,14.12.2018,Leisure Management & Admin,Stationery,0.50,SUPPLIES TEAM LTD
Revenue,Neighbourhoods,Cultural and Related Services,Service Management and Support Services,5105692650,14.12.2018,Leisure Management & Admin,Stationery,29.01,SUPPLIES TEAM LTD
Revenue,Neighbourhoods,Cultural and Related Services,Service Management and Support Services,5105692650,14.12.2018,Leisure Management & Admin,Stationery,31.86,SUPPLIES TEAM LTD
Revenue,Neighbourhoods,Cultural and Related Services,Service Management and Support Services,5105692650,14.12.2018,Leisure Management & Admin,Stationery,8.00,SUPPLIES TEAM LTD
Revenue,Childrens Services,Children's & Education Services,Other Education and Community Budget,5105692651,21.12.2018,Home to School SEN Transport (LA),Taxis - Contract Hire,-633.33,MINIBUS-PLUS.COM/TOP TAXI
Revenue,Adult Services,Adult Social Care,Assistive Equipment & Technology,5105692658,28.12.2018,Community Equipment Store,Stationery,9.98,SUPPLIES TEAM LTD
Revenue,Adult Services,Adult Social Care,Central Codes (to be reallocated),5105692669,14.12.2018,Gouldings Resource Centre,Stationery,2.46,SUPPLIES TEAM LTD
Revenue,Adult Services,Adult Social Care,Central Codes (to be reallocated),5105692669,14.12.2018,Gouldings Resource Centre,Stationery,2.90,SUPPLIES TEAM LTD
Revenue,Adult Services,Adult Social Care,Central Codes (to be reallocated),5105692669,14.12.2018,Gouldings Resource Centre,Stationery,2.12,SUPPLIES TEAM LTD
Revenue,Adult Services,Adult Social Care,Central Codes (to be reallocated),5105692669,14.12.2018,Gouldings Resource Centre,Stationery,3.69,SUPPLIES TEAM LTD
Revenue,Adult Services,Adult Social Care,Central Codes (to be reallocated),5105692669,14.12.2018,Gouldings Resource Centre,Stationery,0.53,SUPPLIES TEAM LTD
Revenue,Adult Services,Adult Social Care,Central Codes (to be reallocated),5105692669,14.12.2018,Gouldings Resource Centre,Stationery,2.58,SUPPLIES TEAM LTD
Revenue,Adult Services,Adult Social Care,Central Codes (to be reallocated),5105692669,14.12.2018,Gouldings Resource Centre,Stationery,1.60,SUPPLIES TEAM LTD
Revenue,Adult Services,Adult Social Care,Central Codes (to be reallocated),5105692669,14.12.2018,Gouldings Resource Centre,Stationery,7.22,SUPPLIES TEAM LTD
Revenue,Childrens Services,Children's & Education Services,Management & Support Services,5105692680,14.12.2018,Pre-school Special Educational Needs,Stationery,13.47,SUPPLIES TEAM LTD
Revenue,Childrens Services,Children's & Education Services,Other Education and Community Budget,5105692680,14.12.2018,Learning & Development Running Costs,Stationery,31.86,SUPPLIES TEAM LTD
Revenue,Childrens Services,Children's & Education Services,Other Education and Community Budget,5105692680,14.12.2018,Learning & Development Running Costs,Stationery,2.46,SUPPLIES TEAM LTD
Revenue,Childrens Services,Children's & Education Services,Other Education and Community Budget,5105692680,14.12.2018,Learning & Development Running Costs,Stationery,3.42,SUPPLIES TEAM LTD
Revenue,Adult Services,Adult Social Care,Assistive Equipment & Technology,5105692705,14.12.2018,Community Equipment Store,Operational Equipment,509.07,TALLEY GROUP LTD
Revenue,Adult Services,Adult Social Care,Social Support - Support for Carer,5105692722,14.12.2018,Carers Other LT Care,Charges from Independent Providers,152.40,WAXHAM HOUSE RESIDENTIAL CARE HOME
Revenue,Adult Services,Adult Social Care,Assistive Equipment & Technology,5105691644,05.12.2018,Community Equipment Store,Operational Equipment,49.80,COMPLETE CARE NETWORK LTD
Revenue,Childrens Services,Children's & Education Services,Other Education and Community Budget,5105691662,05.12.2018,Home to School SEN Transport (LA),Taxis - Contract Hire,333.25,RYDE TAXIS LTD
